Workbook

Sheet はじめに
A1: 一般請求書ＥＸＣＥＬ版をご使用になる前に
B3: １．本ソフトはMicrosoftExcel 2013 、2016、2019で動作が確認済みです。 以前のバージョーンでは正常に動作しない場合があります。
B5: ２．本ソフトを起動する前にExcelでマクロのセキュリティを変更して下さい。
C7: ①Excel 2013、2016、2019の場合
D9: Excel2013、2016、2019を起動後保護ビューのメッセージが表示されたら、編集を有効にする をクリックします。
D34: セキュリティの警告が表示されたら、コンテンツの有効化をクリックします。
E59: 以上で使用可能となります。
E60: もし、コンテンツの有効化を行っても使用できない場合は以下の手順を行ってください。
D65: Excel 2013又は2016を起動後ファイルタブから、Excelのオプションボタンをクリックする。
D91: Excelオプション表示後、左側メニューよりセキュリティセンターを選択し、セキュリティ センターの設定(T)ボタンをクリックする。
D120: セキュリティセンター表示後、左側メニューよりマクロの設定をクリックし、すべての マクロを有効にするを選択しＯＫボタンをクリックしてください。
D144: 上記設定後、一般請求書Excel版を起動しご使用下さい。

Sheet 操作方法
B2: 一般請求書の「Ｅｘｃｅｌ」での作成手順
B7: ① | C7: 「基本情報シート…１.取引先情報」の登録 | K7: 取引先コード・会社名・振込銀行・前月請求額等の情報登録
B14: ② | C14: 「基本情報シート…2.消費税情報」の登録 | K14: 消費税率・消費税丸め・税端数処理区分の登録
B21: ③ | C21: 「基本情報シート…3.工事名称マスター」の登録 | K21: 工事名称(略称)・作業所長名の登録
B28: ④ | C28: 「明細情報シート…4.請求明細情報」の登録 | K28: 納入年月日・品名規格・数量・単価・備考の登録
B34: ⑤ | C34: 「基本情報シート…5.請求書作成ボタン」をクリック
K35: ①～④で登録した情報により「請求書(鏡)/請求明細書」を作成
C36: 「請求書(鏡)/請求明細書」のシートが自動作成されます
B43: ⑥ | C43: 「請求書(鏡)/請求明細書の印刷」 | K43: ⑤で作成した「請求書(鏡)/請求明細書」を印刷
A48: ①【基本情報の登録】 | E48: シートは、月別に原本のシートから利用し、新規の工事登録から実行する方法にて活用お願いします。
A50: １．「基本情報」シートを選択します。
A52: ２．背景色が水色のセルに、請求書(鏡)となる情報を入力します。
A85: ※工事名称(略称)は「工事名称マスタ」の欄に最大60工事まで入力可能です。
A87: ※当月請求が発生しない工事は「工事名称マスタ」に登録しないでください。
A89: ※背景色が色塗りされている箇所のみ入力又はリストボックスより選択ができます。
A90: その他部分は入力・削除等は出来ません。
A93: ②【明細情報の登録】
A95: １．「明細情報」シートを選択します。
A97: ２．背景色が黄色のセルに、請求明細の情報を入力します。
B99: ※背景色が白色のセルには計算式がありますので入力は不要です。
A137: ※工事名称は「基本情報」シートに登録済みのもののみ入力可能です。
A140: ③【請求書(鏡)／請求明細書の作成】
A142: １．基本情報と明細情報を登録後に「請求書作成」ボタンをクリックすると
B144: 「請求書(鏡)と「請求明細書」の提出用が自動的に作成されます。
A183: ※明細情報等を変更後に再度「請求書作成」ボタンを押すことで、請求書の再作成が可能です。
A187: ④【請求書(鏡)／請求明細書の印刷】
A190: １．作成された請求書(鏡)と請求明細書の内容を確認し、
A192: 内容に問題がなければ必要部数印刷してください。
B194: ･請求書(鏡)(一般用)
M197: ･請求書(鏡)(一般用) … １枚
M200: 但し、１回の請求で２０工事を超過する場合は、
M202: 請求書(鏡)の枚数は２枚以上作成されます。
N204: MAX.６０工事の時は３枚作成します。
K208: 提出用
N221: 貴社→経理(控)
B235: ･請求明細書 (一般)
M237: ･請求明細書 ← １工事につき２枚で１セットです
M239: 但し、１５明細を超える場合、請求明細書は
M241: 次ページに作成されます。
N259: 貴社→請求書(添付)→経理(控)
N261: 貴社→請求書(添付)→経理→作業所長(控)
N263: 注意、必ず２枚提出お願いします！

Sheet 基本情報
H1: VER:2019/04/01A
B2: 1,取引先情報 | G2: 入力要件 | O2: ※凡例
B3: 取引先コード(6桁) | C3: 999999 | G3: ・６桁の取引先コード | Q3: ←固定項目
B4: 社名 | C4: (株）○○建設 | G4: ・会社名
B5: 住所 | C5: 酒田市○○○○１－１ | G5: ・全角１５文字 | Q5: ←変動項目
B6: 電話番号 | C6: 0234 - 00 - 0000 | Q6: （毎月入力）
B7: 請求締日 | C7: 2020-07-31 | G7: ・弊社の請求締日 | Q7: ←入力不要項目
B8: 振込銀行コード(4桁) | C8: 508 | G8: ・全銀協の金融機関コード４桁 | Q8: （自動計算）
B9: 振込銀行名 | C9: きらやか | G9: ・銀行名 … 例、きらやか銀行の場合「きらやか」
B10: 振込支店コード(3桁) | C10: 443 | G10: ・支店コード … ３桁
B11: 振込支店名 | C11: 酒田 | G11: ・支店名 … 例、酒田支店の場合「酒田」
B12: 当座/普通 | C12: 当 座 | G12: ・当座か普通かをリストボックスより選択
B13: 口座番号 | C13: 1234567 | G13: ・入金用の口座番号 … ７桁
B14: 口座名義/漢字 | C14: (株）○○建設 | G14: ・口座名義/漢字 … 通帳のご名義(漢字)
B15: 口座名義/カナ | C15: ｶ)ﾏﾙﾏﾙｹﾝｾﾂ | G15: ・口座名義/カナ … 通帳のご名義(カナ)
B16: 前月請求額 | C16: 0 | F16: A | G16: ・前月請求額
B17: 入金額 | C17: 0 | F17: B | G17: ・入金額 … 振込手数料も含む入金額
B18: 値引額 | C18: 0 | F18: C | G18: ・値引額 … 御社が値引された場合の金額
B19: 繰越金額 | C19: =C16-C17-C18 -> 0 | F19: D | G19: ・繰越金額 … 自動計算 (D=A-B-C)
B22: 2.消費税情報
B23: 消費税率 | C23: 0.1 | G23: ・消費税率 … １％きざみで変更可能
B24: 税端数丸め単位 | C24: 1 | G24: ･消費税の丸め単位 … \1･\10･\100･\1,000の別をリストボックスより選択
B25: 税端数処理区分 | C25: 四捨五入 | G25: ･端数処理区分 … 切捨て・四捨五入・切上げをリストボックスより選択
E27: 入力不要 （明細情報登録データを自動表示）
B28: 3. 工事名称マスタ
B29: 工事名称 (略称) (全角１７文字) | D29: 作業所長名 | E29: 課税金額 | F29: 非課税金額 | G29: 消費税額 | H29: 合計金額
B30: ○○○○○工事 | D30: ○○太郎 | E30: =SUMIF(請求明細_工事場所,B30,請求明細_課税金額) -> 350800 | F30: =SUMIF(請求明細_工事場所,B30,請求明細_非課税金額) -> 321 | G30: =IF(基本情報_税端数処理方法="切り捨て", ROUNDDOWN(E30*基本情報_消費税率,-LEN(基本情報_税端数丸め)+1), 0) + IF(基本情報_税端数処理方法="四捨五入",ROUND(E30*基本情報_消費税率,-LEN(基本情報_税端数丸め)+1),0) + IF(基本情報_税端数処理方法="切り上げ", ROUNDUP(E30*基本情報_消費税率,-LEN(基本情報_税端数丸め)+1), 0) -> 35080 | H30: =E30+G30+F30 -> 386201 | N30: ・工事名称 … 作業所長より略称を確認した後に登録
A31: 1 | B31: ×××××工事 | D31: ××次郎 | E31: 500000 | F31: 0 | G31: 50000 | H31: =E31+G31+F31 -> 550000 | N31: ・作業所長名 ･･･ 当該工事の担当作業所長名を登録
A32: 2 | E32: 0 | F32: 0 | G32: 0 | H32: 0 | N32: ・課税金額 … 明細情報の課税金額を自動計算
A33: 3 | E33: 0 | F33: 0 | G33: 0 | H33: 0 | N33: ・非課税金額 … 軽油税等消費税が課税されない金額
A34: 4 | E34: 0 | F34: 0 | G34: 0 | H34: 0 | N34: を明細情報より自動計算
A35: 5 | E35: 0 | F35: 0 | G35: 0 | H35: 0 | N35: ・合計金額 … 課税金額＋非課税金額＋消費税額
A36: 6 | E36: 0 | F36: 0 | G36: 0 | H36: 0 | N36: を自動計算
A37: 7 | E37: 0 | F37: 0 | G37: 0 | H37: 0 | N37: ※ 登録工事名称は最大６０工事まで登録可能です
A38: 8 | E38: 0 | F38: 0 | G38: 0 | H38: 0
A39: 9 | E39: 0 | F39: 0 | G39: 0 | H39: 0
A40: 10 | E40: 0 | F40: 0 | G40: 0 | H40: 0
A41: 11 | E41: 0 | F41: 0 | G41: 0 | H41: 0
A42: 12 | E42: 0 | F42: 0 | G42: 0 | H42: 0
A43: 13 | E43: 0 | F43: 0 | G43: 0 | H43: 0
A44: 14 | E44: 0 | F44: 0 | G44: 0 | H44: 0
A45: 15 | E45: 0 | F45: 0 | G45: 0 | H45: 0
A46: 16 | E46: 0 | F46: 0 | G46: 0 | H46: 0
A47: 17 | E47: 0 | F47: 0 | G47: 0 | H47: 0
A48: 18 | E48: 0 | F48: 0 | G48: 0 | H48: 0
A49: 19 | E49: 0 | F49: 0 | G49: 0 | H49: 0 | I49: １ページ目 | J49: =COUNTA(B30:C49) -> 2
A50: 20 | E50: 0 | F50: 0 | G50: 0 | H50: 0 | I50: =SUM(E30:F49) -> 851121 | J50: =SUM(G30:G49) -> 85080 | K50: =SUM(H30:H49) -> 936201
A51: 21 | E51: 0 | F51: 0 | G51: 0 | H51: 0
A52: 22 | E52: 0 | F52: 0 | G52: 0 | H52: 0
A53: 23 | E53: 0 | F53: 0 | G53: 0 | H53: 0
A54: 24 | E54: 0 | F54: 0 | G54: 0 | H54: 0
A55: 25 | E55: 0 | F55: 0 | G55: 0 | H55: 0
A56: 26 | E56: 0 | F56: 0 | G56: 0 | H56: 0
A57: 27 | E57: 0 | F57: 0 | G57: 0 | H57: 0
A58: 28 | E58: 0 | F58: 0 | G58: 0 | H58: 0
A59: 29 | E59: 0 | F59: 0 | G59: 0 | H59: 0
A60: 30 | E60: 0 | F60: 0 | G60: 0 | H60: 0
A61: 31 | E61: 0 | F61: 0 | G61: 0 | H61: 0
A62: 32 | E62: =SUMIF(請求明細_工事場所,B62,請求明細_課税金額) -> 0 | F62: =SUMIF(請求明細_工事場所,B62,請求明細_非課税金額) -> 0 | G62: =IF(基本情報_税端数処理方法="切り捨て", ROUNDDOWN(E62*基本情報_消費税率,-LEN(基本情報_税端数丸め)+1), 0) + IF(基本情報_税端数処理方法="四捨五入",ROUND(E62*基本情報_消費税率,-LEN(基本情報_税端数丸め)+1),0) + IF(基本情報_税端数処理方法="切り上げ", ROUNDUP(E62*基本情報_消費税率,-LEN(基本情報_税端数丸め)+1), 0) -> 0 | H62: 0
A63: 33 | E63: 0 | F63: 0 | G63: 0 | H63: 0
A64: 34 | E64: 0 | F64: 0 | G64: 0 | H64: 0
A65: 35 | E65: 0 | F65: 0 | G65: 0 | H65: 0
A66: 36 | E66: 0 | F66: 0 | G66: 0 | H66: 0
A67: 37 | E67: 0 | F67: 0 | G67: 0 | H67: 0
A68: 38 | E68: 0 | F68: 0 | G68: 0 | H68: 0
A69: 39 | E69: 0 | F69: 0 | G69: 0 | H69: 0 | I69: 2ページ目 | J69: =COUNTA(B50:C69) -> 0
A70: 40 | E70: 0 | F70: 0 | G70: 0 | H70: 0 | I70: =SUM(E50:F69) -> 0 | J70: =SUM(G50:G69) -> 0 | K70: =SUM(H50:H69) -> 0
A71: 41 | E71: 0 | F71: 0 | G71: 0 | H71: 0
A72: 42 | E72: 0 | F72: 0 | G72: 0 | H72: 0
A73: 43 | E73: 0 | F73: 0 | G73: 0 | H73: 0
A74: 44 | E74: 0 | F74: 0 | G74: 0 | H74: 0
A75: 45 | E75: 0 | F75: 0 | G75: 0 | H75: 0
A76: 46 | E76: 0 | F76: 0 | G76: 0 | H76: 0
A77: 47 | E77: 0 | F77: 0 | G77: 0 | H77: 0
A78: 48 | E78: 0 | F78: 0 | G78: 0 | H78: 0
A79: 49 | E79: 0 | F79: 0 | G79: 0 | H79: 0
A80: 50 | E80: 0 | F80: 0 | G80: 0 | H80: 0
A81: 51 | E81: 0 | F81: 0 | G81: 0 | H81: 0
A82: 52 | E82: 0 | F82: 0 | G82: 0 | H82: 0
A83: 53 | E83: 0 | F83: 0 | G83: 0 | H83: 0
A84: 54 | E84: 0 | F84: 0 | G84: 0 | H84: 0
A85: 55 | E85: 0 | F85: 0 | G85: 0 | H85: 0
A86: 56 | E86: 0 | F86: 0 | G86: 0 | H86: 0
A87: 57 | E87: 0 | F87: 0 | G87: 0 | H87: 0
A88: 58 | E88: 0 | F88: 0 | G88: 0 | H88: 0
A89: 59 | E89: 0 | F89: 0 | G89: 0 | H89: 0 | I89: 3ページ目 | J89: =COUNTA(B70:C89) -> 0
A90: 60 | B90: 合計金額 | E90: =SUM(E30:E89) -> 850800 | F90: =SUM(F30:F89) -> 321 | G90: =SUM(G30:G89) -> 85080 | H90: =SUM(H30:H89) -> 936201 | I90: =SUM(E70:F89) -> 0 | J90: =SUM(G70:G89) -> 0 | K90: =SUM(H70:H89) -> 0
I91: =基本情報_合計税込金額+基本情報_繰越金額 -> 936201

Sheet 明細情報
A2: 4.請求明細情報
A3: 通番 | B3: 工事名称 | C3: 納入年月日 | D3: 品 名 ・ 規 格 | E3: 数 量 | F3: 単位 | G3: 単 価 | H3: 税区分 | I3: 金 額 （自動計算） | J3: 備考（自由入力） | O3: 入力要件
L4: 課税 | M4: 非課税 | N4: =IF(基本情報!B30="","",基本情報!B30) -> ○○○○○工事
A5: 1 | B5: ○○○○○工事 | C5: 2008-07-10 | D5: ○○材料 | E5: 50 | F5: 個 | G5: 5000 | H5: 課税 | I5: =ROUND(ROUND(E5,2)*ROUND(G5,2),0) -> 250000 | L5: =IF($H5<>"非課税",$I5,0) -> 250000 | M5: =IF($H5="非課税",$I5,0) -> 0 | N5: =IF(基本情報!B31="","",基本情報!B31) -> ×××××工事 | O5: ・工事名称 … 基本情報シートに登録した工事をリストボックスから選択
A6: =A5+1 -> 2 | B6: ×××××工事 | C6: 2008-07-25 | D6: ○○材料 | E6: 50 | F6: 個 | G6: 5000 | H6: 課税 | I6: 250000 | L6: 250000 | M6: 0 | N6: =IF(基本情報!B32="","",基本情報!B32) ->  | O6: ・納入年月日 … 西暦の年月日 例、2008/06/30 か 06/30で2008/06/30と編集します
A7: 3 | B7: ×××××工事 | C7: 2008-07-31 | D7: 労務費 | E7: 25 | F7: 人 | G7: 10000 | H7: 課税 | I7: 250000 | L7: 250000 | M7: 0 | N7: =IF(基本情報!B33="","",基本情報!B33) ->  | O7: ・品名規格 … 全角１７文字
A8: 4 | B8: ○○○○○工事 | C8: 2008-07-31 | D8: 機械損料 | E8: 10 | F8: 日 | G8: 10000 | H8: 課税 | I8: 100000 | L8: 100000 | M8: 0 | N8: =IF(基本情報!B34="","",基本情報!B34) ->  | O8: ・数量 … 小数点以下第２位まで
A9: 5 | B9: ○○○○○工事 | C9: 2008-07-31 | D9: 軽油 | E9: 10 | F9: Ｌ | G9: 80 | H9: 課税 | I9: 800 | L9: 800 | M9: 0 | N9: =IF(基本情報!B35="","",基本情報!B35) ->  | O9: ・単位 … 全角３文字
A10: 6 | B10: ○○○○○工事 | C10: 2008-07-31 | D10: 軽油税 | E10: 10 | F10: Ｌ | G10: 32.1 | H10: 非課税 | I10: 321 | L10: 0 | M10: 321 | N10: =IF(基本情報!B36="","",基本情報!B36) ->  | O10: ・単価 … 小数点以下第２位まで
A11: 7 | I11: 0 | L11: 0 | M11: 0 | N11: =IF(基本情報!B37="","",基本情報!B37) ->  | O11: ・税区分 … 課税・非課税の別をリストボックスより選択
A12: 8 | I12: 0 | L12: 0 | M12: 0 | N12: =IF(基本情報!B38="","",基本情報!B38) ->  | O12: ・税区分 … 課税・非課税を選択しない場合は、税区分が課税と判断され計算されます
A13: 9 | I13: 0 | L13: 0 | M13: 0 | N13: =IF(基本情報!B39="","",基本情報!B39) ->  | O13: ・金額 … 数量×単価 を自動計算 (有効桁数９桁)
A14: 10 | I14: 0 | L14: 0 | M14: 0 | N14: =IF(基本情報!B40="","",基本情報!B40) ->  | O14: ・備考 … 全角１６文字 (注文ＮＯ含む)
A15: 11 | I15: 0 | L15: 0 | M15: 0 | N15: =IF(基本情報!B41="","",基本情報!B41) -> 
A16: 12 | I16: 0 | L16: 0 | M16: 0 | N16: =IF(基本情報!B42="","",基本情報!B42) ->  | O16: 注意
A17: 13 | I17: 0 | L17: 0 | M17: 0 | N17: =IF(基本情報!B43="","",基本情報!B43) ->  | O17: 1.工事は、昇順でなくても自動で集計されます
A18: 14 | I18: 0 | L18: 0 | M18: 0 | N18: =IF(基本情報!B44="","",基本情報!B44) ->  | O18: 2.１ヶ月分の総明細数は、最大300明細です
A19: 15 | I19: 0 | L19: 0 | M19: 0 | N19: =IF(基本情報!B45="","",基本情報!B45) -> 
A20: 16 | I20: 0 | L20: 0 | M20: 0 | N20: =IF(基本情報!B46="","",基本情報!B46) -> 
A21: 17 | I21: 0 | L21: 0 | M21: 0 | N21: =IF(基本情報!B47="","",基本情報!B47) -> 
A22: 18 | I22: 0 | L22: 0 | M22: 0 | N22: =IF(基本情報!B48="","",基本情報!B48) -> 
A23: 19 | I23: 0 | L23: 0 | M23: 0 | N23: =IF(基本情報!B49="","",基本情報!B49) -> 
A24: 20 | I24: 0 | L24: 0 | M24: 0 | N24: =IF(基本情報!B50="","",基本情報!B50) -> 
A25: 21 | I25: 0 | L25: 0 | M25: 0 | N25: =IF(基本情報!B51="","",基本情報!B51) -> 
A26: 22 | I26: 0 | L26: 0 | M26: 0 | N26: =IF(基本情報!B52="","",基本情報!B52) -> 
A27: 23 | I27: 0 | L27: 0 | M27: 0 | N27: =IF(基本情報!B53="","",基本情報!B53) -> 
A28: 24 | I28: 0 | L28: 0 | M28: 0 | N28: =IF(基本情報!B54="","",基本情報!B54) -> 
A29: 25 | I29: 0 | L29: 0 | M29: 0 | N29: =IF(基本情報!B55="","",基本情報!B55) -> 
A30: 26 | I30: 0 | L30: 0 | M30: 0 | N30: =IF(基本情報!B56="","",基本情報!B56) -> 
A31: 27 | I31: 0 | L31: 0 | M31: 0 | N31: =IF(基本情報!B57="","",基本情報!B57) -> 
A32: 28 | I32: 0 | L32: 0 | M32: 0 | N32: =IF(基本情報!B58="","",基本情報!B58) -> 
A33: 29 | I33: 0 | L33: 0 | M33: 0 | N33: =IF(基本情報!B59="","",基本情報!B59) -> 
A34: 30 | I34: 0 | L34: 0 | M34: 0 | N34: =IF(基本情報!B60="","",基本情報!B60) -> 
A35: 31 | I35: 0 | L35: 0 | M35: 0 | N35: =IF(基本情報!B61="","",基本情報!B61) -> 
A36: 32 | I36: 0 | L36: 0 | M36: 0 | N36: =IF(基本情報!B62="","",基本情報!B62) -> 
A37: 33 | I37: 0 | L37: 0 | M37: 0 | N37: =IF(基本情報!B63="","",基本情報!B63) -> 
A38: 34 | I38: 0 | L38: 0 | M38: 0 | N38: =IF(基本情報!B64="","",基本情報!B64) -> 
A39: 35 | I39: 0 | L39: 0 | M39: 0 | N39: =IF(基本情報!B65="","",基本情報!B65) -> 
A40: 36 | I40: 0 | L40: 0 | M40: 0 | N40: =IF(基本情報!B66="","",基本情報!B66) -> 
A41: 37 | I41: 0 | L41: 0 | M41: 0 | N41: =IF(基本情報!B67="","",基本情報!B67) -> 
A42: 38 | I42: 0 | L42: 0 | M42: 0 | N42: =IF(基本情報!B68="","",基本情報!B68) -> 
A43: 39 | I43: 0 | L43: 0 | M43: 0 | N43: =IF(基本情報!B69="","",基本情報!B69) -> 
A44: 40 | I44: 0 | L44: 0 | M44: 0 | N44: =IF(基本情報!B70="","",基本情報!B70) -> 
A45: 41 | I45: 0 | L45: 0 | M45: 0 | N45: =IF(基本情報!B71="","",基本情報!B71) -> 
A46: 42 | I46: 0 | L46: 0 | M46: 0 | N46: =IF(基本情報!B72="","",基本情報!B72) -> 
A47: 43 | I47: 0 | L47: 0 | M47: 0 | N47: =IF(基本情報!B73="","",基本情報!B73) -> 
A48: 44 | I48: 0 | L48: 0 | M48: 0 | N48: =IF(基本情報!B74="","",基本情報!B74) -> 
A49: 45 | I49: 0 | L49: 0 | M49: 0 | N49: =IF(基本情報!B75="","",基本情報!B75) -> 
A50: 46 | I50: 0 | L50: 0 | M50: 0 | N50: =IF(基本情報!B76="","",基本情報!B76) -> 
A51: 47 | I51: 0 | L51: 0 | M51: 0 | N51: =IF(基本情報!B77="","",基本情報!B77) -> 
A52: 48 | I52: 0 | L52: 0 | M52: 0 | N52: =IF(基本情報!B78="","",基本情報!B78) -> 
A53: 49 | I53: 0 | L53: 0 | M53: 0 | N53: =IF(基本情報!B79="","",基本情報!B79) -> 
A54: 50 | I54: 0 | L54: 0 | M54: 0 | N54: =IF(基本情報!B80="","",基本情報!B80) -> 
A55: 51 | I55: 0 | L55: 0 | M55: 0 | N55: =IF(基本情報!B81="","",基本情報!B81) -> 
A56: 52 | I56: 0 | L56: 0 | M56: 0 | N56: =IF(基本情報!B82="","",基本情報!B82) -> 
A57: 53 | I57: 0 | L57: 0 | M57: 0 | N57: =IF(基本情報!B83="","",基本情報!B83) -> 
A58: 54 | I58: 0 | L58: 0 | M58: 0 | N58: =IF(基本情報!B84="","",基本情報!B84) -> 
A59: 55 | I59: 0 | L59: 0 | M59: 0 | N59: =IF(基本情報!B85="","",基本情報!B85) -> 
A60: 56 | I60: 0 | L60: 0 | M60: 0 | N60: =IF(基本情報!B86="","",基本情報!B86) -> 
A61: 57 | I61: 0 | L61: 0 | M61: 0 | N61: =IF(基本情報!B87="","",基本情報!B87) -> 
A62: 58 | I62: 0 | L62: 0 | M62: 0 | N62: =IF(基本情報!B88="","",基本情報!B88) -> 
A63: 59 | I63: 0 | L63: 0 | M63: 0 | N63: =IF(基本情報!B89="","",基本情報!B89) -> 
A64: 60 | I64: 0 | L64: 0 | M64: 0
A65: 61 | I65: 0 | L65: 0 | M65: 0
A66: 62 | I66: 0 | L66: 0 | M66: 0
A67: 63 | I67: 0 | L67: 0 | M67: 0
A68: 64 | I68: 0 | L68: 0 | M68: 0
A69: 65 | I69: =ROUND(ROUND(E69,2)*ROUND(G69,2),0) -> 0 | L69: =IF($H69<>"非課税",$I69,0) -> 0 | M69: =IF($H69="非課税",$I69,0) -> 0
A70: =A69+1 -> 66 | I70: 0 | L70: 0 | M70: 0
A71: 67 | I71: 0 | L71: 0 | M71: 0
A72: 68 | I72: 0 | L72: 0 | M72: 0
A73: 69 | I73: 0 | L73: 0 | M73: 0
A74: 70 | I74: 0 | L74: 0 | M74: 0
A75: 71 | I75: 0 | L75: 0 | M75: 0
A76: 72 | I76: 0 | L76: 0 | M76: 0
A77: 73 | I77: 0 | L77: 0 | M77: 0
A78: 74 | I78: 0 | L78: 0 | M78: 0
A79: 75 | I79: 0 | L79: 0 | M79: 0
A80: 76 | I80: 0 | L80: 0 | M80: 0
A81: 77 | I81: 0 | L81: 0 | M81: 0
A82: 78 | I82: 0 | L82: 0 | M82: 0
A83: 79 | I83: 0 | L83: 0 | M83: 0
A84: 80 | I84: 0 | L84: 0 | M84: 0
A85: 81 | I85: 0 | L85: 0 | M85: 0
A86: 82 | I86: 0 | L86: 0 | M86: 0
A87: 83 | I87: 0 | L87: 0 | M87: 0
A88: 84 | I88: 0 | L88: 0 | M88: 0
A89: 85 | I89: 0 | L89: 0 | M89: 0
A90: 86 | I90: 0 | L90: 0 | M90: 0
A91: 87 | I91: 0 | L91: 0 | M91: 0
A92: 88 | I92: 0 | L92: 0 | M92: 0
A93: 89 | I93: 0 | L93: 0 | M93: 0
A94: 90 | I94: 0 | L94: 0 | M94: 0
A95: 91 | I95: 0 | L95: 0 | M95: 0
A96: 92 | I96: 0 | L96: 0 | M96: 0
A97: 93 | I97: 0 | L97: 0 | M97: 0
A98: 94 | I98: 0 | L98: 0 | M98: 0
A99: 95 | I99: 0 | L99: 0 | M99: 0
A100: 96 | I100: 0 | L100: 0 | M100: 0
A101: 97 | I101: 0 | L101: 0 | M101: 0
A102: 98 | I102: 0 | L102: 0 | M102: 0
A103: 99 | I103: 0 | L103: 0 | M103: 0
A104: 100 | I104: 0 | L104: 0 | M104: 0
A105: 101 | I105: 0 | L105: 0 | M105: 0
A106: 102 | I106: 0 | L106: 0 | M106: 0
A107: 103 | I107: 0 | L107: 0 | M107: 0
A108: 104 | I108: 0 | L108: 0 | M108: 0
A109: 105 | I109: 0 | L109: 0 | M109: 0
A110: 106 | I110: 0 | L110: 0 | M110: 0
A111: 107 | I111: 0 | L111: 0 | M111: 0
A112: 108 | I112: 0 | L112: 0 | M112: 0
A113: 109 | I113: 0 | L113: 0 | M113: 0
A114: 110 | I114: 0 | L114: 0 | M114: 0
A115: 111 | I115: 0 | L115: 0 | M115: 0
A116: 112 | I116: 0 | L116: 0 | M116: 0
A117: 113 | I117: 0 | L117: 0 | M117: 0
A118: 114 | I118: 0 | L118: 0 | M118: 0
A119: 115 | I119: 0 | L119: 0 | M119: 0
A120: 116 | I120: 0 | L120: 0 | M120: 0
A121: 117 | I121: 0 | L121: 0 | M121: 0
A122: 118 | I122: 0 | L122: 0 | M122: 0
A123: 119 | I123: 0 | L123: 0 | M123: 0
A124: 120 | I124: 0 | L124: 0 | M124: 0
A125: 121 | I125: 0 | L125: 0 | M125: 0
A126: 122 | I126: 0 | L126: 0 | M126: 0
A127: 123 | I127: 0 | L127: 0 | M127: 0
A128: 124 | I128: 0 | L128: 0 | M128: 0
A129: 125 | I129: 0 | L129: 0 | M129: 0
A130: 126 | I130: 0 | L130: 0 | M130: 0
A131: 127 | I131: 0 | L131: 0 | M131: 0
A132: 128 | I132: 0 | L132: 0 | M132: 0
A133: 129 | I133: =ROUND(ROUND(E133,2)*ROUND(G133,2),0) -> 0 | L133: =IF($H133<>"非課税",$I133,0) -> 0 | M133: =IF($H133="非課税",$I133,0) -> 0
A134: =A133+1 -> 130 | I134: 0 | L134: 0 | M134: 0
A135: 131 | I135: 0 | L135: 0 | M135: 0
A136: 132 | I136: 0 | L136: 0 | M136: 0
A137: 133 | I137: 0 | L137: 0 | M137: 0
A138: 134 | I138: 0 | L138: 0 | M138: 0
A139: 135 | I139: 0 | L139: 0 | M139: 0
A140: 136 | I140: 0 | L140: 0 | M140: 0
A141: 137 | I141: 0 | L141: 0 | M141: 0
A142: 138 | I142: 0 | L142: 0 | M142: 0
A143: 139 | I143: 0 | L143: 0 | M143: 0
A144: 140 | I144: 0 | L144: 0 | M144: 0
A145: 141 | I145: 0 | L145: 0 | M145: 0
A146: 142 | I146: 0 | L146: 0 | M146: 0
A147: 143 | I147: 0 | L147: 0 | M147: 0
A148: 144 | I148: 0 | L148: 0 | M148: 0
A149: 145 | I149: 0 | L149: 0 | M149: 0
A150: 146 | I150: 0 | L150: 0 | M150: 0
A151: 147 | I151: 0 | L151: 0 | M151: 0
A152: 148 | I152: 0 | L152: 0 | M152: 0
A153: 149 | I153: 0 | L153: 0 | M153: 0
A154: 150 | I154: 0 | L154: 0 | M154: 0
A155: 151 | I155: 0 | L155: 0 | M155: 0
A156: 152 | I156: 0 | L156: 0 | M156: 0
A157: 153 | I157: 0 | L157: 0 | M157: 0
A158: 154 | I158: 0 | L158: 0 | M158: 0
A159: 155 | I159: 0 | L159: 0 | M159: 0
A160: 156 | I160: 0 | L160: 0 | M160: 0
A161: 157 | I161: 0 | L161: 0 | M161: 0
A162: 158 | I162: 0 | L162: 0 | M162: 0
A163: 159 | I163: 0 | L163: 0 | M163: 0
A164: 160 | I164: 0 | L164: 0 | M164: 0
A165: 161 | I165: 0 | L165: 0 | M165: 0
A166: 162 | I166: 0 | L166: 0 | M166: 0
A167: 163 | I167: 0 | L167: 0 | M167: 0
A168: 164 | I168: 0 | L168: 0 | M168: 0
A169: 165 | I169: 0 | L169: 0 | M169: 0
A170: 166 | I170: 0 | L170: 0 | M170: 0
A171: 167 | I171: 0 | L171: 0 | M171: 0
A172: 168 | I172: 0 | L172: 0 | M172: 0
A173: 169 | I173: 0 | L173: 0 | M173: 0
A174: 170 | I174: 0 | L174: 0 | M174: 0
A175: 171 | I175: 0 | L175: 0 | M175: 0
A176: 172 | I176: 0 | L176: 0 | M176: 0
A177: 173 | I177: 0 | L177: 0 | M177: 0
A178: 174 | I178: 0 | L178: 0 | M178: 0
A179: 175 | I179: 0 | L179: 0 | M179: 0
A180: 176 | I180: 0 | L180: 0 | M180: 0
A181: 177 | I181: 0 | L181: 0 | M181: 0
A182: 178 | I182: 0 | L182: 0 | M182: 0
A183: 179 | I183: 0 | L183: 0 | M183: 0
A184: 180 | I184: 0 | L184: 0 | M184: 0
A185: 181 | I185: 0 | L185: 0 | M185: 0
A186: 182 | I186: 0 | L186: 0 | M186: 0
A187: 183 | I187: 0 | L187: 0 | M187: 0
A188: 184 | I188: 0 | L188: 0 | M188: 0
A189: 185 | I189: 0 | L189: 0 | M189: 0
A190: 186 | I190: 0 | L190: 0 | M190: 0
A191: 187 | I191: 0 | L191: 0 | M191: 0
A192: 188 | I192: 0 | L192: 0 | M192: 0
A193: 189 | I193: 0 | L193: 0 | M193: 0
A194: 190 | I194: 0 | L194: 0 | M194: 0
A195: 191 | I195: 0 | L195: 0 | M195: 0
A196: 192 | I196: 0 | L196: 0 | M196: 0
A197: 193 | I197: =ROUND(ROUND(E197,2)*ROUND(G197,2),0) -> 0 | L197: =IF($H197<>"非課税",$I197,0) -> 0 | M197: =IF($H197="非課税",$I197,0) -> 0
A198: =A197+1 -> 194 | I198: 0 | L198: 0 | M198: 0
A199: 195 | I199: 0 | L199: 0 | M199: 0
A200: 196 | I200: 0 | L200: 0 | M200: 0
A201: 197 | I201: 0 | L201: 0 | M201: 0
... 103 more rows

Sheet ひな請求書 (hidden)
B1: 請求書（鏡）（一般用） | BW1: ="P 1/"&COUNTA(基本情報_工事名称1, 基本情報_工事名称2, 基本情報_工事名称3) -> P 1/1
AC2: 変更時当社記入欄 | AV2: 取引先コード | AY2: =基本情報_取引先コード -> 999999 | AZ2: 締 日 | BE2: =基本情報_請求締日 -> 2020-07-31
A3: 丸高・みなと特定建設工事共同企業体 御中 | BJ3: 振込銀行 | BN3: =基本情報_銀行名 -> きらやか | BU3: 銀 行 | BV3: =基本情報_支店名 -> 酒田 | CC3: 支 店
A4: 下記の通り御請求申し上げます。 | M4: ="税率 ( " & (基本情報_消費税率*100) & "% )" -> 税率 ( 10% ) | AW4: （住所） | AY4: =基本情報_住所 -> 酒田市○○○○１－１ | BJ4: 銀行ｺｰﾄﾞ | BN4: 4桁 | BP4: =基本情報_銀行コード -> 508 | BU4: 支店 ｺｰﾄﾞ | BW4: 3桁 | BY4: =基本情報_支店コード -> 443
A5: 前月請求額 | C5: =getnumketa(基本情報_前月請求額,9) ->  | D5: =getnumketa(基本情報_前月請求額,8) ->  | E5: =getnumketa(基本情報_前月請求額,7) ->  | F5: =getnumketa(基本情報_前月請求額,6) ->  | G5: =getnumketa(基本情報_前月請求額,5) ->  | H5: =getnumketa(基本情報_前月請求額,4) ->  | I5: =getnumketa(基本情報_前月請求額,3) ->  | J5: =getnumketa(基本情報_前月請求額,2) ->  | K5: =getnumketa(基本情報_前月請求額,1) -> 0 | M5: 税抜金額計 | S5: =getnumketa(基本情報_合計税抜金額+基本情報_合計非課税金額,9) ->  | T5: =getnumketa(基本情報_合計税抜金額+基本情報_合計非課税金額,8) ->  | U5: =getnumketa(基本情報_合計税抜金額+基本情報_合計非課税金額,7) ->  | V5: =getnumketa(基本情報_合計税抜金額+基本情報_合計非課税金額,6) -> 8 | W5: =getnumketa(基本情報_合計税抜金額+基本情報_合計非課税金額,5) -> 5 | X5: =getnumketa(基本情報_合計税抜金額+基本情報_合計非課税金額,4) -> 1 | Y5: =getnumketa(基本情報_合計税抜金額+基本情報_合計非課税金額,3) -> 1 | Z5: =getnumketa(基本情報_合計税抜金額+基本情報_合計非課税金額,2) -> 2 | AA5: =getnumketa(基本情報_合計税抜金額+基本情報_合計非課税金額,1) -> 1 | AW5: （社名） | AY5: =基本情報_社名 -> (株）○○建設 | BJ5: 口座番号 | BN5: =基本情報_口座種別 -> 当 座 | BS5: =基本情報_口座番号 -> 1234567
A6: 入 金 額 | C6: =getnumketa(基本情報_入金額,9) ->  | D6: =getnumketa(基本情報_入金額,8) ->  | E6: =getnumketa(基本情報_入金額,7) ->  | F6: =getnumketa(基本情報_入金額,6) ->  | G6: =getnumketa(基本情報_入金額,5) ->  | H6: =getnumketa(基本情報_入金額,4) ->  | I6: =getnumketa(基本情報_入金額,3) ->  | J6: =getnumketa(基本情報_入金額,2) ->  | K6: =getnumketa(基本情報_入金額,1) -> 0 | M6: 請求明細 消費税合計 | S6: =getnumketa(基本情報_合計消費税額,9) ->  | T6: =getnumketa(基本情報_合計消費税額,8) ->  | U6: =getnumketa(基本情報_合計消費税額,7) ->  | V6: =getnumketa(基本情報_合計消費税額,6) ->  | W6: =getnumketa(基本情報_合計消費税額,5) -> 8 | X6: =getnumketa(基本情報_合計消費税額,4) -> 5 | Y6: =getnumketa(基本情報_合計消費税額,3) -> 0 | Z6: =getnumketa(基本情報_合計消費税額,2) -> 8 | AA6: =getnumketa(基本情報_合計消費税額,1) -> 0 | BF6: 印 | BJ6: 口座名義:漢字
A7: 値 引 額 | C7: =getnumketa(基本情報_値引額,9) ->  | D7: =getnumketa(基本情報_値引額,8) ->  | E7: =getnumketa(基本情報_値引額,7) ->  | F7: =getnumketa(基本情報_値引額,6) ->  | G7: =getnumketa(基本情報_値引額,5) ->  | H7: =getnumketa(基本情報_値引額,4) ->  | I7: =getnumketa(基本情報_値引額,3) ->  | J7: =getnumketa(基本情報_値引額,2) ->  | K7: =getnumketa(基本情報_値引額,1) -> 0 | M7: 税込当月請求額 | S7: =getnumketa(基本情報_合計税込金額,9) ->  | T7: =getnumketa(基本情報_合計税込金額,8) ->  | U7: =getnumketa(基本情報_合計税込金額,7) ->  | V7: =getnumketa(基本情報_合計税込金額,6) -> 9 | W7: =getnumketa(基本情報_合計税込金額,5) -> 3 | X7: =getnumketa(基本情報_合計税込金額,4) -> 6 | Y7: =getnumketa(基本情報_合計税込金額,3) -> 2 | Z7: =getnumketa(基本情報_合計税込金額,2) -> 0 | AA7: =getnumketa(基本情報_合計税込金額,1) -> 1 | AW7: （電話） | AY7: =基本情報_電話番号 -> 0234 - 00 - 0000 | BJ7: =基本情報_口座名義漢字 -> (株）○○建設
A8: 繰越金額 | C8: =getnumketa(基本情報_繰越金額,9) ->  | D8: =getnumketa(基本情報_繰越金額,8) ->  | E8: =getnumketa(基本情報_繰越金額,7) ->  | F8: =getnumketa(基本情報_繰越金額,6) ->  | G8: =getnumketa(基本情報_繰越金額,5) ->  | H8: =getnumketa(基本情報_繰越金額,4) ->  | I8: =getnumketa(基本情報_繰越金額,3) ->  | J8: =getnumketa(基本情報_繰越金額,2) ->  | K8: =getnumketa(基本情報_繰越金額,1) -> 0 | M8: 税込当月総請求額 | S8: =getnumketa(基本情報_合計請求額,9) ->  | T8: =getnumketa(基本情報_合計請求額,8) ->  | U8: =getnumketa(基本情報_合計請求額,7) ->  | V8: =getnumketa(基本情報_合計請求額,6) -> 9 | W8: =getnumketa(基本情報_合計請求額,5) -> 3 | X8: =getnumketa(基本情報_合計請求額,4) -> 6 | Y8: =getnumketa(基本情報_合計請求額,3) -> 2 | Z8: =getnumketa(基本情報_合計請求額,2) -> 0 | AA8: =getnumketa(基本情報_合計請求額,1) -> 1 | BJ8: 口座名義:カナ | BP8: =基本情報_口座名義カナ -> ｶ)ﾏﾙﾏﾙｹﾝｾﾂ
A9: 工 事 名 | L9: ＣＫ | N9: 税抜金額 | W9: 消費税 | AF9: 税込金額 | AX9: 工 事 名 | BA9: ＣＫ | BB9: 税抜金額 | BL9: 消費税 | BT9: 税込金額
A10: =基本情報!$B30 -> ○○○○○工事 | N10: =getNumKeta0(基本情報!$E30+基本情報!$F30,9) ->  | O10: =getNumKeta0(基本情報!$E30+基本情報!$F30,8) ->  | P10: =getNumKeta0(基本情報!$E30+基本情報!$F30,7) ->  | Q10: =getNumKeta0(基本情報!$E30+基本情報!$F30,6) -> 3 | R10: =getNumKeta0(基本情報!$E30+基本情報!$F30,5) -> 5 | S10: =getNumKeta0(基本情報!$E30+基本情報!$F30,4) -> 1 | T10: =getNumKeta0(基本情報!$E30+基本情報!$F30,3) -> 1 | U10: =getNumKeta0(基本情報!$E30+基本情報!$F30,2) -> 2 | V10: =getNumKeta0(基本情報!$E30+基本情報!$F30,1) -> 1 | W10: =getNumKeta0(基本情報!$G30,7) ->  | X10: =getNumKeta0(基本情報!$G30,6) ->  | Y10: =getNumKeta0(基本情報!$G30,5) -> 3 | Z10: =getNumKeta0(基本情報!$G30,4) -> 5 | AA10: =getNumKeta0(基本情報!$G30,3) -> 0 | AB10: =getNumKeta0(基本情報!$G30,2) -> 8 | AC10: =getnumketa(基本情報!M31,1) -> 0 | AD10: =getNumKeta0(基本情報!$G30,1) -> 0 | AF10: =getNumKeta0(基本情報!$H30,9) ->  | AH10: =getNumKeta0(基本情報!$H30,8) ->  | AJ10: =getNumKeta0(基本情報!$H30,7) ->  | AL10: =getNumKeta0(基本情報!$H30,6) -> 3 | AN10: =getNumKeta0(基本情報!$H30,5) -> 8 | AP10: =getNumKeta0(基本情報!$H30,4) -> 6 | AR10: =getNumKeta0(基本情報!$H30,3) -> 2 | AT10: =getNumKeta0(基本情報!$H30,2) -> 0 | AW10: =getNumKeta0(基本情報!$H30,1) -> 1 | AX10: =基本情報!$B42 -> 0 | BB10: =getNumKeta0(基本情報!$E42+基本情報!$F42,9) ->  | BC10: =getNumKeta0(基本情報!$E42+基本情報!$F42,8) ->  | BD10: =getNumKeta0(基本情報!$E42+基本情報!$F42,7) ->  | BE10: =getnumketa(基本情報!AQ31,6) ->  | BF10: =getNumKeta0(基本情報!$E42+基本情報!$F42,6) ->  | BG10: =getNumKeta0(基本情報!$E42+基本情報!$F42,5) ->  | BH10: =getNumKeta0(基本情報!$E42+基本情報!$F42,4) ->  | BI10: =getNumKeta0(基本情報!$E42+基本情報!$F42,3) ->  | BJ10: =getNumKeta0(基本情報!$E42+基本情報!$F42,2) ->  | BK10: =getNumKeta0(基本情報!$E42+基本情報!$F42,1) ->  | BL10: =getNumKeta0(基本情報!$G42,7) ->  | BM10: =getNumKeta0(基本情報!$G42,6) ->  | BN10: =getNumKeta0(基本情報!$G42,5) ->  | BO10: =getNumKeta0(基本情報!$G42,4) ->  | BP10: =getnumketa(基本情報!N43,4) ->  | BQ10: =getNumKeta0(基本情報!$G42,3) ->  | BR10: =getNumKeta0(基本情報!$G42,2) ->  | BS10: =getNumKeta0(基本情報!$G42,1) ->  | BT10: =getNumKeta0(基本情報!$H42,9) ->  | BU10: =getNumKeta0(基本情報!$H42,8) ->  | BV10: =getNumKeta0(基本情報!$H42,7) ->  | BW10: =getNumKeta0(基本情報!$H42,6) ->  | BX10: =getNumKeta0(基本情報!$H42,5) ->  | BZ10: =getNumKeta0(基本情報!$H42,4) ->  | CA10: =getNumKeta0(基本情報!$H42,3) ->  | CB10: =getNumKeta0(基本情報!$H42,2) ->  | CC10: =getNumKeta0(基本情報!$H42,1) -> 
A11: =基本情報!$B31 -> ×××××工事 | N11: =getNumKeta0(基本情報!$E31+基本情報!$F31,9) ->  | O11: =getNumKeta0(基本情報!$E31+基本情報!$F31,8) ->  | P11: =getNumKeta0(基本情報!$E31+基本情報!$F31,7) ->  | Q11: =getNumKeta0(基本情報!$E31+基本情報!$F31,6) -> 5 | R11: =getNumKeta0(基本情報!$E31+基本情報!$F31,5) -> 0 | S11: =getNumKeta0(基本情報!$E31+基本情報!$F31,4) -> 0 | T11: =getNumKeta0(基本情報!$E31+基本情報!$F31,3) -> 0 | U11: =getNumKeta0(基本情報!$E31+基本情報!$F31,2) -> 0 | V11: =getNumKeta0(基本情報!$E31+基本情報!$F31,1) -> 0 | W11: =getNumKeta0(基本情報!$G31,7) ->  | X11: =getNumKeta0(基本情報!$G31,6) ->  | Y11: =getNumKeta0(基本情報!$G31,5) -> 5 | Z11: =getNumKeta0(基本情報!$G31,4) -> 0 | AA11: =getNumKeta0(基本情報!$G31,3) -> 0 | AB11: =getNumKeta0(基本情報!$G31,2) -> 0 | AC11: =getnumketa(基本情報!M32,1) -> 0 | AD11: =getNumKeta0(基本情報!$G31,1) -> 0 | AF11: =getNumKeta0(基本情報!$H31,9) ->  | AH11: =getNumKeta0(基本情報!$H31,8) ->  | AJ11: =getNumKeta0(基本情報!$H31,7) ->  | AL11: =getNumKeta0(基本情報!$H31,6) -> 5 | AN11: =getNumKeta0(基本情報!$H31,5) -> 5 | AP11: =getNumKeta0(基本情報!$H31,4) -> 0 | AR11: =getNumKeta0(基本情報!$H31,3) -> 0 | AT11: =getNumKeta0(基本情報!$H31,2) -> 0 | AW11: =getNumKeta0(基本情報!$H31,1) -> 0 | AX11: =基本情報!$B43 -> 0 | BB11: =getNumKeta0(基本情報!$E43+基本情報!$F43,9) ->  | BC11: =getNumKeta0(基本情報!$E43+基本情報!$F43,8) ->  | BD11: =getNumKeta0(基本情報!$E43+基本情報!$F43,7) ->  | BE11: =getnumketa(基本情報!AQ32,6) ->  | BF11: =getNumKeta0(基本情報!$E43+基本情報!$F43,6) ->  | BG11: =getNumKeta0(基本情報!$E43+基本情報!$F43,5) ->  | BH11: =getNumKeta0(基本情報!$E43+基本情報!$F43,4) ->  | BI11: =getNumKeta0(基本情報!$E43+基本情報!$F43,3) ->  | BJ11: =getNumKeta0(基本情報!$E43+基本情報!$F43,2) ->  | BK11: =getNumKeta0(基本情報!$E43+基本情報!$F43,1) ->  | BL11: =getNumKeta0(基本情報!$G43,7) ->  | BM11: =getNumKeta0(基本情報!$G43,6) ->  | BN11: =getNumKeta0(基本情報!$G43,5) ->  | BO11: =getNumKeta0(基本情報!$G43,4) ->  | BP11: =getnumketa(基本情報!N44,4) ->  | BQ11: =getNumKeta0(基本情報!$G43,3) ->  | BR11: =getNumKeta0(基本情報!$G43,2) ->  | BS11: =getNumKeta0(基本情報!$G43,1) ->  | BT11: =getNumKeta0(基本情報!$H43,9) ->  | BU11: =getNumKeta0(基本情報!$H43,8) ->  | BV11: =getNumKeta0(基本情報!$H43,7) ->  | BW11: =getNumKeta0(基本情報!$H43,6) ->  | BX11: =getNumKeta0(基本情報!$H43,5) ->  | BZ11: =getNumKeta0(基本情報!$H43,4) ->  | CA11: =getNumKeta0(基本情報!$H43,3) ->  | CB11: =getNumKeta0(基本情報!$H43,2) ->  | CC11: =getNumKeta0(基本情報!$H43,1) -> 
A12: =基本情報!$B32 -> 0 | N12: =getNumKeta0(基本情報!$E32+基本情報!$F32,9) ->  | O12: =getNumKeta0(基本情報!$E32+基本情報!$F32,8) ->  | P12: =getNumKeta0(基本情報!$E32+基本情報!$F32,7) ->  | Q12: =getNumKeta0(基本情報!$E32+基本情報!$F32,6) ->  | R12: =getNumKeta0(基本情報!$E32+基本情報!$F32,5) ->  | S12: =getNumKeta0(基本情報!$E32+基本情報!$F32,4) ->  | T12: =getNumKeta0(基本情報!$E32+基本情報!$F32,3) ->  | U12: =getNumKeta0(基本情報!$E32+基本情報!$F32,2) ->  | V12: =getNumKeta0(基本情報!$E32+基本情報!$F32,1) ->  | W12: =getNumKeta0(基本情報!$G32,7) ->  | X12: =getNumKeta0(基本情報!$G32,6) ->  | Y12: =getNumKeta0(基本情報!$G32,5) ->  | Z12: =getNumKeta0(基本情報!$G32,4) ->  | AA12: =getNumKeta0(基本情報!$G32,3) ->  | AB12: =getNumKeta0(基本情報!$G32,2) ->  | AC12: =getnumketa(基本情報!M33,1) -> 0 | AD12: =getNumKeta0(基本情報!$G32,1) ->  | AF12: =getNumKeta0(基本情報!$H32,9) ->  | AH12: =getNumKeta0(基本情報!$H32,8) ->  | AJ12: =getNumKeta0(基本情報!$H32,7) ->  | AL12: =getNumKeta0(基本情報!$H32,6) ->  | AN12: =getNumKeta0(基本情報!$H32,5) ->  | AP12: =getNumKeta0(基本情報!$H32,4) ->  | AR12: =getNumKeta0(基本情報!$H32,3) ->  | AT12: =getNumKeta0(基本情報!$H32,2) ->  | AW12: =getNumKeta0(基本情報!$H32,1) ->  | AX12: =基本情報!$B44 -> 0 | BB12: =getNumKeta0(基本情報!$E44+基本情報!$F44,9) ->  | BC12: =getNumKeta0(基本情報!$E44+基本情報!$F44,8) ->  | BD12: =getNumKeta0(基本情報!$E44+基本情報!$F44,7) ->  | BE12: =getnumketa(基本情報!AQ33,6) ->  | BF12: =getNumKeta0(基本情報!$E44+基本情報!$F44,6) ->  | BG12: =getNumKeta0(基本情報!$E44+基本情報!$F44,5) ->  | BH12: =getNumKeta0(基本情報!$E44+基本情報!$F44,4) ->  | BI12: =getNumKeta0(基本情報!$E44+基本情報!$F44,3) ->  | BJ12: =getNumKeta0(基本情報!$E44+基本情報!$F44,2) ->  | BK12: =getNumKeta0(基本情報!$E44+基本情報!$F44,1) ->  | BL12: =getNumKeta0(基本情報!$G44,7) ->  | BM12: =getNumKeta0(基本情報!$G44,6) ->  | BN12: =getNumKeta0(基本情報!$G44,5) ->  | BO12: =getNumKeta0(基本情報!$G44,4) ->  | BP12: =getnumketa(基本情報!N45,4) ->  | BQ12: =getNumKeta0(基本情報!$G44,3) ->  | BR12: =getNumKeta0(基本情報!$G44,2) ->  | BS12: =getNumKeta0(基本情報!$G44,1) ->  | BT12: =getNumKeta0(基本情報!$H44,9) ->  | BU12: =getNumKeta0(基本情報!$H44,8) ->  | BV12: =getNumKeta0(基本情報!$H44,7) ->  | BW12: =getNumKeta0(基本情報!$H44,6) ->  | BX12: =getNumKeta0(基本情報!$H44,5) ->  | BZ12: =getNumKeta0(基本情報!$H44,4) ->  | CA12: =getNumKeta0(基本情報!$H44,3) ->  | CB12: =getNumKeta0(基本情報!$H44,2) ->  | CC12: =getNumKeta0(基本情報!$H44,1) -> 
A13: =基本情報!$B33 -> 0 | N13: =getNumKeta0(基本情報!$E33+基本情報!$F33,9) ->  | O13: =getNumKeta0(基本情報!$E33+基本情報!$F33,8) ->  | P13: =getNumKeta0(基本情報!$E33+基本情報!$F33,7) ->  | Q13: =getNumKeta0(基本情報!$E33+基本情報!$F33,6) ->  | R13: =getNumKeta0(基本情報!$E33+基本情報!$F33,5) ->  | S13: =getNumKeta0(基本情報!$E33+基本情報!$F33,4) ->  | T13: =getNumKeta0(基本情報!$E33+基本情報!$F33,3) ->  | U13: =getNumKeta0(基本情報!$E33+基本情報!$F33,2) ->  | V13: =getNumKeta0(基本情報!$E33+基本情報!$F33,1) ->  | W13: =getNumKeta0(基本情報!$G33,7) ->  | X13: =getNumKeta0(基本情報!$G33,6) ->  | Y13: =getNumKeta0(基本情報!$G33,5) ->  | Z13: =getNumKeta0(基本情報!$G33,4) ->  | AA13: =getNumKeta0(基本情報!$G33,3) ->  | AB13: =getNumKeta0(基本情報!$G33,2) ->  | AC13: =getnumketa(基本情報!M34,1) -> 0 | AD13: =getNumKeta0(基本情報!$G33,1) ->  | AF13: =getNumKeta0(基本情報!$H33,9) ->  | AH13: =getNumKeta0(基本情報!$H33,8) ->  | AJ13: =getNumKeta0(基本情報!$H33,7) ->  | AL13: =getNumKeta0(基本情報!$H33,6) ->  | AN13: =getNumKeta0(基本情報!$H33,5) ->  | AP13: =getNumKeta0(基本情報!$H33,4) ->  | AR13: =getNumKeta0(基本情報!$H33,3) ->  | AT13: =getNumKeta0(基本情報!$H33,2) ->  | AW13: =getNumKeta0(基本情報!$H33,1) ->  | AX13: =基本情報!$B45 -> 0 | BB13: =getNumKeta0(基本情報!$E45+基本情報!$F45,9) ->  | BC13: =getNumKeta0(基本情報!$E45+基本情報!$F45,8) ->  | BD13: =getNumKeta0(基本情報!$E45+基本情報!$F45,7) ->  | BE13: =getnumketa(基本情報!AQ34,6) ->  | BF13: =getNumKeta0(基本情報!$E45+基本情報!$F45,6) ->  | BG13: =getNumKeta0(基本情報!$E45+基本情報!$F45,5) ->  | BH13: =getNumKeta0(基本情報!$E45+基本情報!$F45,4) ->  | BI13: =getNumKeta0(基本情報!$E45+基本情報!$F45,3) ->  | BJ13: =getNumKeta0(基本情報!$E45+基本情報!$F45,2) ->  | BK13: =getNumKeta0(基本情報!$E45+基本情報!$F45,1) ->  | BL13: =getNumKeta0(基本情報!$G45,7) ->  | BM13: =getNumKeta0(基本情報!$G45,6) ->  | BN13: =getNumKeta0(基本情報!$G45,5) ->  | BO13: =getNumKeta0(基本情報!$G45,4) ->  | BP13: =getnumketa(基本情報!N46,4) ->  | BQ13: =getNumKeta0(基本情報!$G45,3) ->  | BR13: =getNumKeta0(基本情報!$G45,2) ->  | BS13: =getNumKeta0(基本情報!$G45,1) ->  | BT13: =getNumKeta0(基本情報!$H45,9) ->  | BU13: =getNumKeta0(基本情報!$H45,8) ->  | BV13: =getNumKeta0(基本情報!$H45,7) ->  | BW13: =getNumKeta0(基本情報!$H45,6) ->  | BX13: =getNumKeta0(基本情報!$H45,5) ->  | BZ13: =getNumKeta0(基本情報!$H45,4) ->  | CA13: =getNumKeta0(基本情報!$H45,3) ->  | CB13: =getNumKeta0(基本情報!$H45,2) ->  | CC13: =getNumKeta0(基本情報!$H45,1) -> 
A14: =基本情報!$B34 -> 0 | N14: =getNumKeta0(基本情報!$E34+基本情報!$F34,9) ->  | O14: =getNumKeta0(基本情報!$E34+基本情報!$F34,8) ->  | P14: =getNumKeta0(基本情報!$E34+基本情報!$F34,7) ->  | Q14: =getNumKeta0(基本情報!$E34+基本情報!$F34,6) ->  | R14: =getNumKeta0(基本情報!$E34+基本情報!$F34,5) ->  | S14: =getNumKeta0(基本情報!$E34+基本情報!$F34,4) ->  | T14: =getNumKeta0(基本情報!$E34+基本情報!$F34,3) ->  | U14: =getNumKeta0(基本情報!$E34+基本情報!$F34,2) ->  | V14: =getNumKeta0(基本情報!$E34+基本情報!$F34,1) ->  | W14: =getNumKeta0(基本情報!$G34,7) ->  | X14: =getNumKeta0(基本情報!$G34,6) ->  | Y14: =getNumKeta0(基本情報!$G34,5) ->  | Z14: =getNumKeta0(基本情報!$G34,4) ->  | AA14: =getNumKeta0(基本情報!$G34,3) ->  | AB14: =getNumKeta0(基本情報!$G34,2) ->  | AC14: =getnumketa(基本情報!M35,1) -> 0 | AD14: =getNumKeta0(基本情報!$G34,1) ->  | AF14: =getNumKeta0(基本情報!$H34,9) ->  | AH14: =getNumKeta0(基本情報!$H34,8) ->  | AJ14: =getNumKeta0(基本情報!$H34,7) ->  | AL14: =getNumKeta0(基本情報!$H34,6) ->  | AN14: =getNumKeta0(基本情報!$H34,5) ->  | AP14: =getNumKeta0(基本情報!$H34,4) ->  | AR14: =getNumKeta0(基本情報!$H34,3) ->  | AT14: =getNumKeta0(基本情報!$H34,2) ->  | AW14: =getNumKeta0(基本情報!$H34,1) ->  | AX14: =基本情報!$B46 -> 0 | BB14: =getNumKeta0(基本情報!$E46+基本情報!$F46,9) ->  | BC14: =getNumKeta0(基本情報!$E46+基本情報!$F46,8) ->  | BD14: =getNumKeta0(基本情報!$E46+基本情報!$F46,7) ->  | BE14: =getnumketa(基本情報!AQ35,6) ->  | BF14: =getNumKeta0(基本情報!$E46+基本情報!$F46,6) ->  | BG14: =getNumKeta0(基本情報!$E46+基本情報!$F46,5) ->  | BH14: =getNumKeta0(基本情報!$E46+基本情報!$F46,4) ->  | BI14: =getNumKeta0(基本情報!$E46+基本情報!$F46,3) ->  | BJ14: =getNumKeta0(基本情報!$E46+基本情報!$F46,2) ->  | BK14: =getNumKeta0(基本情報!$E46+基本情報!$F46,1) ->  | BL14: =getNumKeta0(基本情報!$G46,7) ->  | BM14: =getNumKeta0(基本情報!$G46,6) ->  | BN14: =getNumKeta0(基本情報!$G46,5) ->  | BO14: =getNumKeta0(基本情報!$G46,4) ->  | BP14: =getnumketa(基本情報!N47,4) ->  | BQ14: =getNumKeta0(基本情報!$G46,3) ->  | BR14: =getNumKeta0(基本情報!$G46,2) ->  | BS14: =getNumKeta0(基本情報!$G46,1) ->  | BT14: =getNumKeta0(基本情報!$H46,9) ->  | BU14: =getNumKeta0(基本情報!$H46,8) ->  | BV14: =getNumKeta0(基本情報!$H46,7) ->  | BW14: =getNumKeta0(基本情報!$H46,6) ->  | BX14: =getNumKeta0(基本情報!$H46,5) ->  | BZ14: =getNumKeta0(基本情報!$H46,4) ->  | CA14: =getNumKeta0(基本情報!$H46,3) ->  | CB14: =getNumKeta0(基本情報!$H46,2) ->  | CC14: =getNumKeta0(基本情報!$H46,1) -> 
A15: =基本情報!$B35 -> 0 | N15: =getNumKeta0(基本情報!$E35+基本情報!$F35,9) ->  | O15: =getNumKeta0(基本情報!$E35+基本情報!$F35,8) ->  | P15: =getNumKeta0(基本情報!$E35+基本情報!$F35,7) ->  | Q15: =getNumKeta0(基本情報!$E35+基本情報!$F35,6) ->  | R15: =getNumKeta0(基本情報!$E35+基本情報!$F35,5) ->  | S15: =getNumKeta0(基本情報!$E35+基本情報!$F35,4) ->  | T15: =getNumKeta0(基本情報!$E35+基本情報!$F35,3) ->  | U15: =getNumKeta0(基本情報!$E35+基本情報!$F35,2) ->  | V15: =getNumKeta0(基本情報!$E35+基本情報!$F35,1) ->  | W15: =getNumKeta0(基本情報!$G35,7) ->  | X15: =getNumKeta0(基本情報!$G35,6) ->  | Y15: =getNumKeta0(基本情報!$G35,5) ->  | Z15: =getNumKeta0(基本情報!$G35,4) ->  | AA15: =getNumKeta0(基本情報!$G35,3) ->  | AB15: =getNumKeta0(基本情報!$G35,2) ->  | AC15: =getnumketa(基本情報!M36,1) -> 0 | AD15: =getNumKeta0(基本情報!$G35,1) ->  | AF15: =getNumKeta0(基本情報!$H35,9) ->  | AH15: =getNumKeta0(基本情報!$H35,8) ->  | AJ15: =getNumKeta0(基本情報!$H35,7) ->  | AL15: =getNumKeta0(基本情報!$H35,6) ->  | AN15: =getNumKeta0(基本情報!$H35,5) ->  | AP15: =getNumKeta0(基本情報!$H35,4) ->  | AR15: =getNumKeta0(基本情報!$H35,3) ->  | AT15: =getNumKeta0(基本情報!$H35,2) ->  | AW15: =getNumKeta0(基本情報!$H35,1) ->  | AX15: =基本情報!$B47 -> 0 | BB15: =getNumKeta0(基本情報!$E47+基本情報!$F47,9) ->  | BC15: =getNumKeta0(基本情報!$E47+基本情報!$F47,8) ->  | BD15: =getNumKeta0(基本情報!$E47+基本情報!$F47,7) ->  | BE15: =getnumketa(基本情報!AQ36,6) ->  | BF15: =getNumKeta0(基本情報!$E47+基本情報!$F47,6) ->  | BG15: =getNumKeta0(基本情報!$E47+基本情報!$F47,5) ->  | BH15: =getNumKeta0(基本情報!$E47+基本情報!$F47,4) ->  | BI15: =getNumKeta0(基本情報!$E47+基本情報!$F47,3) ->  | BJ15: =getNumKeta0(基本情報!$E47+基本情報!$F47,2) ->  | BK15: =getNumKeta0(基本情報!$E47+基本情報!$F47,1) ->  | BL15: =getNumKeta0(基本情報!$G47,7) ->  | BM15: =getNumKeta0(基本情報!$G47,6) ->  | BN15: =getNumKeta0(基本情報!$G47,5) ->  | BO15: =getNumKeta0(基本情報!$G47,4) ->  | BP15: =getnumketa(基本情報!N48,4) ->  | BQ15: =getNumKeta0(基本情報!$G47,3) ->  | BR15: =getNumKeta0(基本情報!$G47,2) ->  | BS15: =getNumKeta0(基本情報!$G47,1) ->  | BT15: =getNumKeta0(基本情報!$H47,9) ->  | BU15: =getNumKeta0(基本情報!$H47,8) ->  | BV15: =getNumKeta0(基本情報!$H47,7) ->  | BW15: =getNumKeta0(基本情報!$H47,6) ->  | BX15: =getNumKeta0(基本情報!$H47,5) ->  | BZ15: =getNumKeta0(基本情報!$H47,4) ->  | CA15: =getNumKeta0(基本情報!$H47,3) ->  | CB15: =getNumKeta0(基本情報!$H47,2) ->  | CC15: =getNumKeta0(基本情報!$H47,1) -> 
A16: =基本情報!$B36 -> 0 | N16: =getNumKeta0(基本情報!$E36+基本情報!$F36,9) ->  | O16: =getNumKeta0(基本情報!$E36+基本情報!$F36,8) ->  | P16: =getNumKeta0(基本情報!$E36+基本情報!$F36,7) ->  | Q16: =getNumKeta0(基本情報!$E36+基本情報!$F36,6) ->  | R16: =getNumKeta0(基本情報!$E36+基本情報!$F36,5) ->  | S16: =getNumKeta0(基本情報!$E36+基本情報!$F36,4) ->  | T16: =getNumKeta0(基本情報!$E36+基本情報!$F36,3) ->  | U16: =getNumKeta0(基本情報!$E36+基本情報!$F36,2) ->  | V16: =getNumKeta0(基本情報!$E36+基本情報!$F36,1) ->  | W16: =getNumKeta0(基本情報!$G36,7) ->  | X16: =getNumKeta0(基本情報!$G36,6) ->  | Y16: =getNumKeta0(基本情報!$G36,5) ->  | Z16: =getNumKeta0(基本情報!$G36,4) ->  | AA16: =getNumKeta0(基本情報!$G36,3) ->  | AB16: =getNumKeta0(基本情報!$G36,2) ->  | AC16: =getnumketa(基本情報!M37,1) -> 0 | AD16: =getNumKeta0(基本情報!$G36,1) ->  | AF16: =getNumKeta0(基本情報!$H36,9) ->  | AH16: =getNumKeta0(基本情報!$H36,8) ->  | AJ16: =getNumKeta0(基本情報!$H36,7) ->  | AL16: =getNumKeta0(基本情報!$H36,6) ->  | AN16: =getNumKeta0(基本情報!$H36,5) ->  | AP16: =getNumKeta0(基本情報!$H36,4) ->  | AR16: =getNumKeta0(基本情報!$H36,3) ->  | AT16: =getNumKeta0(基本情報!$H36,2) ->  | AW16: =getNumKeta0(基本情報!$H36,1) ->  | AX16: =基本情報!$B48 -> 0 | BB16: =getNumKeta0(基本情報!$E48+基本情報!$F48,9) ->  | BC16: =getNumKeta0(基本情報!$E48+基本情報!$F48,8) ->  | BD16: =getNumKeta0(基本情報!$E48+基本情報!$F48,7) ->  | BE16: =getnumketa(基本情報!AQ37,6) ->  | BF16: =getNumKeta0(基本情報!$E48+基本情報!$F48,6) ->  | BG16: =getNumKeta0(基本情報!$E48+基本情報!$F48,5) ->  | BH16: =getNumKeta0(基本情報!$E48+基本情報!$F48,4) ->  | BI16: =getNumKeta0(基本情報!$E48+基本情報!$F48,3) ->  | BJ16: =getNumKeta0(基本情報!$E48+基本情報!$F48,2) ->  | BK16: =getNumKeta0(基本情報!$E48+基本情報!$F48,1) ->  | BL16: =getNumKeta0(基本情報!$G48,7) ->  | BM16: =getNumKeta0(基本情報!$G48,6) ->  | BN16: =getNumKeta0(基本情報!$G48,5) ->  | BO16: =getNumKeta0(基本情報!$G48,4) ->  | BP16: =getnumketa(基本情報!N49,4) ->  | BQ16: =getNumKeta0(基本情報!$G48,3) ->  | BR16: =getNumKeta0(基本情報!$G48,2) ->  | BS16: =getNumKeta0(基本情報!$G48,1) ->  | BT16: =getNumKeta0(基本情報!$H48,9) ->  | BU16: =getNumKeta0(基本情報!$H48,8) ->  | BV16: =getNumKeta0(基本情報!$H48,7) ->  | BW16: =getNumKeta0(基本情報!$H48,6) ->  | BX16: =getNumKeta0(基本情報!$H48,5) ->  | BZ16: =getNumKeta0(基本情報!$H48,4) ->  | CA16: =getNumKeta0(基本情報!$H48,3) ->  | CB16: =getNumKeta0(基本情報!$H48,2) ->  | CC16: =getNumKeta0(基本情報!$H48,1) -> 
A17: =基本情報!$B37 -> 0 | N17: =getNumKeta0(基本情報!$E37+基本情報!$F37,9) ->  | O17: =getNumKeta0(基本情報!$E37+基本情報!$F37,8) ->  | P17: =getNumKeta0(基本情報!$E37+基本情報!$F37,7) ->  | Q17: =getNumKeta0(基本情報!$E37+基本情報!$F37,6) ->  | R17: =getNumKeta0(基本情報!$E37+基本情報!$F37,5) ->  | S17: =getNumKeta0(基本情報!$E37+基本情報!$F37,4) ->  | T17: =getNumKeta0(基本情報!$E37+基本情報!$F37,3) ->  | U17: =getNumKeta0(基本情報!$E37+基本情報!$F37,2) ->  | V17: =getNumKeta0(基本情報!$E37+基本情報!$F37,1) ->  | W17: =getNumKeta0(基本情報!$G37,7) ->  | X17: =getNumKeta0(基本情報!$G37,6) ->  | Y17: =getNumKeta0(基本情報!$G37,5) ->  | Z17: =getNumKeta0(基本情報!$G37,4) ->  | AA17: =getNumKeta0(基本情報!$G37,3) ->  | AB17: =getNumKeta0(基本情報!$G37,2) ->  | AC17: =getnumketa(基本情報!M38,1) -> 0 | AD17: =getNumKeta0(基本情報!$G37,1) ->  | AF17: =getNumKeta0(基本情報!$H37,9) ->  | AH17: =getNumKeta0(基本情報!$H37,8) ->  | AJ17: =getNumKeta0(基本情報!$H37,7) ->  | AL17: =getNumKeta0(基本情報!$H37,6) ->  | AN17: =getNumKeta0(基本情報!$H37,5) ->  | AP17: =getNumKeta0(基本情報!$H37,4) ->  | AR17: =getNumKeta0(基本情報!$H37,3) ->  | AT17: =getNumKeta0(基本情報!$H37,2) ->  | AW17: =getNumKeta0(基本情報!$H37,1) ->  | AX17: =基本情報!$B49 -> 0 | BB17: =getNumKeta0(基本情報!$E49+基本情報!$F49,9) ->  | BC17: =getNumKeta0(基本情報!$E49+基本情報!$F49,8) ->  | BD17: =getNumKeta0(基本情報!$E49+基本情報!$F49,7) ->  | BE17: =getnumketa(基本情報!AQ38,6) ->  | BF17: =getNumKeta0(基本情報!$E49+基本情報!$F49,6) ->  | BG17: =getNumKeta0(基本情報!$E49+基本情報!$F49,5) ->  | BH17: =getNumKeta0(基本情報!$E49+基本情報!$F49,4) ->  | BI17: =getNumKeta0(基本情報!$E49+基本情報!$F49,3) ->  | BJ17: =getNumKeta0(基本情報!$E49+基本情報!$F49,2) ->  | BK17: =getNumKeta0(基本情報!$E49+基本情報!$F49,1) ->  | BL17: =getNumKeta0(基本情報!$G49,7) ->  | BM17: =getNumKeta0(基本情報!$G49,6) ->  | BN17: =getNumKeta0(基本情報!$G49,5) ->  | BO17: =getNumKeta0(基本情報!$G49,4) ->  | BP17: =getnumketa(基本情報!N50,4) ->  | BQ17: =getNumKeta0(基本情報!$G49,3) ->  | BR17: =getNumKeta0(基本情報!$G49,2) ->  | BS17: =getNumKeta0(基本情報!$G49,1) ->  | BT17: =getNumKeta0(基本情報!$H49,9) ->  | BU17: =getNumKeta0(基本情報!$H49,8) ->  | BV17: =getNumKeta0(基本情報!$H49,7) ->  | BW17: =getNumKeta0(基本情報!$H49,6) ->  | BX17: =getNumKeta0(基本情報!$H49,5) ->  | BZ17: =getNumKeta0(基本情報!$H49,4) ->  | CA17: =getNumKeta0(基本情報!$H49,3) ->  | CB17: =getNumKeta0(基本情報!$H49,2) ->  | CC17: =getNumKeta0(基本情報!$H49,1) -> 
A18: =基本情報!$B38 -> 0 | N18: =getNumKeta0(基本情報!$E38+基本情報!$F38,9) ->  | O18: =getNumKeta0(基本情報!$E38+基本情報!$F38,8) ->  | P18: =getNumKeta0(基本情報!$E38+基本情報!$F38,7) ->  | Q18: =getNumKeta0(基本情報!$E38+基本情報!$F38,6) ->  | R18: =getNumKeta0(基本情報!$E38+基本情報!$F38,5) ->  | S18: =getNumKeta0(基本情報!$E38+基本情報!$F38,4) ->  | T18: =getNumKeta0(基本情報!$E38+基本情報!$F38,3) ->  | U18: =getNumKeta0(基本情報!$E38+基本情報!$F38,2) ->  | V18: =getNumKeta0(基本情報!$E38+基本情報!$F38,1) ->  | W18: =getNumKeta0(基本情報!$G38,7) ->  | X18: =getNumKeta0(基本情報!$G38,6) ->  | Y18: =getNumKeta0(基本情報!$G38,5) ->  | Z18: =getNumKeta0(基本情報!$G38,4) ->  | AA18: =getNumKeta0(基本情報!$G38,3) ->  | AB18: =getNumKeta0(基本情報!$G38,2) ->  | AC18: =getnumketa(基本情報!M39,1) -> 0 | AD18: =getNumKeta0(基本情報!$G38,1) ->  | AF18: =getNumKeta0(基本情報!$H38,9) ->  | AH18: =getNumKeta0(基本情報!$H38,8) ->  | AJ18: =getNumKeta0(基本情報!$H38,7) ->  | AL18: =getNumKeta0(基本情報!$H38,6) ->  | AN18: =getNumKeta0(基本情報!$H38,5) ->  | AP18: =getNumKeta0(基本情報!$H38,4) ->  | AR18: =getNumKeta0(基本情報!$H38,3) ->  | AT18: =getNumKeta0(基本情報!$H38,2) ->  | AW18: =getNumKeta0(基本情報!$H38,1) ->  | AX18: 小 計 ・ 合 計 | BB18: =getnumketa(基本情報_合計税抜金額1,9) ->  | BC18: =getnumketa(基本情報_合計税抜金額1,8) ->  | BD18: =getnumketa(基本情報_合計税抜金額1,7) ->  | BF18: =getnumketa(基本情報_合計税抜金額1,6) -> 8 | BG18: =getnumketa(基本情報_合計税抜金額1,5) -> 5 | BH18: =getnumketa(基本情報_合計税抜金額1,4) -> 1 | BI18: =getnumketa(基本情報_合計税抜金額1,3) -> 1 | BJ18: =getnumketa(基本情報_合計税抜金額1,2) -> 2 | BK18: =getnumketa(基本情報_合計税抜金額1,1) -> 1 | BL18: =getnumketa(基本情報_合計消費税額1,7) ->  | BM18: =getnumketa(基本情報_合計消費税額1,6) ->  | BN18: =getnumketa(基本情報_合計消費税額1,5) -> 8 | BO18: =getnumketa(基本情報_合計消費税額1,4) -> 5 | BQ18: =getnumketa(基本情報_合計消費税額1,3) -> 0 | BR18: =getnumketa(基本情報_合計消費税額1,2) -> 8 | BS18: =getnumketa(基本情報_合計消費税額1,1) -> 0 | BT18: =getnumketa(基本情報_合計税込金額1,9) ->  | BU18: =getnumketa(基本情報_合計税込金額1,8) ->  | BV18: =getnumketa(基本情報_合計税込金額1,7) ->  | BW18: =getnumketa(基本情報_合計税込金額1,6) -> 9 | BX18: =getnumketa(基本情報_合計税込金額1,5) -> 3 | BZ18: =getnumketa(基本情報_合計税込金額1,4) -> 6 | CA18: =getnumketa(基本情報_合計税込金額1,3) -> 2 | CB18: =getnumketa(基本情報_合計税込金額1,2) -> 0 | CC18: =getnumketa(基本情報_合計税込金額1,1) -> 1
A19: =基本情報!$B39 -> 0 | N19: =getNumKeta0(基本情報!$E39+基本情報!$F39,9) ->  | O19: =getNumKeta0(基本情報!$E39+基本情報!$F39,8) ->  | P19: =getNumKeta0(基本情報!$E39+基本情報!$F39,7) ->  | Q19: =getNumKeta0(基本情報!$E39+基本情報!$F39,6) ->  | R19: =getNumKeta0(基本情報!$E39+基本情報!$F39,5) ->  | S19: =getNumKeta0(基本情報!$E39+基本情報!$F39,4) ->  | T19: =getNumKeta0(基本情報!$E39+基本情報!$F39,3) ->  | U19: =getNumKeta0(基本情報!$E39+基本情報!$F39,2) ->  | V19: =getNumKeta0(基本情報!$E39+基本情報!$F39,1) ->  | W19: =getNumKeta0(基本情報!$G39,7) ->  | X19: =getNumKeta0(基本情報!$G39,6) ->  | Y19: =getNumKeta0(基本情報!$G39,5) ->  | Z19: =getNumKeta0(基本情報!$G39,4) ->  | AA19: =getNumKeta0(基本情報!$G39,3) ->  | AB19: =getNumKeta0(基本情報!$G39,2) ->  | AC19: =getnumketa(基本情報!M40,1) -> 0 | AD19: =getNumKeta0(基本情報!$G39,1) ->  | AF19: =getNumKeta0(基本情報!$H39,9) ->  | AH19: =getNumKeta0(基本情報!$H39,8) ->  | AJ19: =getNumKeta0(基本情報!$H39,7) ->  | AL19: =getNumKeta0(基本情報!$H39,6) ->  | AN19: =getNumKeta0(基本情報!$H39,5) ->  | AP19: =getNumKeta0(基本情報!$H39,4) ->  | AR19: =getNumKeta0(基本情報!$H39,3) ->  | AT19: =getNumKeta0(基本情報!$H39,2) ->  | AW19: =getNumKeta0(基本情報!$H39,1) -> 
A20: =基本情報!$B40 -> 0 | N20: =getNumKeta0(基本情報!$E40+基本情報!$F40,9) ->  | O20: =getNumKeta0(基本情報!$E40+基本情報!$F40,8) ->  | P20: =getNumKeta0(基本情報!$E40+基本情報!$F40,7) ->  | Q20: =getNumKeta0(基本情報!$E40+基本情報!$F40,6) ->  | R20: =getNumKeta0(基本情報!$E40+基本情報!$F40,5) ->  | S20: =getNumKeta0(基本情報!$E40+基本情報!$F40,4) ->  | T20: =getNumKeta0(基本情報!$E40+基本情報!$F40,3) ->  | U20: =getNumKeta0(基本情報!$E40+基本情報!$F40,2) ->  | V20: =getNumKeta0(基本情報!$E40+基本情報!$F40,1) ->  | W20: =getNumKeta0(基本情報!$G40,7) ->  | X20: =getNumKeta0(基本情報!$G40,6) ->  | Y20: =getNumKeta0(基本情報!$G40,5) ->  | Z20: =getNumKeta0(基本情報!$G40,4) ->  | AA20: =getNumKeta0(基本情報!$G40,3) ->  | AB20: =getNumKeta0(基本情報!$G40,2) ->  | AC20: =getnumketa(基本情報!M41,1) -> 0 | AD20: =getNumKeta0(基本情報!$G40,1) ->  | AF20: =getNumKeta0(基本情報!$H40,9) ->  | AH20: =getNumKeta0(基本情報!$H40,8) ->  | AJ20: =getNumKeta0(基本情報!$H40,7) ->  | AL20: =getNumKeta0(基本情報!$H40,6) ->  | AN20: =getNumKeta0(基本情報!$H40,5) ->  | AP20: =getNumKeta0(基本情報!$H40,4) ->  | AR20: =getNumKeta0(基本情報!$H40,3) ->  | AT20: =getNumKeta0(基本情報!$H40,2) ->  | AW20: =getNumKeta0(基本情報!$H40,1) ->  | AX20: 訂正内容
A21: =基本情報!$B41 -> 0 | N21: =getNumKeta0(基本情報!$E41+基本情報!$F41,9) ->  | O21: =getNumKeta0(基本情報!$E41+基本情報!$F41,8) ->  | P21: =getNumKeta0(基本情報!$E41+基本情報!$F41,7) ->  | Q21: =getNumKeta0(基本情報!$E41+基本情報!$F41,6) ->  | R21: =getNumKeta0(基本情報!$E41+基本情報!$F41,5) ->  | S21: =getNumKeta0(基本情報!$E41+基本情報!$F41,4) ->  | T21: =getNumKeta0(基本情報!$E41+基本情報!$F41,3) ->  | U21: =getNumKeta0(基本情報!$E41+基本情報!$F41,2) ->  | V21: =getNumKeta0(基本情報!$E41+基本情報!$F41,1) ->  | W21: =getNumKeta0(基本情報!$G41,7) ->  | X21: =getNumKeta0(基本情報!$G41,6) ->  | Y21: =getNumKeta0(基本情報!$G41,5) ->  | Z21: =getNumKeta0(基本情報!$G41,4) ->  | AA21: =getNumKeta0(基本情報!$G41,3) ->  | AB21: =getNumKeta0(基本情報!$G41,2) ->  | AC21: =getnumketa(基本情報!M42,1) -> 0 | AD21: =getNumKeta0(基本情報!$G41,1) ->  | AF21: =getNumKeta0(基本情報!$H41,9) ->  | AH21: =getNumKeta0(基本情報!$H41,8) ->  | AJ21: =getNumKeta0(基本情報!$H41,7) ->  | AL21: =getNumKeta0(基本情報!$H41,6) ->  | AN21: =getNumKeta0(基本情報!$H41,5) ->  | AP21: =getNumKeta0(基本情報!$H41,4) ->  | AR21: =getNumKeta0(基本情報!$H41,3) ->  | AT21: =getNumKeta0(基本情報!$H41,2) ->  | AW21: =getNumKeta0(基本情報!$H41,1) -> 
B23: （注） | C23: １．請求書の締切日は、原則末日５日迄提出願います。又、支払は締の翌月20日となります。
C24: 但し、提出期限が当社休日の場合は前日とし、支払日は翌銀行営業日と致します。
C25: 尚、例外として4月と12月は、締日と必着日が毎年異なりますので十分ご注意ください。（別紙カレンダー参照）
C26: 期日迄に提出されない場合は、翌月計上となります。
C27: ２．当社への登録内容に変更を生じた場合は、速やかに「取引情報（新規・変更）届出書」を提出願います。 | AZ27: 貴社→経理(控)
B28: 請求書（鏡）（一般用） | BW28: ="P 2/"&COUNTA(基本情報_工事名称1, 基本情報_工事名称2, 基本情報_工事名称3) -> P 2/1
AC29: 変更時当社記入欄 | AV29: 取引先コード | AY29: =基本情報_取引先コード -> 999999 | AZ29: 締 日 | BE29: =基本情報_請求締日 -> 2020-07-31
A30: 丸高・みなと特定建設工事共同企業体 御中 | BJ30: 振込銀行 | BN30: =基本情報_銀行名 -> きらやか | BU30: 銀 行 | BV30: =基本情報_支店名 -> 酒田 | CC30: 支 店
A31: 下記の通り御請求申し上げます。 | M31: ="税率 ( " & (基本情報_消費税率*100) & "% )" -> 税率 ( 10% ) | AW31: （住所） | AY31: =基本情報_住所 -> 酒田市○○○○１－１ | BJ31: 銀行ｺｰﾄﾞ | BN31: 4桁 | BP31: =基本情報_銀行コード -> 508 | BU31: 支店 ｺｰﾄﾞ | BW31: 3桁 | BY31: =基本情報_支店コード -> 443
A32: 前月請求額 | M32: 税抜金額計 | AW32: （社名） | AY32: =基本情報_社名 -> (株）○○建設 | BJ32: 口座番号 | BN32: =基本情報_口座種別 -> 当 座 | BS32: =基本情報_口座番号 -> 1234567
A33: 入 金 額 | M33: 請求明細 消費税合計 | BF33: 印 | BJ33: 口座名義:漢字
A34: 値 引 額 | M34: 税込当月請求額 | AW34: （電話） | AY34: =基本情報_電話番号 -> 0234 - 00 - 0000 | BJ34: =基本情報_口座名義漢字 -> (株）○○建設
A35: 繰越金額 | M35: 税込当月総請求額 | BJ35: 口座名義:カナ | BP35: =基本情報_口座名義カナ -> ｶ)ﾏﾙﾏﾙｹﾝｾﾂ
A36: 工 事 名 | L36: ＣＫ | N36: 税抜金額 | W36: 消費税 | AF36: 税込金額 | AX36: 工 事 名 | BA36: ＣＫ | BB36: 税抜金額 | BL36: 消費税 | BT36: 税込金額
A37: =基本情報!$B50 -> 0 | N37: =getNumKeta0(基本情報!$E50+基本情報!$F50,9) ->  | O37: =getNumKeta0(基本情報!$E50+基本情報!$F50,8) ->  | P37: =getNumKeta0(基本情報!$E50+基本情報!$F50,7) ->  | Q37: =getNumKeta0(基本情報!$E50+基本情報!$F50,6) ->  | R37: =getNumKeta0(基本情報!$E50+基本情報!$F50,5) ->  | S37: =getNumKeta0(基本情報!$E50+基本情報!$F50,4) ->  | T37: =getNumKeta0(基本情報!$E50+基本情報!$F50,3) ->  | U37: =getNumKeta0(基本情報!$E50+基本情報!$F50,2) ->  | V37: =getNumKeta0(基本情報!$E50+基本情報!$F50,1) ->  | W37: =getNumKeta0(基本情報!$G50,7) ->  | X37: =getNumKeta0(基本情報!$G50,6) ->  | Y37: =getNumKeta0(基本情報!$G50,5) ->  | Z37: =getNumKeta0(基本情報!$G50,4) ->  | AA37: =getNumKeta0(基本情報!$G50,3) ->  | AB37: =getNumKeta0(基本情報!$G50,2) ->  | AC37: =getnumketa(基本情報!M58,1) -> 0 | AD37: =getNumKeta0(基本情報!$G50,1) ->  | AF37: =getNumKeta0(基本情報!$H50,9) ->  | AH37: =getNumKeta0(基本情報!$H50,8) ->  | AJ37: =getNumKeta0(基本情報!$H50,7) ->  | AL37: =getNumKeta0(基本情報!$H50,6) ->  | AN37: =getNumKeta0(基本情報!$H50,5) ->  | AP37: =getNumKeta0(基本情報!$H50,4) ->  | AR37: =getNumKeta0(基本情報!$H50,3) ->  | AT37: =getNumKeta0(基本情報!$H50,2) ->  | AW37: =getNumKeta0(基本情報!$H50,1) ->  | AX37: =基本情報!$B62 -> 0 | BB37: =getNumKeta0(基本情報!$E62+基本情報!$F62,9) ->  | BC37: =getNumKeta0(基本情報!$E62+基本情報!$F62,8) ->  | BD37: =getNumKeta0(基本情報!$E62+基本情報!$F62,7) ->  | BE37: =getnumketa(基本情報!AQ58,6) ->  | BF37: =getNumKeta0(基本情報!$E62+基本情報!$F62,6) ->  | BG37: =getNumKeta0(基本情報!$E62+基本情報!$F62,5) ->  | BH37: =getNumKeta0(基本情報!$E62+基本情報!$F62,4) ->  | BI37: =getNumKeta0(基本情報!$E62+基本情報!$F62,3) ->  | BJ37: =getNumKeta0(基本情報!$E62+基本情報!$F62,2) ->  | BK37: =getNumKeta0(基本情報!$E62+基本情報!$F62,1) ->  | BL37: =getNumKeta0(基本情報!$G62,7) ->  | BM37: =getNumKeta0(基本情報!$G62,6) ->  | BN37: =getNumKeta0(基本情報!$G62,5) ->  | BO37: =getNumKeta0(基本情報!$G62,4) ->  | BP37: =getnumketa(基本情報!N70,4) ->  | BQ37: =getNumKeta0(基本情報!$G62,3) ->  | BR37: =getNumKeta0(基本情報!$G62,2) ->  | BS37: =getNumKeta0(基本情報!$G62,1) ->  | BT37: =getNumKeta0(基本情報!$H62,9) ->  | BU37: =getNumKeta0(基本情報!$H62,8) ->  | BV37: =getNumKeta0(基本情報!$H62,7) ->  | BW37: =getNumKeta0(基本情報!$H62,6) ->  | BX37: =getNumKeta0(基本情報!$H62,5) ->  | BZ37: =getNumKeta0(基本情報!$H62,4) ->  | CA37: =getNumKeta0(基本情報!$H62,3) ->  | CB37: =getNumKeta0(基本情報!$H62,2) ->  | CC37: =getNumKeta0(基本情報!$H62,1) -> 
A38: =基本情報!$B51 -> 0 | N38: =getNumKeta0(基本情報!$E51+基本情報!$F51,9) ->  | O38: =getNumKeta0(基本情報!$E51+基本情報!$F51,8) ->  | P38: =getNumKeta0(基本情報!$E51+基本情報!$F51,7) ->  | Q38: =getNumKeta0(基本情報!$E51+基本情報!$F51,6) ->  | R38: =getNumKeta0(基本情報!$E51+基本情報!$F51,5) ->  | S38: =getNumKeta0(基本情報!$E51+基本情報!$F51,4) ->  | T38: =getNumKeta0(基本情報!$E51+基本情報!$F51,3) ->  | U38: =getNumKeta0(基本情報!$E51+基本情報!$F51,2) ->  | V38: =getNumKeta0(基本情報!$E51+基本情報!$F51,1) ->  | W38: =getNumKeta0(基本情報!$G51,7) ->  | X38: =getNumKeta0(基本情報!$G51,6) ->  | Y38: =getNumKeta0(基本情報!$G51,5) ->  | Z38: =getNumKeta0(基本情報!$G51,4) ->  | AA38: =getNumKeta0(基本情報!$G51,3) ->  | AB38: =getNumKeta0(基本情報!$G51,2) ->  | AC38: =getnumketa(基本情報!M59,1) -> 0 | AD38: =getNumKeta0(基本情報!$G51,1) ->  | AF38: =getNumKeta0(基本情報!$H51,9) ->  | AH38: =getNumKeta0(基本情報!$H51,8) ->  | AJ38: =getNumKeta0(基本情報!$H51,7) ->  | AL38: =getNumKeta0(基本情報!$H51,6) ->  | AN38: =getNumKeta0(基本情報!$H51,5) ->  | AP38: =getNumKeta0(基本情報!$H51,4) ->  | AR38: =getNumKeta0(基本情報!$H51,3) ->  | AT38: =getNumKeta0(基本情報!$H51,2) ->  | AW38: =getNumKeta0(基本情報!$H51,1) ->  | AX38: =基本情報!$B63 -> 0 | BB38: =getNumKeta0(基本情報!$E63+基本情報!$F63,9) ->  | BC38: =getNumKeta0(基本情報!$E63+基本情報!$F63,8) ->  | BD38: =getNumKeta0(基本情報!$E63+基本情報!$F63,7) ->  | BE38: =getnumketa(基本情報!AQ59,6) ->  | BF38: =getNumKeta0(基本情報!$E63+基本情報!$F63,6) ->  | BG38: =getNumKeta0(基本情報!$E63+基本情報!$F63,5) ->  | BH38: =getNumKeta0(基本情報!$E63+基本情報!$F63,4) ->  | BI38: =getNumKeta0(基本情報!$E63+基本情報!$F63,3) ->  | BJ38: =getNumKeta0(基本情報!$E63+基本情報!$F63,2) ->  | BK38: =getNumKeta0(基本情報!$E63+基本情報!$F63,1) ->  | BL38: =getNumKeta0(基本情報!$G63,7) ->  | BM38: =getNumKeta0(基本情報!$G63,6) ->  | BN38: =getNumKeta0(基本情報!$G63,5) ->  | BO38: =getNumKeta0(基本情報!$G63,4) ->  | BP38: =getnumketa(基本情報!N71,4) ->  | BQ38: =getNumKeta0(基本情報!$G63,3) ->  | BR38: =getNumKeta0(基本情報!$G63,2) ->  | BS38: =getNumKeta0(基本情報!$G63,1) ->  | BT38: =getNumKeta0(基本情報!$H63,9) ->  | BU38: =getNumKeta0(基本情報!$H63,8) ->  | BV38: =getNumKeta0(基本情報!$H63,7) ->  | BW38: =getNumKeta0(基本情報!$H63,6) ->  | BX38: =getNumKeta0(基本情報!$H63,5) ->  | BZ38: =getNumKeta0(基本情報!$H63,4) ->  | CA38: =getNumKeta0(基本情報!$H63,3) ->  | CB38: =getNumKeta0(基本情報!$H63,2) ->  | CC38: =getNumKeta0(基本情報!$H63,1) -> 
A39: =基本情報!$B52 -> 0 | N39: =getNumKeta0(基本情報!$E52+基本情報!$F52,9) ->  | O39: =getNumKeta0(基本情報!$E52+基本情報!$F52,8) ->  | P39: =getNumKeta0(基本情報!$E52+基本情報!$F52,7) ->  | Q39: =getNumKeta0(基本情報!$E52+基本情報!$F52,6) ->  | R39: =getNumKeta0(基本情報!$E52+基本情報!$F52,5) ->  | S39: =getNumKeta0(基本情報!$E52+基本情報!$F52,4) ->  | T39: =getNumKeta0(基本情報!$E52+基本情報!$F52,3) ->  | U39: =getNumKeta0(基本情報!$E52+基本情報!$F52,2) ->  | V39: =getNumKeta0(基本情報!$E52+基本情報!$F52,1) ->  | W39: =getNumKeta0(基本情報!$G52,7) ->  | X39: =getNumKeta0(基本情報!$G52,6) ->  | Y39: =getNumKeta0(基本情報!$G52,5) ->  | Z39: =getNumKeta0(基本情報!$G52,4) ->  | AA39: =getNumKeta0(基本情報!$G52,3) ->  | AB39: =getNumKeta0(基本情報!$G52,2) ->  | AC39: =getnumketa(基本情報!M60,1) -> 0 | AD39: =getNumKeta0(基本情報!$G52,1) ->  | AF39: =getNumKeta0(基本情報!$H52,9) ->  | AH39: =getNumKeta0(基本情報!$H52,8) ->  | AJ39: =getNumKeta0(基本情報!$H52,7) ->  | AL39: =getNumKeta0(基本情報!$H52,6) ->  | AN39: =getNumKeta0(基本情報!$H52,5) ->  | AP39: =getNumKeta0(基本情報!$H52,4) ->  | AR39: =getNumKeta0(基本情報!$H52,3) ->  | AT39: =getNumKeta0(基本情報!$H52,2) ->  | AW39: =getNumKeta0(基本情報!$H52,1) ->  | AX39: =基本情報!$B64 -> 0 | BB39: =getNumKeta0(基本情報!$E64+基本情報!$F64,9) ->  | BC39: =getNumKeta0(基本情報!$E64+基本情報!$F64,8) ->  | BD39: =getNumKeta0(基本情報!$E64+基本情報!$F64,7) ->  | BE39: =getnumketa(基本情報!AQ60,6) ->  | BF39: =getNumKeta0(基本情報!$E64+基本情報!$F64,6) ->  | BG39: =getNumKeta0(基本情報!$E64+基本情報!$F64,5) ->  | BH39: =getNumKeta0(基本情報!$E64+基本情報!$F64,4) ->  | BI39: =getNumKeta0(基本情報!$E64+基本情報!$F64,3) ->  | BJ39: =getNumKeta0(基本情報!$E64+基本情報!$F64,2) ->  | BK39: =getNumKeta0(基本情報!$E64+基本情報!$F64,1) ->  | BL39: =getNumKeta0(基本情報!$G64,7) ->  | BM39: =getNumKeta0(基本情報!$G64,6) ->  | BN39: =getNumKeta0(基本情報!$G64,5) ->  | BO39: =getNumKeta0(基本情報!$G64,4) ->  | BP39: =getnumketa(基本情報!N72,4) ->  | BQ39: =getNumKeta0(基本情報!$G64,3) ->  | BR39: =getNumKeta0(基本情報!$G64,2) ->  | BS39: =getNumKeta0(基本情報!$G64,1) ->  | BT39: =getNumKeta0(基本情報!$H64,9) ->  | BU39: =getNumKeta0(基本情報!$H64,8) ->  | BV39: =getNumKeta0(基本情報!$H64,7) ->  | BW39: =getNumKeta0(基本情報!$H64,6) ->  | BX39: =getNumKeta0(基本情報!$H64,5) ->  | BZ39: =getNumKeta0(基本情報!$H64,4) ->  | CA39: =getNumKeta0(基本情報!$H64,3) ->  | CB39: =getNumKeta0(基本情報!$H64,2) ->  | CC39: =getNumKeta0(基本情報!$H64,1) -> 
A40: =基本情報!$B53 -> 0 | N40: =getNumKeta0(基本情報!$E53+基本情報!$F53,9) ->  | O40: =getNumKeta0(基本情報!$E53+基本情報!$F53,8) ->  | P40: =getNumKeta0(基本情報!$E53+基本情報!$F53,7) ->  | Q40: =getNumKeta0(基本情報!$E53+基本情報!$F53,6) ->  | R40: =getNumKeta0(基本情報!$E53+基本情報!$F53,5) ->  | S40: =getNumKeta0(基本情報!$E53+基本情報!$F53,4) ->  | T40: =getNumKeta0(基本情報!$E53+基本情報!$F53,3) ->  | U40: =getNumKeta0(基本情報!$E53+基本情報!$F53,2) ->  | V40: =getNumKeta0(基本情報!$E53+基本情報!$F53,1) ->  | W40: =getNumKeta0(基本情報!$G53,7) ->  | X40: =getNumKeta0(基本情報!$G53,6) ->  | Y40: =getNumKeta0(基本情報!$G53,5) ->  | Z40: =getNumKeta0(基本情報!$G53,4) ->  | AA40: =getNumKeta0(基本情報!$G53,3) ->  | AB40: =getNumKeta0(基本情報!$G53,2) ->  | AC40: =getnumketa(基本情報!M61,1) -> 0 | AD40: =getNumKeta0(基本情報!$G53,1) ->  | AF40: =getNumKeta0(基本情報!$H53,9) ->  | AH40: =getNumKeta0(基本情報!$H53,8) ->  | AJ40: =getNumKeta0(基本情報!$H53,7) ->  | AL40: =getNumKeta0(基本情報!$H53,6) ->  | AN40: =getNumKeta0(基本情報!$H53,5) ->  | AP40: =getNumKeta0(基本情報!$H53,4) ->  | AR40: =getNumKeta0(基本情報!$H53,3) ->  | AT40: =getNumKeta0(基本情報!$H53,2) ->  | AW40: =getNumKeta0(基本情報!$H53,1) ->  | AX40: =基本情報!$B65 -> 0 | BB40: =getNumKeta0(基本情報!$E65+基本情報!$F65,9) ->  | BC40: =getNumKeta0(基本情報!$E65+基本情報!$F65,8) ->  | BD40: =getNumKeta0(基本情報!$E65+基本情報!$F65,7) ->  | BE40: =getnumketa(基本情報!AQ61,6) ->  | BF40: =getNumKeta0(基本情報!$E65+基本情報!$F65,6) ->  | BG40: =getNumKeta0(基本情報!$E65+基本情報!$F65,5) ->  | BH40: =getNumKeta0(基本情報!$E65+基本情報!$F65,4) ->  | BI40: =getNumKeta0(基本情報!$E65+基本情報!$F65,3) ->  | BJ40: =getNumKeta0(基本情報!$E65+基本情報!$F65,2) ->  | BK40: =getNumKeta0(基本情報!$E65+基本情報!$F65,1) ->  | BL40: =getNumKeta0(基本情報!$G65,7) ->  | BM40: =getNumKeta0(基本情報!$G65,6) ->  | BN40: =getNumKeta0(基本情報!$G65,5) ->  | BO40: =getNumKeta0(基本情報!$G65,4) ->  | BP40: =getnumketa(基本情報!N73,4) ->  | BQ40: =getNumKeta0(基本情報!$G65,3) ->  | BR40: =getNumKeta0(基本情報!$G65,2) ->  | BS40: =getNumKeta0(基本情報!$G65,1) ->  | BT40: =getNumKeta0(基本情報!$H65,9) ->  | BU40: =getNumKeta0(基本情報!$H65,8) ->  | BV40: =getNumKeta0(基本情報!$H65,7) ->  | BW40: =getNumKeta0(基本情報!$H65,6) ->  | BX40: =getNumKeta0(基本情報!$H65,5) ->  | BZ40: =getNumKeta0(基本情報!$H65,4) ->  | CA40: =getNumKeta0(基本情報!$H65,3) ->  | CB40: =getNumKeta0(基本情報!$H65,2) ->  | CC40: =getNumKeta0(基本情報!$H65,1) -> 
A41: =基本情報!$B54 -> 0 | N41: =getNumKeta0(基本情報!$E54+基本情報!$F54,9) ->  | O41: =getNumKeta0(基本情報!$E54+基本情報!$F54,8) ->  | P41: =getNumKeta0(基本情報!$E54+基本情報!$F54,7) ->  | Q41: =getNumKeta0(基本情報!$E54+基本情報!$F54,6) ->  | R41: =getNumKeta0(基本情報!$E54+基本情報!$F54,5) ->  | S41: =getNumKeta0(基本情報!$E54+基本情報!$F54,4) ->  | T41: =getNumKeta0(基本情報!$E54+基本情報!$F54,3) ->  | U41: =getNumKeta0(基本情報!$E54+基本情報!$F54,2) ->  | V41: =getNumKeta0(基本情報!$E54+基本情報!$F54,1) ->  | W41: =getNumKeta0(基本情報!$G54,7) ->  | X41: =getNumKeta0(基本情報!$G54,6) ->  | Y41: =getNumKeta0(基本情報!$G54,5) ->  | Z41: =getNumKeta0(基本情報!$G54,4) ->  | AA41: =getNumKeta0(基本情報!$G54,3) ->  | AB41: =getNumKeta0(基本情報!$G54,2) ->  | AC41: =getnumketa(基本情報!M62,1) -> 0 | AD41: =getNumKeta0(基本情報!$G54,1) ->  | AF41: =getNumKeta0(基本情報!$H54,9) ->  | AH41: =getNumKeta0(基本情報!$H54,8) ->  | AJ41: =getNumKeta0(基本情報!$H54,7) ->  | AL41: =getNumKeta0(基本情報!$H54,6) ->  | AN41: =getNumKeta0(基本情報!$H54,5) ->  | AP41: =getNumKeta0(基本情報!$H54,4) ->  | AR41: =getNumKeta0(基本情報!$H54,3) ->  | AT41: =getNumKeta0(基本情報!$H54,2) ->  | AW41: =getNumKeta0(基本情報!$H54,1) ->  | AX41: =基本情報!$B66 -> 0 | BB41: =getNumKeta0(基本情報!$E66+基本情報!$F66,9) ->  | BC41: =getNumKeta0(基本情報!$E66+基本情報!$F66,8) ->  | BD41: =getNumKeta0(基本情報!$E66+基本情報!$F66,7) ->  | BE41: =getnumketa(基本情報!AQ62,6) ->  | BF41: =getNumKeta0(基本情報!$E66+基本情報!$F66,6) ->  | BG41: =getNumKeta0(基本情報!$E66+基本情報!$F66,5) ->  | BH41: =getNumKeta0(基本情報!$E66+基本情報!$F66,4) ->  | BI41: =getNumKeta0(基本情報!$E66+基本情報!$F66,3) ->  | BJ41: =getNumKeta0(基本情報!$E66+基本情報!$F66,2) ->  | BK41: =getNumKeta0(基本情報!$E66+基本情報!$F66,1) ->  | BL41: =getNumKeta0(基本情報!$G66,7) ->  | BM41: =getNumKeta0(基本情報!$G66,6) ->  | BN41: =getNumKeta0(基本情報!$G66,5) ->  | BO41: =getNumKeta0(基本情報!$G66,4) ->  | BP41: =getnumketa(基本情報!N74,4) ->  | BQ41: =getNumKeta0(基本情報!$G66,3) ->  | BR41: =getNumKeta0(基本情報!$G66,2) ->  | BS41: =getNumKeta0(基本情報!$G66,1) ->  | BT41: =getNumKeta0(基本情報!$H66,9) ->  | BU41: =getNumKeta0(基本情報!$H66,8) ->  | BV41: =getNumKeta0(基本情報!$H66,7) ->  | BW41: =getNumKeta0(基本情報!$H66,6) ->  | BX41: =getNumKeta0(基本情報!$H66,5) ->  | BZ41: =getNumKeta0(基本情報!$H66,4) ->  | CA41: =getNumKeta0(基本情報!$H66,3) ->  | CB41: =getNumKeta0(基本情報!$H66,2) ->  | CC41: =getNumKeta0(基本情報!$H66,1) -> 
A42: =基本情報!$B55 -> 0 | N42: =getNumKeta0(基本情報!$E55+基本情報!$F55,9) ->  | O42: =getNumKeta0(基本情報!$E55+基本情報!$F55,8) ->  | P42: =getNumKeta0(基本情報!$E55+基本情報!$F55,7) ->  | Q42: =getNumKeta0(基本情報!$E55+基本情報!$F55,6) ->  | R42: =getNumKeta0(基本情報!$E55+基本情報!$F55,5) ->  | S42: =getNumKeta0(基本情報!$E55+基本情報!$F55,4) ->  | T42: =getNumKeta0(基本情報!$E55+基本情報!$F55,3) ->  | U42: =getNumKeta0(基本情報!$E55+基本情報!$F55,2) ->  | V42: =getNumKeta0(基本情報!$E55+基本情報!$F55,1) ->  | W42: =getNumKeta0(基本情報!$G55,7) ->  | X42: =getNumKeta0(基本情報!$G55,6) ->  | Y42: =getNumKeta0(基本情報!$G55,5) ->  | Z42: =getNumKeta0(基本情報!$G55,4) ->  | AA42: =getNumKeta0(基本情報!$G55,3) ->  | AB42: =getNumKeta0(基本情報!$G55,2) ->  | AC42: =getnumketa(基本情報!M63,1) -> 0 | AD42: =getNumKeta0(基本情報!$G55,1) ->  | AF42: =getNumKeta0(基本情報!$H55,9) ->  | AH42: =getNumKeta0(基本情報!$H55,8) ->  | AJ42: =getNumKeta0(基本情報!$H55,7) ->  | AL42: =getNumKeta0(基本情報!$H55,6) ->  | AN42: =getNumKeta0(基本情報!$H55,5) ->  | AP42: =getNumKeta0(基本情報!$H55,4) ->  | AR42: =getNumKeta0(基本情報!$H55,3) ->  | AT42: =getNumKeta0(基本情報!$H55,2) ->  | AW42: =getNumKeta0(基本情報!$H55,1) ->  | AX42: =基本情報!$B67 -> 0 | BB42: =getNumKeta0(基本情報!$E67+基本情報!$F67,9) ->  | BC42: =getNumKeta0(基本情報!$E67+基本情報!$F67,8) ->  | BD42: =getNumKeta0(基本情報!$E67+基本情報!$F67,7) ->  | BE42: =getnumketa(基本情報!AQ63,6) ->  | BF42: =getNumKeta0(基本情報!$E67+基本情報!$F67,6) ->  | BG42: =getNumKeta0(基本情報!$E67+基本情報!$F67,5) ->  | BH42: =getNumKeta0(基本情報!$E67+基本情報!$F67,4) ->  | BI42: =getNumKeta0(基本情報!$E67+基本情報!$F67,3) ->  | BJ42: =getNumKeta0(基本情報!$E67+基本情報!$F67,2) ->  | BK42: =getNumKeta0(基本情報!$E67+基本情報!$F67,1) ->  | BL42: =getNumKeta0(基本情報!$G67,7) ->  | BM42: =getNumKeta0(基本情報!$G67,6) ->  | BN42: =getNumKeta0(基本情報!$G67,5) ->  | BO42: =getNumKeta0(基本情報!$G67,4) ->  | BP42: =getnumketa(基本情報!N75,4) ->  | BQ42: =getNumKeta0(基本情報!$G67,3) ->  | BR42: =getNumKeta0(基本情報!$G67,2) ->  | BS42: =getNumKeta0(基本情報!$G67,1) ->  | BT42: =getNumKeta0(基本情報!$H67,9) ->  | BU42: =getNumKeta0(基本情報!$H67,8) ->  | BV42: =getNumKeta0(基本情報!$H67,7) ->  | BW42: =getNumKeta0(基本情報!$H67,6) ->  | BX42: =getNumKeta0(基本情報!$H67,5) ->  | BZ42: =getNumKeta0(基本情報!$H67,4) ->  | CA42: =getNumKeta0(基本情報!$H67,3) ->  | CB42: =getNumKeta0(基本情報!$H67,2) ->  | CC42: =getNumKeta0(基本情報!$H67,1) -> 
A43: =基本情報!$B56 -> 0 | N43: =getNumKeta0(基本情報!$E56+基本情報!$F56,9) ->  | O43: =getNumKeta0(基本情報!$E56+基本情報!$F56,8) ->  | P43: =getNumKeta0(基本情報!$E56+基本情報!$F56,7) ->  | Q43: =getNumKeta0(基本情報!$E56+基本情報!$F56,6) ->  | R43: =getNumKeta0(基本情報!$E56+基本情報!$F56,5) ->  | S43: =getNumKeta0(基本情報!$E56+基本情報!$F56,4) ->  | T43: =getNumKeta0(基本情報!$E56+基本情報!$F56,3) ->  | U43: =getNumKeta0(基本情報!$E56+基本情報!$F56,2) ->  | V43: =getNumKeta0(基本情報!$E56+基本情報!$F56,1) ->  | W43: =getNumKeta0(基本情報!$G56,7) ->  | X43: =getNumKeta0(基本情報!$G56,6) ->  | Y43: =getNumKeta0(基本情報!$G56,5) ->  | Z43: =getNumKeta0(基本情報!$G56,4) ->  | AA43: =getNumKeta0(基本情報!$G56,3) ->  | AB43: =getNumKeta0(基本情報!$G56,2) ->  | AC43: =getnumketa(基本情報!M64,1) -> 0 | AD43: =getNumKeta0(基本情報!$G56,1) ->  | AF43: =getNumKeta0(基本情報!$H56,9) ->  | AH43: =getNumKeta0(基本情報!$H56,8) ->  | AJ43: =getNumKeta0(基本情報!$H56,7) ->  | AL43: =getNumKeta0(基本情報!$H56,6) ->  | AN43: =getNumKeta0(基本情報!$H56,5) ->  | AP43: =getNumKeta0(基本情報!$H56,4) ->  | AR43: =getNumKeta0(基本情報!$H56,3) ->  | AT43: =getNumKeta0(基本情報!$H56,2) ->  | AW43: =getNumKeta0(基本情報!$H56,1) ->  | AX43: =基本情報!$B68 -> 0 | BB43: =getNumKeta0(基本情報!$E68+基本情報!$F68,9) ->  | BC43: =getNumKeta0(基本情報!$E68+基本情報!$F68,8) ->  | BD43: =getNumKeta0(基本情報!$E68+基本情報!$F68,7) ->  | BE43: =getnumketa(基本情報!AQ64,6) ->  | BF43: =getNumKeta0(基本情報!$E68+基本情報!$F68,6) ->  | BG43: =getNumKeta0(基本情報!$E68+基本情報!$F68,5) ->  | BH43: =getNumKeta0(基本情報!$E68+基本情報!$F68,4) ->  | BI43: =getNumKeta0(基本情報!$E68+基本情報!$F68,3) ->  | BJ43: =getNumKeta0(基本情報!$E68+基本情報!$F68,2) ->  | BK43: =getNumKeta0(基本情報!$E68+基本情報!$F68,1) ->  | BL43: =getNumKeta0(基本情報!$G68,7) ->  | BM43: =getNumKeta0(基本情報!$G68,6) ->  | BN43: =getNumKeta0(基本情報!$G68,5) ->  | BO43: =getNumKeta0(基本情報!$G68,4) ->  | BP43: =getnumketa(基本情報!N76,4) ->  | BQ43: =getNumKeta0(基本情報!$G68,3) ->  | BR43: =getNumKeta0(基本情報!$G68,2) ->  | BS43: =getNumKeta0(基本情報!$G68,1) ->  | BT43: =getNumKeta0(基本情報!$H68,9) ->  | BU43: =getNumKeta0(基本情報!$H68,8) ->  | BV43: =getNumKeta0(基本情報!$H68,7) ->  | BW43: =getNumKeta0(基本情報!$H68,6) ->  | BX43: =getNumKeta0(基本情報!$H68,5) ->  | BZ43: =getNumKeta0(基本情報!$H68,4) ->  | CA43: =getNumKeta0(基本情報!$H68,3) ->  | CB43: =getNumKeta0(基本情報!$H68,2) ->  | CC43: =getNumKeta0(基本情報!$H68,1) -> 
A44: =基本情報!$B57 -> 0 | N44: =getNumKeta0(基本情報!$E57+基本情報!$F57,9) ->  | O44: =getNumKeta0(基本情報!$E57+基本情報!$F57,8) ->  | P44: =getNumKeta0(基本情報!$E57+基本情報!$F57,7) ->  | Q44: =getNumKeta0(基本情報!$E57+基本情報!$F57,6) ->  | R44: =getNumKeta0(基本情報!$E57+基本情報!$F57,5) ->  | S44: =getNumKeta0(基本情報!$E57+基本情報!$F57,4) ->  | T44: =getNumKeta0(基本情報!$E57+基本情報!$F57,3) ->  | U44: =getNumKeta0(基本情報!$E57+基本情報!$F57,2) ->  | V44: =getNumKeta0(基本情報!$E57+基本情報!$F57,1) ->  | W44: =getNumKeta0(基本情報!$G57,7) ->  | X44: =getNumKeta0(基本情報!$G57,6) ->  | Y44: =getNumKeta0(基本情報!$G57,5) ->  | Z44: =getNumKeta0(基本情報!$G57,4) ->  | AA44: =getNumKeta0(基本情報!$G57,3) ->  | AB44: =getNumKeta0(基本情報!$G57,2) ->  | AC44: =getnumketa(基本情報!M65,1) -> 0 | AD44: =getNumKeta0(基本情報!$G57,1) ->  | AF44: =getNumKeta0(基本情報!$H57,9) ->  | AH44: =getNumKeta0(基本情報!$H57,8) ->  | AJ44: =getNumKeta0(基本情報!$H57,7) ->  | AL44: =getNumKeta0(基本情報!$H57,6) ->  | AN44: =getNumKeta0(基本情報!$H57,5) ->  | AP44: =getNumKeta0(基本情報!$H57,4) ->  | AR44: =getNumKeta0(基本情報!$H57,3) ->  | AT44: =getNumKeta0(基本情報!$H57,2) ->  | AW44: =getNumKeta0(基本情報!$H57,1) ->  | AX44: =基本情報!$B69 -> 0 | BB44: =getNumKeta0(基本情報!$E69+基本情報!$F69,9) ->  | BC44: =getNumKeta0(基本情報!$E69+基本情報!$F69,8) ->  | BD44: =getNumKeta0(基本情報!$E69+基本情報!$F69,7) ->  | BE44: =getnumketa(基本情報!AQ65,6) ->  | BF44: =getNumKeta0(基本情報!$E69+基本情報!$F69,6) ->  | BG44: =getNumKeta0(基本情報!$E69+基本情報!$F69,5) ->  | BH44: =getNumKeta0(基本情報!$E69+基本情報!$F69,4) ->  | BI44: =getNumKeta0(基本情報!$E69+基本情報!$F69,3) ->  | BJ44: =getNumKeta0(基本情報!$E69+基本情報!$F69,2) ->  | BK44: =getNumKeta0(基本情報!$E69+基本情報!$F69,1) ->  | BL44: =getNumKeta0(基本情報!$G69,7) ->  | BM44: =getNumKeta0(基本情報!$G69,6) ->  | BN44: =getNumKeta0(基本情報!$G69,5) ->  | BO44: =getNumKeta0(基本情報!$G69,4) ->  | BP44: =getnumketa(基本情報!N77,4) ->  | BQ44: =getNumKeta0(基本情報!$G69,3) ->  | BR44: =getNumKeta0(基本情報!$G69,2) ->  | BS44: =getNumKeta0(基本情報!$G69,1) ->  | BT44: =getNumKeta0(基本情報!$H69,9) ->  | BU44: =getNumKeta0(基本情報!$H69,8) ->  | BV44: =getNumKeta0(基本情報!$H69,7) ->  | BW44: =getNumKeta0(基本情報!$H69,6) ->  | BX44: =getNumKeta0(基本情報!$H69,5) ->  | BZ44: =getNumKeta0(基本情報!$H69,4) ->  | CA44: =getNumKeta0(基本情報!$H69,3) ->  | CB44: =getNumKeta0(基本情報!$H69,2) ->  | CC44: =getNumKeta0(基本情報!$H69,1) -> 
A45: =基本情報!$B58 -> 0 | N45: =getNumKeta0(基本情報!$E58+基本情報!$F58,9) ->  | O45: =getNumKeta0(基本情報!$E58+基本情報!$F58,8) ->  | P45: =getNumKeta0(基本情報!$E58+基本情報!$F58,7) ->  | Q45: =getNumKeta0(基本情報!$E58+基本情報!$F58,6) ->  | R45: =getNumKeta0(基本情報!$E58+基本情報!$F58,5) ->  | S45: =getNumKeta0(基本情報!$E58+基本情報!$F58,4) ->  | T45: =getNumKeta0(基本情報!$E58+基本情報!$F58,3) ->  | U45: =getNumKeta0(基本情報!$E58+基本情報!$F58,2) ->  | V45: =getNumKeta0(基本情報!$E58+基本情報!$F58,1) ->  | W45: =getNumKeta0(基本情報!$G58,7) ->  | X45: =getNumKeta0(基本情報!$G58,6) ->  | Y45: =getNumKeta0(基本情報!$G58,5) ->  | Z45: =getNumKeta0(基本情報!$G58,4) ->  | AA45: =getNumKeta0(基本情報!$G58,3) ->  | AB45: =getNumKeta0(基本情報!$G58,2) ->  | AC45: =getnumketa(基本情報!M66,1) -> 0 | AD45: =getNumKeta0(基本情報!$G58,1) ->  | AF45: =getNumKeta0(基本情報!$H58,9) ->  | AH45: =getNumKeta0(基本情報!$H58,8) ->  | AJ45: =getNumKeta0(基本情報!$H58,7) ->  | AL45: =getNumKeta0(基本情報!$H58,6) ->  | AN45: =getNumKeta0(基本情報!$H58,5) ->  | AP45: =getNumKeta0(基本情報!$H58,4) ->  | AR45: =getNumKeta0(基本情報!$H58,3) ->  | AT45: =getNumKeta0(基本情報!$H58,2) ->  | AW45: =getNumKeta0(基本情報!$H58,1) ->  | AX45: 小 計 ・ 合 計 | BB45: =getnumketa(基本情報_合計税抜金額2,9) ->  | BC45: =getnumketa(基本情報_合計税抜金額2,8) ->  | BD45: =getnumketa(基本情報_合計税抜金額2,7) ->  | BF45: =getnumketa(基本情報_合計税抜金額2,6) ->  | BG45: =getnumketa(基本情報_合計税抜金額2,5) ->  | BH45: =getnumketa(基本情報_合計税抜金額2,4) ->  | BI45: =getnumketa(基本情報_合計税抜金額2,3) ->  | BJ45: =getnumketa(基本情報_合計税抜金額2,2) ->  | BK45: =getnumketa(基本情報_合計税抜金額2,1) -> 0 | BL45: =getnumketa(基本情報_合計消費税額2,7) ->  | BM45: =getnumketa(基本情報_合計消費税額2,6) ->  | BN45: =getnumketa(基本情報_合計消費税額2,5) ->  | BO45: =getnumketa(基本情報_合計消費税額2,4) ->  | BQ45: =getnumketa(基本情報_合計消費税額2,3) ->  | BR45: =getnumketa(基本情報_合計消費税額2,2) ->  | BS45: =getnumketa(基本情報_合計消費税額2,1) -> 0 | BT45: =getnumketa(基本情報_合計税込金額2,9) ->  | BU45: =getnumketa(基本情報_合計税込金額2,8) ->  | BV45: =getnumketa(基本情報_合計税込金額2,7) ->  | BW45: =getnumketa(基本情報_合計税込金額2,6) ->  | BX45: =getnumketa(基本情報_合計税込金額2,5) ->  | BZ45: =getnumketa(基本情報_合計税込金額2,4) ->  | CA45: =getnumketa(基本情報_合計税込金額2,3) ->  | CB45: =getnumketa(基本情報_合計税込金額2,2) ->  | CC45: =getnumketa(基本情報_合計税込金額2,1) -> 0
A46: =基本情報!$B59 -> 0 | N46: =getNumKeta0(基本情報!$E59+基本情報!$F59,9) ->  | O46: =getNumKeta0(基本情報!$E59+基本情報!$F59,8) ->  | P46: =getNumKeta0(基本情報!$E59+基本情報!$F59,7) ->  | Q46: =getNumKeta0(基本情報!$E59+基本情報!$F59,6) ->  | R46: =getNumKeta0(基本情報!$E59+基本情報!$F59,5) ->  | S46: =getNumKeta0(基本情報!$E59+基本情報!$F59,4) ->  | T46: =getNumKeta0(基本情報!$E59+基本情報!$F59,3) ->  | U46: =getNumKeta0(基本情報!$E59+基本情報!$F59,2) ->  | V46: =getNumKeta0(基本情報!$E59+基本情報!$F59,1) ->  | W46: =getNumKeta0(基本情報!$G59,7) ->  | X46: =getNumKeta0(基本情報!$G59,6) ->  | Y46: =getNumKeta0(基本情報!$G59,5) ->  | Z46: =getNumKeta0(基本情報!$G59,4) ->  | AA46: =getNumKeta0(基本情報!$G59,3) ->  | AB46: =getNumKeta0(基本情報!$G59,2) ->  | AC46: =getnumketa(基本情報!M67,1) -> 0 | AD46: =getNumKeta0(基本情報!$G59,1) ->  | AF46: =getNumKeta0(基本情報!$H59,9) ->  | AH46: =getNumKeta0(基本情報!$H59,8) ->  | AJ46: =getNumKeta0(基本情報!$H59,7) ->  | AL46: =getNumKeta0(基本情報!$H59,6) ->  | AN46: =getNumKeta0(基本情報!$H59,5) ->  | AP46: =getNumKeta0(基本情報!$H59,4) ->  | AR46: =getNumKeta0(基本情報!$H59,3) ->  | AT46: =getNumKeta0(基本情報!$H59,2) ->  | AW46: =getNumKeta0(基本情報!$H59,1) -> 
A47: =基本情報!$B60 -> 0 | N47: =getNumKeta0(基本情報!$E60+基本情報!$F60,9) ->  | O47: =getNumKeta0(基本情報!$E60+基本情報!$F60,8) ->  | P47: =getNumKeta0(基本情報!$E60+基本情報!$F60,7) ->  | Q47: =getNumKeta0(基本情報!$E60+基本情報!$F60,6) ->  | R47: =getNumKeta0(基本情報!$E60+基本情報!$F60,5) ->  | S47: =getNumKeta0(基本情報!$E60+基本情報!$F60,4) ->  | T47: =getNumKeta0(基本情報!$E60+基本情報!$F60,3) ->  | U47: =getNumKeta0(基本情報!$E60+基本情報!$F60,2) ->  | V47: =getNumKeta0(基本情報!$E60+基本情報!$F60,1) ->  | W47: =getNumKeta0(基本情報!$G60,7) ->  | X47: =getNumKeta0(基本情報!$G60,6) ->  | Y47: =getNumKeta0(基本情報!$G60,5) ->  | Z47: =getNumKeta0(基本情報!$G60,4) ->  | AA47: =getNumKeta0(基本情報!$G60,3) ->  | AB47: =getNumKeta0(基本情報!$G60,2) ->  | AC47: =getnumketa(基本情報!M68,1) -> 0 | AD47: =getNumKeta0(基本情報!$G60,1) ->  | AF47: =getNumKeta0(基本情報!$H60,9) ->  | AH47: =getNumKeta0(基本情報!$H60,8) ->  | AJ47: =getNumKeta0(基本情報!$H60,7) ->  | AL47: =getNumKeta0(基本情報!$H60,6) ->  | AN47: =getNumKeta0(基本情報!$H60,5) ->  | AP47: =getNumKeta0(基本情報!$H60,4) ->  | AR47: =getNumKeta0(基本情報!$H60,3) ->  | AT47: =getNumKeta0(基本情報!$H60,2) ->  | AW47: =getNumKeta0(基本情報!$H60,1) ->  | AX47: 訂正内容
A48: =基本情報!$B61 -> 0 | N48: =getNumKeta0(基本情報!$E61+基本情報!$F61,9) ->  | O48: =getNumKeta0(基本情報!$E61+基本情報!$F61,8) ->  | P48: =getNumKeta0(基本情報!$E61+基本情報!$F61,7) ->  | Q48: =getNumKeta0(基本情報!$E61+基本情報!$F61,6) ->  | R48: =getNumKeta0(基本情報!$E61+基本情報!$F61,5) ->  | S48: =getNumKeta0(基本情報!$E61+基本情報!$F61,4) ->  | T48: =getNumKeta0(基本情報!$E61+基本情報!$F61,3) ->  | U48: =getNumKeta0(基本情報!$E61+基本情報!$F61,2) ->  | V48: =getNumKeta0(基本情報!$E61+基本情報!$F61,1) ->  | W48: =getNumKeta0(基本情報!$G61,7) ->  | X48: =getNumKeta0(基本情報!$G61,6) ->  | Y48: =getNumKeta0(基本情報!$G61,5) ->  | Z48: =getNumKeta0(基本情報!$G61,4) ->  | AA48: =getNumKeta0(基本情報!$G61,3) ->  | AB48: =getNumKeta0(基本情報!$G61,2) ->  | AC48: =getnumketa(基本情報!M69,1) -> 0 | AD48: =getNumKeta0(基本情報!$G61,1) ->  | AF48: =getNumKeta0(基本情報!$H61,9) ->  | AH48: =getNumKeta0(基本情報!$H61,8) ->  | AJ48: =getNumKeta0(基本情報!$H61,7) ->  | AL48: =getNumKeta0(基本情報!$H61,6) ->  | AN48: =getNumKeta0(基本情報!$H61,5) ->  | AP48: =getNumKeta0(基本情報!$H61,4) ->  | AR48: =getNumKeta0(基本情報!$H61,3) ->  | AT48: =getNumKeta0(基本情報!$H61,2) ->  | AW48: =getNumKeta0(基本情報!$H61,1) -> 
B50: （注） | C50: １．請求書の締切日は、原則末日５日迄提出願います。又、支払は締の翌月20日となります。
C51: 但し、提出期限が当社休日の場合は前日とし、支払日は翌銀行営業日と致します。
C52: 尚、例外として4月と12月は、締日と必着日が毎年異なりますので十分ご注意ください。（別紙カレンダー参照）
C53: 期日迄に提出されない場合は、翌月計上となります。
C54: ２．当社への登録内容に変更を生じた場合は、速やかに「取引情報（新規・変更）届出書」を提出願います。 | AZ54: 貴社→経理(控)
B55: 請求書（鏡）（一般用） | BW55: ="P 3/"&COUNTA(基本情報_工事名称1, 基本情報_工事名称2, 基本情報_工事名称3) -> P 3/1
AC56: 変更時当社記入欄 | AV56: 取引先コード | AY56: =基本情報_取引先コード -> 999999 | AZ56: 締 日 | BE56: =基本情報_請求締日 -> 2020-07-31
A57: 丸高・みなと特定建設工事共同企業体 御中 | BJ57: 振込銀行 | BN57: =基本情報_銀行名 -> きらやか | BU57: 銀 行 | BV57: =基本情報_支店名 -> 酒田 | CC57: 支 店
A58: 下記の通り御請求申し上げます。 | M58: ="税率 ( " & (基本情報_消費税率*100) & "% )" -> 税率 ( 10% ) | AW58: （住所） | AY58: =基本情報_住所 -> 酒田市○○○○１－１ | BJ58: 銀行ｺｰﾄﾞ | BN58: 4桁 | BP58: =基本情報_銀行コード -> 508 | BU58: 支店 ｺｰﾄﾞ | BW58: 3桁 | BY58: =基本情報_支店コード -> 443
A59: 前月請求額 | M59: 税抜金額計 | AW59: （社名） | AY59: =基本情報_社名 -> (株）○○建設 | BJ59: 口座番号 | BN59: =基本情報_口座種別 -> 当 座 | BS59: =基本情報_口座番号 -> 1234567
A60: 入 金 額 | M60: 請求明細 消費税合計 | BF60: 印 | BJ60: 口座名義:漢字
A61: 値 引 額 | M61: 税込当月請求額 | AW61: （電話） | AY61: =基本情報_電話番号 -> 0234 - 00 - 0000 | BJ61: =基本情報_口座名義漢字 -> (株）○○建設
A62: 繰越金額 | M62: 税込当月総請求額 | BJ62: 口座名義:カナ | BP62: =基本情報_口座名義カナ -> ｶ)ﾏﾙﾏﾙｹﾝｾﾂ
A63: 工 事 名 | L63: ＣＫ | N63: 税抜金額 | W63: 消費税 | AF63: 税込金額 | AX63: 工 事 名 | BA63: ＣＫ | BB63: 税抜金額 | BL63: 消費税 | BT63: 税込金額
A64: =基本情報!$B70 -> 0 | N64: =getNumKeta0(基本情報!$E70+基本情報!$F70,9) ->  | O64: =getNumKeta0(基本情報!$E70+基本情報!$F70,8) ->  | P64: =getNumKeta0(基本情報!$E70+基本情報!$F70,7) ->  | Q64: =getNumKeta0(基本情報!$E70+基本情報!$F70,6) ->  | R64: =getNumKeta0(基本情報!$E70+基本情報!$F70,5) ->  | S64: =getNumKeta0(基本情報!$E70+基本情報!$F70,4) ->  | T64: =getNumKeta0(基本情報!$E70+基本情報!$F70,3) ->  | U64: =getNumKeta0(基本情報!$E70+基本情報!$F70,2) ->  | V64: =getNumKeta0(基本情報!$E70+基本情報!$F70,1) ->  | W64: =getNumKeta0(基本情報!$G70,7) ->  | X64: =getNumKeta0(基本情報!$G70,6) ->  | Y64: =getNumKeta0(基本情報!$G70,5) ->  | Z64: =getNumKeta0(基本情報!$G70,4) ->  | AA64: =getNumKeta0(基本情報!$G70,3) ->  | AB64: =getNumKeta0(基本情報!$G70,2) ->  | AC64: =getnumketa(基本情報!M85,1) -> 0 | AD64: =getNumKeta0(基本情報!$G70,1) ->  | AF64: =getNumKeta0(基本情報!$H70,9) ->  | AH64: =getNumKeta0(基本情報!$H70,8) ->  | AJ64: =getNumKeta0(基本情報!$H70,7) ->  | AL64: =getNumKeta0(基本情報!$H70,6) ->  | AN64: =getNumKeta0(基本情報!$H70,5) ->  | AP64: =getNumKeta0(基本情報!$H70,4) ->  | AR64: =getNumKeta0(基本情報!$H70,3) ->  | AT64: =getNumKeta0(基本情報!$H70,2) ->  | AW64: =getNumKeta0(基本情報!$H70,1) ->  | AX64: =基本情報!$B82 -> 0 | BB64: =getNumKeta0(基本情報!$E82+基本情報!$F82,9) ->  | BC64: =getNumKeta0(基本情報!$E82+基本情報!$F82,8) ->  | BD64: =getNumKeta0(基本情報!$E82+基本情報!$F82,7) ->  | BE64: =getnumketa(基本情報!AQ85,6) ->  | BF64: =getNumKeta0(基本情報!$E82+基本情報!$F82,6) ->  | BG64: =getNumKeta0(基本情報!$E82+基本情報!$F82,5) ->  | BH64: =getNumKeta0(基本情報!$E82+基本情報!$F82,4) ->  | BI64: =getNumKeta0(基本情報!$E82+基本情報!$F82,3) ->  | BJ64: =getNumKeta0(基本情報!$E82+基本情報!$F82,2) ->  | BK64: =getNumKeta0(基本情報!$E82+基本情報!$F82,1) ->  | BL64: =getNumKeta0(基本情報!$G82,7) ->  | BM64: =getNumKeta0(基本情報!$G82,6) ->  | BN64: =getNumKeta0(基本情報!$G82,5) ->  | BO64: =getNumKeta0(基本情報!$G82,4) ->  | BP64: =getnumketa(基本情報!N97,4) ->  | BQ64: =getNumKeta0(基本情報!$G82,3) ->  | BR64: =getNumKeta0(基本情報!$G82,2) ->  | BS64: =getNumKeta0(基本情報!$G82,1) ->  | BT64: =getNumKeta0(基本情報!$H82,9) ->  | BU64: =getNumKeta0(基本情報!$H82,8) ->  | BV64: =getNumKeta0(基本情報!$H82,7) ->  | BW64: =getNumKeta0(基本情報!$H82,6) ->  | BX64: =getNumKeta0(基本情報!$H82,5) ->  | BZ64: =getNumKeta0(基本情報!$H82,4) ->  | CA64: =getNumKeta0(基本情報!$H82,3) ->  | CB64: =getNumKeta0(基本情報!$H82,2) ->  | CC64: =getNumKeta0(基本情報!$H82,1) -> 
A65: =基本情報!$B71 -> 0 | N65: =getNumKeta0(基本情報!$E71+基本情報!$F71,9) ->  | O65: =getNumKeta0(基本情報!$E71+基本情報!$F71,8) ->  | P65: =getNumKeta0(基本情報!$E71+基本情報!$F71,7) ->  | Q65: =getNumKeta0(基本情報!$E71+基本情報!$F71,6) ->  | R65: =getNumKeta0(基本情報!$E71+基本情報!$F71,5) ->  | S65: =getNumKeta0(基本情報!$E71+基本情報!$F71,4) ->  | T65: =getNumKeta0(基本情報!$E71+基本情報!$F71,3) ->  | U65: =getNumKeta0(基本情報!$E71+基本情報!$F71,2) ->  | V65: =getNumKeta0(基本情報!$E71+基本情報!$F71,1) ->  | W65: =getNumKeta0(基本情報!$G71,7) ->  | X65: =getNumKeta0(基本情報!$G71,6) ->  | Y65: =getNumKeta0(基本情報!$G71,5) ->  | Z65: =getNumKeta0(基本情報!$G71,4) ->  | AA65: =getNumKeta0(基本情報!$G71,3) ->  | AB65: =getNumKeta0(基本情報!$G71,2) ->  | AC65: =getnumketa(基本情報!M86,1) -> 0 | AD65: =getNumKeta0(基本情報!$G71,1) ->  | AF65: =getNumKeta0(基本情報!$H71,9) ->  | AH65: =getNumKeta0(基本情報!$H71,8) ->  | AJ65: =getNumKeta0(基本情報!$H71,7) ->  | AL65: =getNumKeta0(基本情報!$H71,6) ->  | AN65: =getNumKeta0(基本情報!$H71,5) ->  | AP65: =getNumKeta0(基本情報!$H71,4) ->  | AR65: =getNumKeta0(基本情報!$H71,3) ->  | AT65: =getNumKeta0(基本情報!$H71,2) ->  | AW65: =getNumKeta0(基本情報!$H71,1) ->  | AX65: =基本情報!$B83 -> 0 | BB65: =getNumKeta0(基本情報!$E83+基本情報!$F83,9) ->  | BC65: =getNumKeta0(基本情報!$E83+基本情報!$F83,8) ->  | BD65: =getNumKeta0(基本情報!$E83+基本情報!$F83,7) ->  | BE65: =getnumketa(基本情報!AQ86,6) ->  | BF65: =getNumKeta0(基本情報!$E83+基本情報!$F83,6) ->  | BG65: =getNumKeta0(基本情報!$E83+基本情報!$F83,5) ->  | BH65: =getNumKeta0(基本情報!$E83+基本情報!$F83,4) ->  | BI65: =getNumKeta0(基本情報!$E83+基本情報!$F83,3) ->  | BJ65: =getNumKeta0(基本情報!$E83+基本情報!$F83,2) ->  | BK65: =getNumKeta0(基本情報!$E83+基本情報!$F83,1) ->  | BL65: =getNumKeta0(基本情報!$G83,7) ->  | BM65: =getNumKeta0(基本情報!$G83,6) ->  | BN65: =getNumKeta0(基本情報!$G83,5) ->  | BO65: =getNumKeta0(基本情報!$G83,4) ->  | BP65: =getnumketa(基本情報!N98,4) ->  | BQ65: =getNumKeta0(基本情報!$G83,3) ->  | BR65: =getNumKeta0(基本情報!$G83,2) ->  | BS65: =getNumKeta0(基本情報!$G83,1) ->  | BT65: =getNumKeta0(基本情報!$H83,9) ->  | BU65: =getNumKeta0(基本情報!$H83,8) ->  | BV65: =getNumKeta0(基本情報!$H83,7) ->  | BW65: =getNumKeta0(基本情報!$H83,6) ->  | BX65: =getNumKeta0(基本情報!$H83,5) ->  | BZ65: =getNumKeta0(基本情報!$H83,4) ->  | CA65: =getNumKeta0(基本情報!$H83,3) ->  | CB65: =getNumKeta0(基本情報!$H83,2) ->  | CC65: =getNumKeta0(基本情報!$H83,1) -> 
A66: =基本情報!$B72 -> 0 | N66: =getNumKeta0(基本情報!$E72+基本情報!$F72,9) ->  | O66: =getNumKeta0(基本情報!$E72+基本情報!$F72,8) ->  | P66: =getNumKeta0(基本情報!$E72+基本情報!$F72,7) ->  | Q66: =getNumKeta0(基本情報!$E72+基本情報!$F72,6) ->  | R66: =getNumKeta0(基本情報!$E72+基本情報!$F72,5) ->  | S66: =getNumKeta0(基本情報!$E72+基本情報!$F72,4) ->  | T66: =getNumKeta0(基本情報!$E72+基本情報!$F72,3) ->  | U66: =getNumKeta0(基本情報!$E72+基本情報!$F72,2) ->  | V66: =getNumKeta0(基本情報!$E72+基本情報!$F72,1) ->  | W66: =getNumKeta0(基本情報!$G72,7) ->  | X66: =getNumKeta0(基本情報!$G72,6) ->  | Y66: =getNumKeta0(基本情報!$G72,5) ->  | Z66: =getNumKeta0(基本情報!$G72,4) ->  | AA66: =getNumKeta0(基本情報!$G72,3) ->  | AB66: =getNumKeta0(基本情報!$G72,2) ->  | AC66: =getnumketa(基本情報!M87,1) -> 0 | AD66: =getNumKeta0(基本情報!$G72,1) ->  | AF66: =getNumKeta0(基本情報!$H72,9) ->  | AH66: =getNumKeta0(基本情報!$H72,8) ->  | AJ66: =getNumKeta0(基本情報!$H72,7) ->  | AL66: =getNumKeta0(基本情報!$H72,6) ->  | AN66: =getNumKeta0(基本情報!$H72,5) ->  | AP66: =getNumKeta0(基本情報!$H72,4) ->  | AR66: =getNumKeta0(基本情報!$H72,3) ->  | AT66: =getNumKeta0(基本情報!$H72,2) ->  | AW66: =getNumKeta0(基本情報!$H72,1) ->  | AX66: =基本情報!$B84 -> 0 | BB66: =getNumKeta0(基本情報!$E84+基本情報!$F84,9) ->  | BC66: =getNumKeta0(基本情報!$E84+基本情報!$F84,8) ->  | BD66: =getNumKeta0(基本情報!$E84+基本情報!$F84,7) ->  | BE66: =getnumketa(基本情報!AQ87,6) ->  | BF66: =getNumKeta0(基本情報!$E84+基本情報!$F84,6) ->  | BG66: =getNumKeta0(基本情報!$E84+基本情報!$F84,5) ->  | BH66: =getNumKeta0(基本情報!$E84+基本情報!$F84,4) ->  | BI66: =getNumKeta0(基本情報!$E84+基本情報!$F84,3) ->  | BJ66: =getNumKeta0(基本情報!$E84+基本情報!$F84,2) ->  | BK66: =getNumKeta0(基本情報!$E84+基本情報!$F84,1) ->  | BL66: =getNumKeta0(基本情報!$G84,7) ->  | BM66: =getNumKeta0(基本情報!$G84,6) ->  | BN66: =getNumKeta0(基本情報!$G84,5) ->  | BO66: =getNumKeta0(基本情報!$G84,4) ->  | BP66: =getnumketa(基本情報!N99,4) ->  | BQ66: =getNumKeta0(基本情報!$G84,3) ->  | BR66: =getNumKeta0(基本情報!$G84,2) ->  | BS66: =getNumKeta0(基本情報!$G84,1) ->  | BT66: =getNumKeta0(基本情報!$H84,9) ->  | BU66: =getNumKeta0(基本情報!$H84,8) ->  | BV66: =getNumKeta0(基本情報!$H84,7) ->  | BW66: =getNumKeta0(基本情報!$H84,6) ->  | BX66: =getNumKeta0(基本情報!$H84,5) ->  | BZ66: =getNumKeta0(基本情報!$H84,4) ->  | CA66: =getNumKeta0(基本情報!$H84,3) ->  | CB66: =getNumKeta0(基本情報!$H84,2) ->  | CC66: =getNumKeta0(基本情報!$H84,1) -> 
A67: =基本情報!$B73 -> 0 | N67: =getNumKeta0(基本情報!$E73+基本情報!$F73,9) ->  | O67: =getNumKeta0(基本情報!$E73+基本情報!$F73,8) ->  | P67: =getNumKeta0(基本情報!$E73+基本情報!$F73,7) ->  | Q67: =getNumKeta0(基本情報!$E73+基本情報!$F73,6) ->  | R67: =getNumKeta0(基本情報!$E73+基本情報!$F73,5) ->  | S67: =getNumKeta0(基本情報!$E73+基本情報!$F73,4) ->  | T67: =getNumKeta0(基本情報!$E73+基本情報!$F73,3) ->  | U67: =getNumKeta0(基本情報!$E73+基本情報!$F73,2) ->  | V67: =getNumKeta0(基本情報!$E73+基本情報!$F73,1) ->  | W67: =getNumKeta0(基本情報!$G73,7) ->  | X67: =getNumKeta0(基本情報!$G73,6) ->  | Y67: =getNumKeta0(基本情報!$G73,5) ->  | Z67: =getNumKeta0(基本情報!$G73,4) ->  | AA67: =getNumKeta0(基本情報!$G73,3) ->  | AB67: =getNumKeta0(基本情報!$G73,2) ->  | AC67: =getnumketa(基本情報!M88,1) -> 0 | AD67: =getNumKeta0(基本情報!$G73,1) ->  | AF67: =getNumKeta0(基本情報!$H73,9) ->  | AH67: =getNumKeta0(基本情報!$H73,8) ->  | AJ67: =getNumKeta0(基本情報!$H73,7) ->  | AL67: =getNumKeta0(基本情報!$H73,6) ->  | AN67: =getNumKeta0(基本情報!$H73,5) ->  | AP67: =getNumKeta0(基本情報!$H73,4) ->  | AR67: =getNumKeta0(基本情報!$H73,3) ->  | AT67: =getNumKeta0(基本情報!$H73,2) ->  | AW67: =getNumKeta0(基本情報!$H73,1) ->  | AX67: =基本情報!$B85 -> 0 | BB67: =getNumKeta0(基本情報!$E85+基本情報!$F85,9) ->  | BC67: =getNumKeta0(基本情報!$E85+基本情報!$F85,8) ->  | BD67: =getNumKeta0(基本情報!$E85+基本情報!$F85,7) ->  | BE67: =getnumketa(基本情報!AQ88,6) ->  | BF67: =getNumKeta0(基本情報!$E85+基本情報!$F85,6) ->  | BG67: =getNumKeta0(基本情報!$E85+基本情報!$F85,5) ->  | BH67: =getNumKeta0(基本情報!$E85+基本情報!$F85,4) ->  | BI67: =getNumKeta0(基本情報!$E85+基本情報!$F85,3) ->  | BJ67: =getNumKeta0(基本情報!$E85+基本情報!$F85,2) ->  | BK67: =getNumKeta0(基本情報!$E85+基本情報!$F85,1) ->  | BL67: =getNumKeta0(基本情報!$G85,7) ->  | BM67: =getNumKeta0(基本情報!$G85,6) ->  | BN67: =getNumKeta0(基本情報!$G85,5) ->  | BO67: =getNumKeta0(基本情報!$G85,4) ->  | BP67: =getnumketa(基本情報!N100,4) ->  | BQ67: =getNumKeta0(基本情報!$G85,3) ->  | BR67: =getNumKeta0(基本情報!$G85,2) ->  | BS67: =getNumKeta0(基本情報!$G85,1) ->  | BT67: =getNumKeta0(基本情報!$H85,9) ->  | BU67: =getNumKeta0(基本情報!$H85,8) ->  | BV67: =getNumKeta0(基本情報!$H85,7) ->  | BW67: =getNumKeta0(基本情報!$H85,6) ->  | BX67: =getNumKeta0(基本情報!$H85,5) ->  | BZ67: =getNumKeta0(基本情報!$H85,4) ->  | CA67: =getNumKeta0(基本情報!$H85,3) ->  | CB67: =getNumKeta0(基本情報!$H85,2) ->  | CC67: =getNumKeta0(基本情報!$H85,1) -> 
A68: =基本情報!$B74 -> 0 | N68: =getNumKeta0(基本情報!$E74+基本情報!$F74,9) ->  | O68: =getNumKeta0(基本情報!$E74+基本情報!$F74,8) ->  | P68: =getNumKeta0(基本情報!$E74+基本情報!$F74,7) ->  | Q68: =getNumKeta0(基本情報!$E74+基本情報!$F74,6) ->  | R68: =getNumKeta0(基本情報!$E74+基本情報!$F74,5) ->  | S68: =getNumKeta0(基本情報!$E74+基本情報!$F74,4) ->  | T68: =getNumKeta0(基本情報!$E74+基本情報!$F74,3) ->  | U68: =getNumKeta0(基本情報!$E74+基本情報!$F74,2) ->  | V68: =getNumKeta0(基本情報!$E74+基本情報!$F74,1) ->  | W68: =getNumKeta0(基本情報!$G74,7) ->  | X68: =getNumKeta0(基本情報!$G74,6) ->  | Y68: =getNumKeta0(基本情報!$G74,5) ->  | Z68: =getNumKeta0(基本情報!$G74,4) ->  | AA68: =getNumKeta0(基本情報!$G74,3) ->  | AB68: =getNumKeta0(基本情報!$G74,2) ->  | AC68: =getnumketa(基本情報!M89,1) -> 0 | AD68: =getNumKeta0(基本情報!$G74,1) ->  | AF68: =getNumKeta0(基本情報!$H74,9) ->  | AH68: =getNumKeta0(基本情報!$H74,8) ->  | AJ68: =getNumKeta0(基本情報!$H74,7) ->  | AL68: =getNumKeta0(基本情報!$H74,6) ->  | AN68: =getNumKeta0(基本情報!$H74,5) ->  | AP68: =getNumKeta0(基本情報!$H74,4) ->  | AR68: =getNumKeta0(基本情報!$H74,3) ->  | AT68: =getNumKeta0(基本情報!$H74,2) ->  | AW68: =getNumKeta0(基本情報!$H74,1) ->  | AX68: =基本情報!$B86 -> 0 | BB68: =getNumKeta0(基本情報!$E86+基本情報!$F86,9) ->  | BC68: =getNumKeta0(基本情報!$E86+基本情報!$F86,8) ->  | BD68: =getNumKeta0(基本情報!$E86+基本情報!$F86,7) ->  | BE68: =getnumketa(基本情報!AQ89,6) ->  | BF68: =getNumKeta0(基本情報!$E86+基本情報!$F86,6) ->  | BG68: =getNumKeta0(基本情報!$E86+基本情報!$F86,5) ->  | BH68: =getNumKeta0(基本情報!$E86+基本情報!$F86,4) ->  | BI68: =getNumKeta0(基本情報!$E86+基本情報!$F86,3) ->  | BJ68: =getNumKeta0(基本情報!$E86+基本情報!$F86,2) ->  | BK68: =getNumKeta0(基本情報!$E86+基本情報!$F86,1) ->  | BL68: =getNumKeta0(基本情報!$G86,7) ->  | BM68: =getNumKeta0(基本情報!$G86,6) ->  | BN68: =getNumKeta0(基本情報!$G86,5) ->  | BO68: =getNumKeta0(基本情報!$G86,4) ->  | BP68: =getnumketa(基本情報!N101,4) ->  | BQ68: =getNumKeta0(基本情報!$G86,3) ->  | BR68: =getNumKeta0(基本情報!$G86,2) ->  | BS68: =getNumKeta0(基本情報!$G86,1) ->  | BT68: =getNumKeta0(基本情報!$H86,9) ->  | BU68: =getNumKeta0(基本情報!$H86,8) ->  | BV68: =getNumKeta0(基本情報!$H86,7) ->  | BW68: =getNumKeta0(基本情報!$H86,6) ->  | BX68: =getNumKeta0(基本情報!$H86,5) ->  | BZ68: =getNumKeta0(基本情報!$H86,4) ->  | CA68: =getNumKeta0(基本情報!$H86,3) ->  | CB68: =getNumKeta0(基本情報!$H86,2) ->  | CC68: =getNumKeta0(基本情報!$H86,1) -> 
A69: =基本情報!$B75 -> 0 | N69: =getNumKeta0(基本情報!$E75+基本情報!$F75,9) ->  | O69: =getNumKeta0(基本情報!$E75+基本情報!$F75,8) ->  | P69: =getNumKeta0(基本情報!$E75+基本情報!$F75,7) ->  | Q69: =getNumKeta0(基本情報!$E75+基本情報!$F75,6) ->  | R69: =getNumKeta0(基本情報!$E75+基本情報!$F75,5) ->  | S69: =getNumKeta0(基本情報!$E75+基本情報!$F75,4) ->  | T69: =getNumKeta0(基本情報!$E75+基本情報!$F75,3) ->  | U69: =getNumKeta0(基本情報!$E75+基本情報!$F75,2) ->  | V69: =getNumKeta0(基本情報!$E75+基本情報!$F75,1) ->  | W69: =getNumKeta0(基本情報!$G75,7) ->  | X69: =getNumKeta0(基本情報!$G75,6) ->  | Y69: =getNumKeta0(基本情報!$G75,5) ->  | Z69: =getNumKeta0(基本情報!$G75,4) ->  | AA69: =getNumKeta0(基本情報!$G75,3) ->  | AB69: =getNumKeta0(基本情報!$G75,2) ->  | AC69: =getnumketa(基本情報!M90,1) -> 0 | AD69: =getNumKeta0(基本情報!$G75,1) ->  | AF69: =getNumKeta0(基本情報!$H75,9) ->  | AH69: =getNumKeta0(基本情報!$H75,8) ->  | AJ69: =getNumKeta0(基本情報!$H75,7) ->  | AL69: =getNumKeta0(基本情報!$H75,6) ->  | AN69: =getNumKeta0(基本情報!$H75,5) ->  | AP69: =getNumKeta0(基本情報!$H75,4) ->  | AR69: =getNumKeta0(基本情報!$H75,3) ->  | AT69: =getNumKeta0(基本情報!$H75,2) ->  | AW69: =getNumKeta0(基本情報!$H75,1) ->  | AX69: =基本情報!$B87 -> 0 | BB69: =getNumKeta0(基本情報!$E87+基本情報!$F87,9) ->  | BC69: =getNumKeta0(基本情報!$E87+基本情報!$F87,8) ->  | BD69: =getNumKeta0(基本情報!$E87+基本情報!$F87,7) ->  | BE69: =getnumketa(基本情報!AQ90,6) ->  | BF69: =getNumKeta0(基本情報!$E87+基本情報!$F87,6) ->  | BG69: =getNumKeta0(基本情報!$E87+基本情報!$F87,5) ->  | BH69: =getNumKeta0(基本情報!$E87+基本情報!$F87,4) ->  | BI69: =getNumKeta0(基本情報!$E87+基本情報!$F87,3) ->  | BJ69: =getNumKeta0(基本情報!$E87+基本情報!$F87,2) ->  | BK69: =getNumKeta0(基本情報!$E87+基本情報!$F87,1) ->  | BL69: =getNumKeta0(基本情報!$G87,7) ->  | BM69: =getNumKeta0(基本情報!$G87,6) ->  | BN69: =getNumKeta0(基本情報!$G87,5) ->  | BO69: =getNumKeta0(基本情報!$G87,4) ->  | BP69: =getnumketa(基本情報!N102,4) ->  | BQ69: =getNumKeta0(基本情報!$G87,3) ->  | BR69: =getNumKeta0(基本情報!$G87,2) ->  | BS69: =getNumKeta0(基本情報!$G87,1) ->  | BT69: =getNumKeta0(基本情報!$H87,9) ->  | BU69: =getNumKeta0(基本情報!$H87,8) ->  | BV69: =getNumKeta0(基本情報!$H87,7) ->  | BW69: =getNumKeta0(基本情報!$H87,6) ->  | BX69: =getNumKeta0(基本情報!$H87,5) ->  | BZ69: =getNumKeta0(基本情報!$H87,4) ->  | CA69: =getNumKeta0(基本情報!$H87,3) ->  | CB69: =getNumKeta0(基本情報!$H87,2) ->  | CC69: =getNumKeta0(基本情報!$H87,1) -> 
A70: =基本情報!$B76 -> 0 | N70: =getNumKeta0(基本情報!$E76+基本情報!$F76,9) ->  | O70: =getNumKeta0(基本情報!$E76+基本情報!$F76,8) ->  | P70: =getNumKeta0(基本情報!$E76+基本情報!$F76,7) ->  | Q70: =getNumKeta0(基本情報!$E76+基本情報!$F76,6) ->  | R70: =getNumKeta0(基本情報!$E76+基本情報!$F76,5) ->  | S70: =getNumKeta0(基本情報!$E76+基本情報!$F76,4) ->  | T70: =getNumKeta0(基本情報!$E76+基本情報!$F76,3) ->  | U70: =getNumKeta0(基本情報!$E76+基本情報!$F76,2) ->  | V70: =getNumKeta0(基本情報!$E76+基本情報!$F76,1) ->  | W70: =getNumKeta0(基本情報!$G76,7) ->  | X70: =getNumKeta0(基本情報!$G76,6) ->  | Y70: =getNumKeta0(基本情報!$G76,5) ->  | Z70: =getNumKeta0(基本情報!$G76,4) ->  | AA70: =getNumKeta0(基本情報!$G76,3) ->  | AB70: =getNumKeta0(基本情報!$G76,2) ->  | AC70: =getnumketa(基本情報!M91,1) -> 0 | AD70: =getNumKeta0(基本情報!$G76,1) ->  | AF70: =getNumKeta0(基本情報!$H76,9) ->  | AH70: =getNumKeta0(基本情報!$H76,8) ->  | AJ70: =getNumKeta0(基本情報!$H76,7) ->  | AL70: =getNumKeta0(基本情報!$H76,6) ->  | AN70: =getNumKeta0(基本情報!$H76,5) ->  | AP70: =getNumKeta0(基本情報!$H76,4) ->  | AR70: =getNumKeta0(基本情報!$H76,3) ->  | AT70: =getNumKeta0(基本情報!$H76,2) ->  | AW70: =getNumKeta0(基本情報!$H76,1) ->  | AX70: =基本情報!$B88 -> 0 | BB70: =getNumKeta0(基本情報!$E88+基本情報!$F88,9) ->  | BC70: =getNumKeta0(基本情報!$E88+基本情報!$F88,8) ->  | BD70: =getNumKeta0(基本情報!$E88+基本情報!$F88,7) ->  | BE70: =getnumketa(基本情報!AQ91,6) ->  | BF70: =getNumKeta0(基本情報!$E88+基本情報!$F88,6) ->  | BG70: =getNumKeta0(基本情報!$E88+基本情報!$F88,5) ->  | BH70: =getNumKeta0(基本情報!$E88+基本情報!$F88,4) ->  | BI70: =getNumKeta0(基本情報!$E88+基本情報!$F88,3) ->  | BJ70: =getNumKeta0(基本情報!$E88+基本情報!$F88,2) ->  | BK70: =getNumKeta0(基本情報!$E88+基本情報!$F88,1) ->  | BL70: =getNumKeta0(基本情報!$G88,7) ->  | BM70: =getNumKeta0(基本情報!$G88,6) ->  | BN70: =getNumKeta0(基本情報!$G88,5) ->  | BO70: =getNumKeta0(基本情報!$G88,4) ->  | BP70: =getnumketa(基本情報!N103,4) ->  | BQ70: =getNumKeta0(基本情報!$G88,3) ->  | BR70: =getNumKeta0(基本情報!$G88,2) ->  | BS70: =getNumKeta0(基本情報!$G88,1) ->  | BT70: =getNumKeta0(基本情報!$H88,9) ->  | BU70: =getNumKeta0(基本情報!$H88,8) ->  | BV70: =getNumKeta0(基本情報!$H88,7) ->  | BW70: =getNumKeta0(基本情報!$H88,6) ->  | BX70: =getNumKeta0(基本情報!$H88,5) ->  | BZ70: =getNumKeta0(基本情報!$H88,4) ->  | CA70: =getNumKeta0(基本情報!$H88,3) ->  | CB70: =getNumKeta0(基本情報!$H88,2) ->  | CC70: =getNumKeta0(基本情報!$H88,1) -> 
A71: =基本情報!$B77 -> 0 | N71: =getNumKeta0(基本情報!$E77+基本情報!$F77,9) ->  | O71: =getNumKeta0(基本情報!$E77+基本情報!$F77,8) ->  | P71: =getNumKeta0(基本情報!$E77+基本情報!$F77,7) ->  | Q71: =getNumKeta0(基本情報!$E77+基本情報!$F77,6) ->  | R71: =getNumKeta0(基本情報!$E77+基本情報!$F77,5) ->  | S71: =getNumKeta0(基本情報!$E77+基本情報!$F77,4) ->  | T71: =getNumKeta0(基本情報!$E77+基本情報!$F77,3) ->  | U71: =getNumKeta0(基本情報!$E77+基本情報!$F77,2) ->  | V71: =getNumKeta0(基本情報!$E77+基本情報!$F77,1) ->  | W71: =getNumKeta0(基本情報!$G77,7) ->  | X71: =getNumKeta0(基本情報!$G77,6) ->  | Y71: =getNumKeta0(基本情報!$G77,5) ->  | Z71: =getNumKeta0(基本情報!$G77,4) ->  | AA71: =getNumKeta0(基本情報!$G77,3) ->  | AB71: =getNumKeta0(基本情報!$G77,2) ->  | AC71: =getnumketa(基本情報!M92,1) -> 0 | AD71: =getNumKeta0(基本情報!$G77,1) ->  | AF71: =getNumKeta0(基本情報!$H77,9) ->  | AH71: =getNumKeta0(基本情報!$H77,8) ->  | AJ71: =getNumKeta0(基本情報!$H77,7) ->  | AL71: =getNumKeta0(基本情報!$H77,6) ->  | AN71: =getNumKeta0(基本情報!$H77,5) ->  | AP71: =getNumKeta0(基本情報!$H77,4) ->  | AR71: =getNumKeta0(基本情報!$H77,3) ->  | AT71: =getNumKeta0(基本情報!$H77,2) ->  | AW71: =getNumKeta0(基本情報!$H77,1) ->  | AX71: =基本情報!$B89 -> 0 | BB71: =getNumKeta0(基本情報!$E89+基本情報!$F89,9) ->  | BC71: =getNumKeta0(基本情報!$E89+基本情報!$F89,8) ->  | BD71: =getNumKeta0(基本情報!$E89+基本情報!$F89,7) ->  | BE71: =getnumketa(基本情報!AQ92,6) ->  | BF71: =getNumKeta0(基本情報!$E89+基本情報!$F89,6) ->  | BG71: =getNumKeta0(基本情報!$E89+基本情報!$F89,5) ->  | BH71: =getNumKeta0(基本情報!$E89+基本情報!$F89,4) ->  | BI71: =getNumKeta0(基本情報!$E89+基本情報!$F89,3) ->  | BJ71: =getNumKeta0(基本情報!$E89+基本情報!$F89,2) ->  | BK71: =getNumKeta0(基本情報!$E89+基本情報!$F89,1) ->  | BL71: =getNumKeta0(基本情報!$G89,7) ->  | BM71: =getNumKeta0(基本情報!$G89,6) ->  | BN71: =getNumKeta0(基本情報!$G89,5) ->  | BO71: =getNumKeta0(基本情報!$G89,4) ->  | BP71: =getnumketa(基本情報!N104,4) ->  | BQ71: =getNumKeta0(基本情報!$G89,3) ->  | BR71: =getNumKeta0(基本情報!$G89,2) ->  | BS71: =getNumKeta0(基本情報!$G89,1) ->  | BT71: =getNumKeta0(基本情報!$H89,9) ->  | BU71: =getNumKeta0(基本情報!$H89,8) ->  | BV71: =getNumKeta0(基本情報!$H89,7) ->  | BW71: =getNumKeta0(基本情報!$H89,6) ->  | BX71: =getNumKeta0(基本情報!$H89,5) ->  | BZ71: =getNumKeta0(基本情報!$H89,4) ->  | CA71: =getNumKeta0(基本情報!$H89,3) ->  | CB71: =getNumKeta0(基本情報!$H89,2) ->  | CC71: =getNumKeta0(基本情報!$H89,1) -> 
A72: =基本情報!$B78 -> 0 | N72: =getNumKeta0(基本情報!$E78+基本情報!$F78,9) ->  | O72: =getNumKeta0(基本情報!$E78+基本情報!$F78,8) ->  | P72: =getNumKeta0(基本情報!$E78+基本情報!$F78,7) ->  | Q72: =getNumKeta0(基本情報!$E78+基本情報!$F78,6) ->  | R72: =getNumKeta0(基本情報!$E78+基本情報!$F78,5) ->  | S72: =getNumKeta0(基本情報!$E78+基本情報!$F78,4) ->  | T72: =getNumKeta0(基本情報!$E78+基本情報!$F78,3) ->  | U72: =getNumKeta0(基本情報!$E78+基本情報!$F78,2) ->  | V72: =getNumKeta0(基本情報!$E78+基本情報!$F78,1) ->  | W72: =getNumKeta0(基本情報!$G78,7) ->  | X72: =getNumKeta0(基本情報!$G78,6) ->  | Y72: =getNumKeta0(基本情報!$G78,5) ->  | Z72: =getNumKeta0(基本情報!$G78,4) ->  | AA72: =getNumKeta0(基本情報!$G78,3) ->  | AB72: =getNumKeta0(基本情報!$G78,2) ->  | AC72: =getnumketa(基本情報!M93,1) -> 0 | AD72: =getNumKeta0(基本情報!$G78,1) ->  | AF72: =getNumKeta0(基本情報!$H78,9) ->  | AH72: =getNumKeta0(基本情報!$H78,8) ->  | AJ72: =getNumKeta0(基本情報!$H78,7) ->  | AL72: =getNumKeta0(基本情報!$H78,6) ->  | AN72: =getNumKeta0(基本情報!$H78,5) ->  | AP72: =getNumKeta0(基本情報!$H78,4) ->  | AR72: =getNumKeta0(基本情報!$H78,3) ->  | AT72: =getNumKeta0(基本情報!$H78,2) ->  | AW72: =getNumKeta0(基本情報!$H78,1) ->  | AX72: 小 計 ・ 合 計 | BB72: =getnumketa(基本情報_合計税抜金額3,9) ->  | BC72: =getnumketa(基本情報_合計税抜金額3,8) ->  | BD72: =getnumketa(基本情報_合計税抜金額3,7) ->  | BF72: =getnumketa(基本情報_合計税抜金額3,6) ->  | BG72: =getnumketa(基本情報_合計税抜金額3,5) ->  | BH72: =getnumketa(基本情報_合計税抜金額3,4) ->  | BI72: =getnumketa(基本情報_合計税抜金額3,3) ->  | BJ72: =getnumketa(基本情報_合計税抜金額3,2) ->  | BK72: =getnumketa(基本情報_合計税抜金額3,1) -> 0 | BL72: =getnumketa(基本情報_合計消費税額3,7) ->  | BM72: =getnumketa(基本情報_合計消費税額3,6) ->  | BN72: =getnumketa(基本情報_合計消費税額3,5) ->  | BO72: =getnumketa(基本情報_合計消費税額3,4) ->  | BQ72: =getnumketa(基本情報_合計消費税額3,3) ->  | BR72: =getnumketa(基本情報_合計消費税額3,2) ->  | BS72: =getnumketa(基本情報_合計消費税額3,1) -> 0 | BT72: =getnumketa(基本情報_合計税込金額3,9) ->  | BU72: =getnumketa(基本情報_合計税込金額3,8) ->  | BV72: =getnumketa(基本情報_合計税込金額3,7) ->  | BW72: =getnumketa(基本情報_合計税込金額3,6) ->  | BX72: =getnumketa(基本情報_合計税込金額3,5) ->  | BZ72: =getnumketa(基本情報_合計税込金額3,4) ->  | CA72: =getnumketa(基本情報_合計税込金額3,3) ->  | CB72: =getnumketa(基本情報_合計税込金額3,2) ->  | CC72: =getnumketa(基本情報_合計税込金額3,1) -> 0
A73: =基本情報!$B79 -> 0 | N73: =getNumKeta0(基本情報!$E79+基本情報!$F79,9) ->  | O73: =getNumKeta0(基本情報!$E79+基本情報!$F79,8) ->  | P73: =getNumKeta0(基本情報!$E79+基本情報!$F79,7) ->  | Q73: =getNumKeta0(基本情報!$E79+基本情報!$F79,6) ->  | R73: =getNumKeta0(基本情報!$E79+基本情報!$F79,5) ->  | S73: =getNumKeta0(基本情報!$E79+基本情報!$F79,4) ->  | T73: =getNumKeta0(基本情報!$E79+基本情報!$F79,3) ->  | U73: =getNumKeta0(基本情報!$E79+基本情報!$F79,2) ->  | V73: =getNumKeta0(基本情報!$E79+基本情報!$F79,1) ->  | W73: =getNumKeta0(基本情報!$G79,7) ->  | X73: =getNumKeta0(基本情報!$G79,6) ->  | Y73: =getNumKeta0(基本情報!$G79,5) ->  | Z73: =getNumKeta0(基本情報!$G79,4) ->  | AA73: =getNumKeta0(基本情報!$G79,3) ->  | AB73: =getNumKeta0(基本情報!$G79,2) ->  | AC73: =getnumketa(基本情報!M94,1) -> 0 | AD73: =getNumKeta0(基本情報!$G79,1) ->  | AF73: =getNumKeta0(基本情報!$H79,9) ->  | AH73: =getNumKeta0(基本情報!$H79,8) ->  | AJ73: =getNumKeta0(基本情報!$H79,7) ->  | AL73: =getNumKeta0(基本情報!$H79,6) ->  | AN73: =getNumKeta0(基本情報!$H79,5) ->  | AP73: =getNumKeta0(基本情報!$H79,4) ->  | AR73: =getNumKeta0(基本情報!$H79,3) ->  | AT73: =getNumKeta0(基本情報!$H79,2) ->  | AW73: =getNumKeta0(基本情報!$H79,1) -> 
A74: =基本情報!$B80 -> 0 | N74: =getNumKeta0(基本情報!$E80+基本情報!$F80,9) ->  | O74: =getNumKeta0(基本情報!$E80+基本情報!$F80,8) ->  | P74: =getNumKeta0(基本情報!$E80+基本情報!$F80,7) ->  | Q74: =getNumKeta0(基本情報!$E80+基本情報!$F80,6) ->  | R74: =getNumKeta0(基本情報!$E80+基本情報!$F80,5) ->  | S74: =getNumKeta0(基本情報!$E80+基本情報!$F80,4) ->  | T74: =getNumKeta0(基本情報!$E80+基本情報!$F80,3) ->  | U74: =getNumKeta0(基本情報!$E80+基本情報!$F80,2) ->  | V74: =getNumKeta0(基本情報!$E80+基本情報!$F80,1) ->  | W74: =getNumKeta0(基本情報!$G80,7) ->  | X74: =getNumKeta0(基本情報!$G80,6) ->  | Y74: =getNumKeta0(基本情報!$G80,5) ->  | Z74: =getNumKeta0(基本情報!$G80,4) ->  | AA74: =getNumKeta0(基本情報!$G80,3) ->  | AB74: =getNumKeta0(基本情報!$G80,2) ->  | AC74: =getnumketa(基本情報!M95,1) -> 0 | AD74: =getNumKeta0(基本情報!$G80,1) ->  | AF74: =getNumKeta0(基本情報!$H80,9) ->  | AH74: =getNumKeta0(基本情報!$H80,8) ->  | AJ74: =getNumKeta0(基本情報!$H80,7) ->  | AL74: =getNumKeta0(基本情報!$H80,6) ->  | AN74: =getNumKeta0(基本情報!$H80,5) ->  | AP74: =getNumKeta0(基本情報!$H80,4) ->  | AR74: =getNumKeta0(基本情報!$H80,3) ->  | AT74: =getNumKeta0(基本情報!$H80,2) ->  | AW74: =getNumKeta0(基本情報!$H80,1) ->  | AX74: 訂正内容
A75: =基本情報!$B81 -> 0 | N75: =getNumKeta0(基本情報!$E81+基本情報!$F81,9) ->  | O75: =getNumKeta0(基本情報!$E81+基本情報!$F81,8) ->  | P75: =getNumKeta0(基本情報!$E81+基本情報!$F81,7) ->  | Q75: =getNumKeta0(基本情報!$E81+基本情報!$F81,6) ->  | R75: =getNumKeta0(基本情報!$E81+基本情報!$F81,5) ->  | S75: =getNumKeta0(基本情報!$E81+基本情報!$F81,4) ->  | T75: =getNumKeta0(基本情報!$E81+基本情報!$F81,3) ->  | U75: =getNumKeta0(基本情報!$E81+基本情報!$F81,2) ->  | V75: =getNumKeta0(基本情報!$E81+基本情報!$F81,1) ->  | W75: =getNumKeta0(基本情報!$G81,7) ->  | X75: =getNumKeta0(基本情報!$G81,6) ->  | Y75: =getNumKeta0(基本情報!$G81,5) ->  | Z75: =getNumKeta0(基本情報!$G81,4) ->  | AA75: =getNumKeta0(基本情報!$G81,3) ->  | AB75: =getNumKeta0(基本情報!$G81,2) ->  | AC75: =getnumketa(基本情報!M96,1) -> 0 | AD75: =getNumKeta0(基本情報!$G81,1) ->  | AF75: =getNumKeta0(基本情報!$H81,9) ->  | AH75: =getNumKeta0(基本情報!$H81,8) ->  | AJ75: =getNumKeta0(基本情報!$H81,7) ->  | AL75: =getNumKeta0(基本情報!$H81,6) ->  | AN75: =getNumKeta0(基本情報!$H81,5) ->  | AP75: =getNumKeta0(基本情報!$H81,4) ->  | AR75: =getNumKeta0(基本情報!$H81,3) ->  | AT75: =getNumKeta0(基本情報!$H81,2) ->  | AW75: =getNumKeta0(基本情報!$H81,1) -> 
B77: （注） | C77: １．請求書の締切日は、原則末日５日迄提出願います。又、支払は締の翌月20日となります。
C78: 但し、提出期限が当社休日の場合は前日とし、支払日は翌銀行営業日と致します。
C79: 尚、例外として4月と12月は、締日と必着日が毎年異なりますので十分ご注意ください。（別紙カレンダー参照）
C80: 期日迄に提出されない場合は、翌月計上となります。
C81: ２．当社への登録内容に変更を生じた場合は、速やかに「取引情報（新規・変更）届出書」を提出願います。 | AZ81: 貴社→経理(控)

Sheet 請求書レイアウト (hidden)

Sheet 請求書
B1: 請求書（鏡）（一般用） | BW1: P 1/1
AC2: 変更時当社記入欄 | AV2: 取引先コード | AY2: 999999 | AZ2: 締 日 | BE2: 2020-07-31
A3: 丸高・みなと特定建設工事共同企業体 御中 | BJ3: 振込銀行 | BN3: きらやか | BU3: 銀 行 | BV3: 酒田 | CC3: 支 店
A4: 下記の通り御請求申し上げます。 | M4: 税率 ( 10% ) | AW4: （住所） | AY4: 酒田市○○○○１－１ | BJ4: 銀行ｺｰﾄﾞ | BN4: 4桁 | BP4: 508 | BU4: 支店 ｺｰﾄﾞ | BW4: 3桁 | BY4: 443
A5: 前月請求額 | K5: 0 | M5: 税抜金額計 | V5: 8 | W5: 5 | X5: 1 | Y5: 1 | Z5: 2 | AA5: 1 | AW5: （社名） | AY5: (株）○○建設 | BJ5: 口座番号 | BN5: 当 座 | BS5: 1234567
A6: 入 金 額 | K6: 0 | M6: 請求明細 消費税合計 | W6: 8 | X6: 5 | Y6: 0 | Z6: 8 | AA6: 0 | BF6: 印 | BJ6: 口座名義:漢字
A7: 値 引 額 | K7: 0 | M7: 税込当月請求額 | V7: 9 | W7: 3 | X7: 6 | Y7: 2 | Z7: 0 | AA7: 1 | AW7: （電話） | AY7: 0234 - 00 - 0000 | BJ7: (株）○○建設
A8: 繰越金額 | K8: 0 | M8: 税込当月総請求額 | V8: 9 | W8: 3 | X8: 6 | Y8: 2 | Z8: 0 | AA8: 1 | BJ8: 口座名義:カナ | BP8: ｶ)ﾏﾙﾏﾙｹﾝｾﾂ
A9: 工 事 名 | L9: ＣＫ | N9: 税抜金額 | W9: 消費税 | AF9: 税込金額 | AX9: 工 事 名 | BA9: ＣＫ | BB9: 税抜金額 | BL9: 消費税 | BT9: 税込金額
A10: ○○○○○工事 | Q10: 3 | R10: 5 | S10: 1 | T10: 1 | U10: 2 | V10: 1 | Y10: 3 | Z10: 5 | AA10: 0 | AB10: 8 | AD10: 0 | AL10: 3 | AN10: 8 | AP10: 6 | AR10: 2 | AT10: 0 | AW10: 1 | AX10: 0
A11: ×××××工事 | Q11: 5 | R11: 0 | S11: 0 | T11: 0 | U11: 0 | V11: 0 | Y11: 5 | Z11: 0 | AA11: 0 | AB11: 0 | AD11: 0 | AL11: 5 | AN11: 5 | AP11: 0 | AR11: 0 | AT11: 0 | AW11: 0 | AX11: 0
A12: 0 | AX12: 0
A13: 0 | AX13: 0
A14: 0 | AX14: 0
A15: 0 | AX15: 0
A16: 0 | AX16: 0
A17: 0 | AX17: 0
A18: 0 | AX18: 小 計 ・ 合 計 | BF18: 8 | BG18: 5 | BH18: 1 | BI18: 1 | BJ18: 2 | BK18: 1 | BN18: 8 | BO18: 5 | BQ18: 0 | BR18: 8 | BS18: 0 | BW18: 9 | BX18: 3 | BZ18: 6 | CA18: 2 | CB18: 0 | CC18: 1
A19: 0
A20: 0 | AX20: 訂正内容
A21: 0
B23: （注） | C23: １．請求書の締切日は、原則末日５日迄提出願います。又、支払は締の翌月20日となります。
C24: 但し、提出期限が当社休日の場合は前日とし、支払日は翌銀行営業日と致します。
C25: 尚、例外として4月と12月は、締日と必着日が毎年異なりますので十分ご注意ください。（別紙カレンダー参照）
C26: 期日迄に提出されない場合は、翌月計上となります。
C27: ２．当社への登録内容に変更を生じた場合は、速やかに「取引情報（新規・変更）届出書」を提出願います。 | AZ27: 貴社→経理(控)

Sheet 請求明細レイアウト (hidden)
J3: 提出用 | BN3: 提出用

Sheet 請求明細
AS1: P 1/1 | CW1: P 1/1
D2: 請求明細書（一般） | Z2: 取引先 | AC2: 999999 | AM2: 締 日 | AP2: 2020-07-31 | BH2: 請求明細書（一般） | CD2: 取引先 | CG2: 999999 | CQ2: 締 日 | CT2: 2020-07-31
J3: 提出用 | BN3: 提出用
Z5: コード | CD5: コード
B8: 丸高・みなと特定建設工事共同企業体 御中 | Z8: （住所・社名・電話） | BF8: 丸高・みなと特定建設工事共同企業体 御中 | CD8: （住所・社名・電話）
AC12: 酒田市○○○○１－１ | CG12: 酒田市○○○○１－１
B14: 工 事 名 | E14: ○○○○○工事 | P14: 承 認 | V14: 検 印 | BF14: 工 事 名 | BI14: ○○○○○工事 | BT14: 承 認 | BZ14: 検 印
AC17: (株）○○建設 | AY17: 印 | CG17: (株）○○建設 | DC17: 印
B20: 作業所長名 | E20: ○○太郎 | BF20: 作業所長名 | BI20: ○○太郎
AC22: 0234 - 00 - 0000 | CG22: 0234 - 00 - 0000
B27: 通番 | C27: 納入年月日 | F27: 品 名 ・ 規 格 | J27: 数 量 | V27: 単 位 | W27: 単 価 | AI27: 金 額 | AR27: 備 考 | BF27: 通番 | BG27: 納入年月日 | BJ27: 品 名 ・ 規 格 | BN27: 数 量 | BZ27: 単 位 | CA27: 単 価 | CM27: 金 額 | CV27: 備 考
B28: 1 | C28: 2008-07-10 | F28: ○○材料 | Q28: 5 | R28: 0 | S28: 0 | T28: 0 | V28: 個 | AB28: 5 | AC28: 0 | AD28: 0 | AE28: 0 | AF28: 0 | AG28: 0 | AL28: 2 | AM28: 5 | AN28: 0 | AO28: 0 | AP28: 0 | AQ28: 0 | BF28: 1 | BG28: 2008-07-10 | BJ28: ○○材料 | BU28: 5 | BV28: 0 | BW28: 0 | BX28: 0 | BZ28: 個 | CF28: 5 | CG28: 0 | CH28: 0 | CI28: 0 | CJ28: 0 | CK28: 0 | CP28: 2 | CQ28: 5 | CR28: 0 | CS28: 0 | CT28: 0 | CU28: 0
B29: 2 | C29: 2008-07-31 | F29: 機械損料 | Q29: 1 | R29: 0 | S29: 0 | T29: 0 | V29: 日 | AA29: 1 | AB29: 0 | AC29: 0 | AD29: 0 | AE29: 0 | AF29: 0 | AG29: 0 | AL29: 1 | AM29: 0 | AN29: 0 | AO29: 0 | AP29: 0 | AQ29: 0 | BF29: 2 | BG29: 2008-07-31 | BJ29: 機械損料 | BU29: 1 | BV29: 0 | BW29: 0 | BX29: 0 | BZ29: 日 | CE29: 1 | CF29: 0 | CG29: 0 | CH29: 0 | CI29: 0 | CJ29: 0 | CK29: 0 | CP29: 1 | CQ29: 0 | CR29: 0 | CS29: 0 | CT29: 0 | CU29: 0
B30: 3 | C30: 2008-07-31 | F30: 軽油 | Q30: 1 | R30: 0 | S30: 0 | T30: 0 | V30: Ｌ | AD30: 8 | AE30: 0 | AF30: 0 | AG30: 0 | AO30: 8 | AP30: 0 | AQ30: 0 | BF30: 3 | BG30: 2008-07-31 | BJ30: 軽油 | BU30: 1 | BV30: 0 | BW30: 0 | BX30: 0 | BZ30: Ｌ | CH30: 8 | CI30: 0 | CJ30: 0 | CK30: 0 | CS30: 8 | CT30: 0 | CU30: 0
B31: 4 | C31: 2008-07-31 | F31: 軽油税 | Q31: 1 | R31: 0 | S31: 0 | T31: 0 | V31: Ｌ | AD31: 3 | AE31: 2 | AF31: 1 | AG31: 0 | AO31: 3 | AP31: 2 | AQ31: 1 | BF31: 4 | BG31: 2008-07-31 | BJ31: 軽油税 | BU31: 1 | BV31: 0 | BW31: 0 | BX31: 0 | BZ31: Ｌ | CH31: 3 | CI31: 2 | CJ31: 1 | CK31: 0 | CS31: 3 | CT31: 2 | CU31: 1
B32: 5 | BF32: 5
B33: 6 | BF33: 6
B34: 7 | BF34: 7
B35: 8 | BF35: 8
B36: 9 | BF36: 9
B37: 10 | BF37: 10
B38: 11 | BF38: 11
B39: 12 | BF39: 12
B40: 13 | BF40: 13
B41: 14 | BF41: 14
B42: 15 | BF42: 15
W43: 小 計 | AL43: 3 | AM43: 5 | AN43: 1 | AO43: 1 | AP43: 2 | AQ43: 1 | AR43: Ａ | AS43: 351121 | CA43: 小 計 | CP43: 3 | CQ43: 5 | CR43: 1 | CS43: 1 | CT43: 2 | CU43: 1 | CV43: Ａ | CW43: 351121
W44: 消 費 税 | AE44: 0.1 | AM44: 3 | AN44: 5 | AO44: 0 | AP44: 8 | AQ44: 0 | AR44: Ｂ | AS44: 35080 | CA44: 消 費 税 | CI44: 0.1 | CQ44: 3 | CR44: 5 | CS44: 0 | CT44: 8 | CU44: 0 | CV44: Ｂ | CW44: 35080
W45: 合 計 | AL45: 3 | AM45: 8 | AN45: 6 | AO45: 2 | AP45: 0 | AQ45: 1 | AR45: Ｃ | AS45: 386201 | CA45: 合 計 | CP45: 3 | CQ45: 8 | CR45: 6 | CS45: 2 | CT45: 0 | CU45: 1 | CV45: Ｃ | CW45: 386201
W46: 貴社→請求書(添付)→経理(控) | CA46: 貴社→請求書(添付)→経理→作業所長(控)
AS48: P 1/1 | CW48: P 1/1
D49: 請求明細書（一般） | Z49: 取引先 | AC49: 999999 | AM49: 締 日 | AP49: 2020-07-31 | BH49: 請求明細書（一般） | CD49: 取引先 | CG49: 999999 | CQ49: 締 日 | CT49: 2020-07-31
J50: 提出用 | BN50: 提出用
Z52: コード | CD52: コード
B55: 丸高・みなと特定建設工事共同企業体 御中 | Z55: （住所・社名・電話） | BF55: 丸高・みなと特定建設工事共同企業体 御中 | CD55: （住所・社名・電話）
AC59: 酒田市○○○○１－１ | CG59: 酒田市○○○○１－１
B61: 工 事 名 | E61: ×××××工事 | P61: 承 認 | V61: 検 印 | BF61: 工 事 名 | BI61: ×××××工事 | BT61: 承 認 | BZ61: 検 印
AC64: (株）○○建設 | AY64: 印 | CG64: (株）○○建設 | DC64: 印
B67: 作業所長名 | E67: ××次郎 | BF67: 作業所長名 | BI67: ××次郎
AC69: 0234 - 00 - 0000 | CG69: 0234 - 00 - 0000
B74: 通番 | C74: 納入年月日 | F74: 品 名 ・ 規 格 | J74: 数 量 | V74: 単 位 | W74: 単 価 | AI74: 金 額 | AR74: 備 考 | BF74: 通番 | BG74: 納入年月日 | BJ74: 品 名 ・ 規 格 | BN74: 数 量 | BZ74: 単 位 | CA74: 単 価 | CM74: 金 額 | CV74: 備 考
B75: 1 | C75: 2008-07-25 | F75: ○○材料 | Q75: 5 | R75: 0 | S75: 0 | T75: 0 | V75: 個 | AB75: 5 | AC75: 0 | AD75: 0 | AE75: 0 | AF75: 0 | AG75: 0 | AL75: 2 | AM75: 5 | AN75: 0 | AO75: 0 | AP75: 0 | AQ75: 0 | BF75: 1 | BG75: 2008-07-25 | BJ75: ○○材料 | BU75: 5 | BV75: 0 | BW75: 0 | BX75: 0 | BZ75: 個 | CF75: 5 | CG75: 0 | CH75: 0 | CI75: 0 | CJ75: 0 | CK75: 0 | CP75: 2 | CQ75: 5 | CR75: 0 | CS75: 0 | CT75: 0 | CU75: 0
B76: 2 | C76: 2008-07-31 | F76: 労務費 | Q76: 2 | R76: 5 | S76: 0 | T76: 0 | V76: 人 | AA76: 1 | AB76: 0 | AC76: 0 | AD76: 0 | AE76: 0 | AF76: 0 | AG76: 0 | AL76: 2 | AM76: 5 | AN76: 0 | AO76: 0 | AP76: 0 | AQ76: 0 | BF76: 2 | BG76: 2008-07-31 | BJ76: 労務費 | BU76: 2 | BV76: 5 | BW76: 0 | BX76: 0 | BZ76: 人 | CE76: 1 | CF76: 0 | CG76: 0 | CH76: 0 | CI76: 0 | CJ76: 0 | CK76: 0 | CP76: 2 | CQ76: 5 | CR76: 0 | CS76: 0 | CT76: 0 | CU76: 0
B77: 3 | BF77: 3
B78: 4 | BF78: 4
B79: 5 | BF79: 5
B80: 6 | BF80: 6
B81: 7 | BF81: 7
B82: 8 | BF82: 8
B83: 9 | BF83: 9
B84: 10 | BF84: 10
B85: 11 | BF85: 11
B86: 12 | BF86: 12
B87: 13 | BF87: 13
B88: 14 | BF88: 14
B89: 15 | BF89: 15
W90: 小 計 | AL90: 5 | AM90: 0 | AN90: 0 | AO90: 0 | AP90: 0 | AQ90: 0 | AR90: Ａ | AS90: 500000 | CA90: 小 計 | CP90: 5 | CQ90: 0 | CR90: 0 | CS90: 0 | CT90: 0 | CU90: 0 | CV90: Ａ | CW90: 500000
W91: 消 費 税 | AE91: 0.1 | AM91: 5 | AN91: 0 | AO91: 0 | AP91: 0 | AQ91: 0 | AR91: Ｂ | AS91: 50000 | CA91: 消 費 税 | CI91: 0.1 | CQ91: 5 | CR91: 0 | CS91: 0 | CT91: 0 | CU91: 0 | CV91: Ｂ | CW91: 50000
W92: 合 計 | AL92: 5 | AM92: 5 | AN92: 0 | AO92: 0 | AP92: 0 | AQ92: 0 | AR92: Ｃ | AS92: 550000 | CA92: 合 計 | CP92: 5 | CQ92: 5 | CR92: 0 | CS92: 0 | CT92: 0 | CU92: 0 | CV92: Ｃ | CW92: 550000
W93: 貴社→請求書(添付)→経理(控) | CA93: 貴社→請求書(添付)→経理→作業所長(控)

Sheet ひな請求明細 (hidden)
AS1: ="P " & B42/15 & "/" & ROUNDUP(COUNTIF(請求明細_工事場所, E14)/15,0) -> P 1/1 | CW1: ="P " & BF42/15 & "/" & ROUNDUP(COUNTIF(請求明細_工事場所, BI14)/15,0) -> P 1/1
D2: 請求明細書（一般） | Z2: 取引先 | AC2: =基本情報_取引先コード -> 999999 | AM2: 締 日 | AP2: =基本情報_請求締日 -> 2020-07-31 | BH2: 請求明細書（一般） | CD2: 取引先 | CG2: =基本情報_取引先コード -> 999999 | CQ2: 締 日 | CT2: =基本情報_請求締日 -> 2020-07-31
J3: 提出用 | BN3: 提出用
Z5: コード | CD5: コード
B8: 丸高・みなと特定建設工事共同企業体 御中 | Z8: （住所・社名・電話） | BF8: 丸高・みなと特定建設工事共同企業体 御中 | CD8: （住所・社名・電話）
AC12: =基本情報_住所 -> 酒田市○○○○１－１ | CG12: =基本情報_住所 -> 酒田市○○○○１－１
B14: 工 事 名 | E14: ×××××工事 | P14: 承 認 | V14: 検 印 | BF14: 工 事 名 | BI14: =$E$14 -> ×××××工事 | BT14: 承 認 | BZ14: 検 印
AC17: =基本情報_社名 -> (株）○○建設 | AY17: 印 | CG17: =基本情報_社名 -> (株）○○建設 | DC17: 印
B20: 作業所長名 | E20: =VLOOKUP(E14,基本情報_工事名称マスタ,3,FALSE) -> ××次郎 | BF20: 作業所長名 | BI20: =VLOOKUP(BI14,基本情報_工事名称マスタ,3,FALSE) -> ××次郎
AC22: =基本情報_電話番号 -> 0234 - 00 - 0000 | CG22: =基本情報_電話番号 -> 0234 - 00 - 0000
B27: 通番 | C27: 納入年月日 | F27: 品 名 ・ 規 格 | J27: 数 量 | V27: 単 位 | W27: 単 価 | AI27: 金 額 | AR27: 備 考 | BF27: 通番 | BG27: 納入年月日 | BJ27: 品 名 ・ 規 格 | BN27: 数 量 | BZ27: 単 位 | CA27: 単 価 | CM27: 金 額 | CV27: 備 考 | DI27: ヒット | DJ27: ランク | DK27: - | DL27: 通番 | DM27: 数量 | DN27: 単価 | DO27: 金額
B28: 1 | C28: =IF(ISNA($DL28),"",VLOOKUP($DL28,請求明細,3,FALSE)) -> 2008-07-25 | F28: =IF(ISNA($DL28),"",VLOOKUP($DL28,請求明細,4,FALSE)) -> ○○材料 | J28: =IF(ISNA($DL28),"",getNumKeta0($DM28,9)) ->  | K28: =IF(ISNA($DL28),"",getNumKeta0($DM28,8)) ->  | L28: =IF(ISNA($DL28),"",getNumKeta0($DM28,7)) ->  | M28: =IF(ISNA($DL28),"",getNumKeta0($DM28,6)) ->  | N28: =IF(ISNA($DL28),"",getNumKeta0($DM28,5)) ->  | O28: =IF(ISNA($DL28),"",getNumKeta0($DM28,4)) ->  | P28: =IF(ISNA($DL28),"",getNumKeta0($DM28,3)) ->  | Q28: =IF(ISNA($DL28),"",getNumKeta0($DM28,2)) -> 5 | R28: =IF(ISNA($DL28),"",getNumKeta0($DM28,1)) -> 0 | S28: =IF(ISNA($DL28),"",getNumKeta0($DM28,-1)) -> 0 | T28: =IF(ISNA($DL28),"",getNumKeta0($DM28,-2)) -> 0 | U28: =IF(ISNA($DL28),"",getNumKeta0($DM28,-3)) ->  | V28: =IF(ISNA($DL28),"",VLOOKUP($DL28,請求明細,6,FALSE)) -> 個 | W28: =IF(ISNA($DL28),"",getNumKeta0($DN28,9)) ->  | X28: =IF(ISNA($DL28),"",getNumKeta0($DN28,8)) ->  | Y28: =IF(ISNA($DL28),"",getNumKeta0($DN28,7)) ->  | Z28: =IF(ISNA($DL28),"",getNumKeta0($DN28,6)) ->  | AA28: =IF(ISNA($DL28),"",getNumKeta0($DN28,5)) ->  | AB28: =IF(ISNA($DL28),"",getNumKeta0($DN28,4)) -> 5 | AC28: =IF(ISNA($DL28),"",getNumKeta0($DN28,3)) -> 0 | AD28: =IF(ISNA($DL28),"",getNumKeta0($DN28,2)) -> 0 | AE28: =IF(ISNA($DL28),"",getNumKeta0($DN28,1)) -> 0 | AF28: =IF(ISNA($DL28),"",getNumKeta0($DN28,-1)) -> 0 | AG28: =IF(ISNA($DL28),"",getNumKeta0($DN28,-2)) -> 0 | AH28: =IF(ISNA($DL28),"",getNumKeta0($DN28,-3)) ->  | AI28: =IF(ISNA($DL28),"",getNumKeta0($DO28,9)) ->  | AJ28: =IF(ISNA($DL28),"",getNumKeta0($DO28,8)) ->  | AK28: =IF(ISNA($DL28),"",getNumKeta0($DO28,7)) ->  | AL28: =IF(ISNA($DL28),"",getNumKeta0($DO28,6)) -> 2 | AM28: =IF(ISNA($DL28),"",getNumKeta0($DO28,5)) -> 5 | AN28: =IF(ISNA($DL28),"",getNumKeta0($DO28,4)) -> 0 | AO28: =IF(ISNA($DL28),"",getNumKeta0($DO28,3)) -> 0 | AP28: =IF(ISNA($DL28),"",getNumKeta0($DO28,2)) -> 0 | AQ28: =IF(ISNA($DL28),"",getNumKeta0($DO28,1)) -> 0 | AR28: =IF(ISNA($DL28),"",LEFT(VLOOKUP($DL28,請求明細,10,FALSE),16)) ->  | BF28: 1 | BG28: =IF(ISNA($DL28),"",VLOOKUP($DL28,請求明細,3,FALSE)) -> 2008-07-25 | BJ28: =IF(ISNA($DL28),"",VLOOKUP($DL28,請求明細,4,FALSE)) -> ○○材料 | BN28: =IF(ISNA($DL28),"",getNumKeta0($DM28,9)) ->  | BO28: =IF(ISNA($DL28),"",getNumKeta0($DM28,8)) ->  | BP28: =IF(ISNA($DL28),"",getNumKeta0($DM28,7)) ->  | BQ28: =IF(ISNA($DL28),"",getNumKeta0($DM28,6)) ->  | BR28: =IF(ISNA($DL28),"",getNumKeta0($DM28,5)) ->  | BS28: =IF(ISNA($DL28),"",getNumKeta0($DM28,4)) ->  | BT28: =IF(ISNA($DL28),"",getNumKeta0($DM28,3)) ->  | BU28: =IF(ISNA($DL28),"",getNumKeta0($DM28,2)) -> 5 | BV28: =IF(ISNA($DL28),"",getNumKeta0($DM28,1)) -> 0 | BW28: =IF(ISNA($DL28),"",getNumKeta0($DM28,-1)) -> 0 | BX28: =IF(ISNA($DL28),"",getNumKeta0($DM28,-2)) -> 0 | BY28: =IF(ISNA($DL28),"",getNumKeta0($DM28,-3)) ->  | BZ28: =IF(ISNA($DL28),"",VLOOKUP($DL28,請求明細,6,FALSE)) -> 個 | CA28: =IF(ISNA($DL28),"",getNumKeta0($DN28,9)) ->  | CB28: =IF(ISNA($DL28),"",getNumKeta0($DN28,8)) ->  | CC28: =IF(ISNA($DL28),"",getNumKeta0($DN28,7)) ->  | CD28: =IF(ISNA($DL28),"",getNumKeta0($DN28,6)) ->  | CE28: =IF(ISNA($DL28),"",getNumKeta0($DN28,5)) ->  | CF28: =IF(ISNA($DL28),"",getNumKeta0($DN28,4)) -> 5 | CG28: =IF(ISNA($DL28),"",getNumKeta0($DN28,3)) -> 0 | CH28: =IF(ISNA($DL28),"",getNumKeta0($DN28,2)) -> 0 | CI28: =IF(ISNA($DL28),"",getNumKeta0($DN28,1)) -> 0 | CJ28: =IF(ISNA($DL28),"",getNumKeta0($DN28,-1)) -> 0 | CK28: =IF(ISNA($DL28),"",getNumKeta0($DN28,-2)) -> 0 | CL28: =IF(ISNA($DL28),"",getNumKeta0($DN28,-3)) ->  | CM28: =IF(ISNA($DL28),"",getNumKeta0($DO28,9)) ->  | CN28: =IF(ISNA($DL28),"",getNumKeta0($DO28,8)) ->  | CO28: =IF(ISNA($DL28),"",getNumKeta0($DO28,7)) ->  | CP28: =IF(ISNA($DL28),"",getNumKeta0($DO28,6)) -> 2 | CQ28: =IF(ISNA($DL28),"",getNumKeta0($DO28,5)) -> 5 | CR28: =IF(ISNA($DL28),"",getNumKeta0($DO28,4)) -> 0 | CS28: =IF(ISNA($DL28),"",getNumKeta0($DO28,3)) -> 0 | CT28: =IF(ISNA($DL28),"",getNumKeta0($DO28,2)) -> 0 | CU28: =IF(ISNA($DL28),"",getNumKeta0($DO28,1)) -> 0 | CV28: =IF(ISNA($DL28),"",LEFT(VLOOKUP($DL28,請求明細,10,FALSE),16)) ->  | DI28: =IF($E$14=OFFSET(明細情報!$B$5, $DK28-1,0),1,0) -> 0 | DJ28: =IF($DI28=0, 0, SUM($DI$28:$DI28)) -> 0 | DK28: 1 | DL28: =VLOOKUP(DK28,$DJ$28:$DK$65536,2,FALSE) -> 2 | DM28: =IF(ISNA($DL28),0,VLOOKUP($DL28,請求明細,5,FALSE)) -> 50 | DN28: =IF(ISNA($DL28),0,VLOOKUP($DL28,請求明細,7,FALSE)) -> 5000 | DO28: =IF(ISNA($DL28),0,VLOOKUP($DL28,請求明細,9,FALSE)) -> 250000
B29: =B28+1 -> 2 | C29: 2008-07-31 | F29: 労務費 | Q29: 2 | R29: 5 | S29: 0 | T29: 0 | V29: 人 | AA29: 1 | AB29: 0 | AC29: 0 | AD29: 0 | AE29: 0 | AF29: 0 | AG29: 0 | AL29: 2 | AM29: 5 | AN29: 0 | AO29: 0 | AP29: 0 | AQ29: 0 | BF29: =BF28+1 -> 2 | BG29: 2008-07-31 | BJ29: 労務費 | BU29: 2 | BV29: 5 | BW29: 0 | BX29: 0 | BZ29: 人 | CE29: 1 | CF29: 0 | CG29: 0 | CH29: 0 | CI29: 0 | CJ29: 0 | CK29: 0 | CP29: 2 | CQ29: 5 | CR29: 0 | CS29: 0 | CT29: 0 | CU29: 0 | DI29: =IF($E$14=OFFSET(明細情報!$B$5, $DK29-1,0),1,0) -> 1 | DJ29: =IF($DI29=0, 0, SUM($DI$28:$DI29)) -> 1 | DK29: =DK28+1 -> 2 | DL29: =VLOOKUP(B29,$DJ$28:$DK$65536,2,FALSE) -> 3 | DM29: 25 | DN29: 10000 | DO29: 250000
B30: 3 | BF30: 3 | DI30: =IF($E$14=OFFSET(明細情報!$B$5, $DK30-1,0),1,0) -> 1 | DJ30: =IF($DI30=0, 0, SUM($DI$28:$DI30)) -> 2 | DK30: 3 | DM30: 0 | DN30: 0 | DO30: 0
B31: 4 | BF31: 4 | DI31: =IF($E$14=OFFSET(明細情報!$B$5, $DK31-1,0),1,0) -> 0 | DJ31: =IF($DI31=0, 0, SUM($DI$28:$DI31)) -> 0 | DK31: 4 | DM31: 0 | DN31: 0 | DO31: 0
B32: 5 | BF32: 5 | DI32: =IF($E$14=OFFSET(明細情報!$B$5, $DK32-1,0),1,0) -> 0 | DJ32: =IF($DI32=0, 0, SUM($DI$28:$DI32)) -> 0 | DK32: 5 | DM32: 0 | DN32: 0 | DO32: 0
B33: 6 | BF33: 6 | DI33: =IF($E$14=OFFSET(明細情報!$B$5, $DK33-1,0),1,0) -> 0 | DJ33: =IF($DI33=0, 0, SUM($DI$28:$DI33)) -> 0 | DK33: 6 | DM33: 0 | DN33: 0 | DO33: 0
B34: 7 | BF34: 7 | DI34: =IF($E$14=OFFSET(明細情報!$B$5, $DK34-1,0),1,0) -> 0 | DJ34: =IF($DI34=0, 0, SUM($DI$28:$DI34)) -> 0 | DK34: 7 | DM34: 0 | DN34: 0 | DO34: 0
B35: 8 | BF35: 8 | DI35: =IF($E$14=OFFSET(明細情報!$B$5, $DK35-1,0),1,0) -> 0 | DJ35: =IF($DI35=0, 0, SUM($DI$28:$DI35)) -> 0 | DK35: 8 | DM35: 0 | DN35: 0 | DO35: 0
B36: 9 | BF36: 9 | DI36: =IF($E$14=OFFSET(明細情報!$B$5, $DK36-1,0),1,0) -> 0 | DJ36: =IF($DI36=0, 0, SUM($DI$28:$DI36)) -> 0 | DK36: 9 | DM36: 0 | DN36: 0 | DO36: 0
B37: 10 | BF37: 10 | DI37: =IF($E$14=OFFSET(明細情報!$B$5, $DK37-1,0),1,0) -> 0 | DJ37: =IF($DI37=0, 0, SUM($DI$28:$DI37)) -> 0 | DK37: 10 | DM37: 0 | DN37: 0 | DO37: 0
B38: 11 | BF38: 11 | DI38: =IF($E$14=OFFSET(明細情報!$B$5, $DK38-1,0),1,0) -> 0 | DJ38: =IF($DI38=0, 0, SUM($DI$28:$DI38)) -> 0 | DK38: 11 | DM38: 0 | DN38: 0 | DO38: 0
B39: 12 | BF39: 12 | DI39: =IF($E$14=OFFSET(明細情報!$B$5, $DK39-1,0),1,0) -> 0 | DJ39: =IF($DI39=0, 0, SUM($DI$28:$DI39)) -> 0 | DK39: 12 | DM39: 0 | DN39: 0 | DO39: 0
B40: 13 | BF40: 13 | DI40: =IF($E$14=OFFSET(明細情報!$B$5, $DK40-1,0),1,0) -> 0 | DJ40: =IF($DI40=0, 0, SUM($DI$28:$DI40)) -> 0 | DK40: 13 | DM40: 0 | DN40: 0 | DO40: 0
B41: 14 | BF41: 14 | DI41: =IF($E$14=OFFSET(明細情報!$B$5, $DK41-1,0),1,0) -> 0 | DJ41: =IF($DI41=0, 0, SUM($DI$28:$DI41)) -> 0 | DK41: 14 | DM41: 0 | DN41: 0 | DO41: 0
B42: 15 | BF42: 15 | DI42: =IF($E$14=OFFSET(明細情報!$B$5, $DK42-1,0),1,0) -> 0 | DJ42: =IF($DI42=0, 0, SUM($DI$28:$DI42)) -> 0 | DK42: 15 | DM42: 0 | DN42: 0 | DO42: 0
W43: 小 計 | AI43: =getNumKeta0($DP43,9) ->  | AJ43: =getNumKeta0($DP43,8) ->  | AK43: =getNumKeta0($DP43,7) ->  | AL43: =getNumKeta0($DP43,6) -> 5 | AM43: =getNumKeta0($DP43,5) -> 0 | AN43: =getNumKeta0($DP43,4) -> 0 | AO43: =getNumKeta0($DP43,3) -> 0 | AP43: =getNumKeta0($DP43,2) -> 0 | AQ43: =getNumKeta0($DP43,1) -> 0 | AR43: Ａ | AS43: =IF($DQ43=0,"", $DQ43) -> 500000 | BB43: =IF($DP43<>$DQ43,"*","") ->  | CA43: 小 計 | CM43: =getNumKeta0($DP43,9) ->  | CN43: =getNumKeta0($DP43,8) ->  | CO43: =getNumKeta0($DP43,7) ->  | CP43: =getNumKeta0($DP43,6) -> 5 | CQ43: =getNumKeta0($DP43,5) -> 0 | CR43: =getNumKeta0($DP43,4) -> 0 | CS43: =getNumKeta0($DP43,3) -> 0 | CT43: =getNumKeta0($DP43,2) -> 0 | CU43: =getNumKeta0($DP43,1) -> 0 | CV43: Ａ | CW43: =IF($DQ43=0,"", $DQ43) -> 500000 | DF43: =IF($DP43<>$DQ43,"*","") ->  | DP43: =IF($DK42/15=ROUNDUP(MAX($DJ:$DJ)/15,0),VLOOKUP($E$14,基本情報_工事名称マスタ,4,FALSE)+VLOOKUP($E$14,基本情報_工事名称マスタ,5,FALSE),0) -> 500000 | DQ43: =IF($DK42/15=ROUNDUP(MAX($DJ:$DJ)/15,0),DQ45-DQ44,0) -> 500000
W44: 消 費 税 | AE44: =基本情報_消費税率 -> 0.1 | AI44: =getNumKeta0($DP44,9) ->  | AJ44: =getNumKeta0($DP44,8) ->  | AK44: =getNumKeta0($DP44,7) ->  | AL44: =getNumKeta0($DP44,6) ->  | AM44: =getNumKeta0($DP44,5) -> 5 | AN44: =getNumKeta0($DP44,4) -> 0 | AO44: =getNumKeta0($DP44,3) -> 0 | AP44: =getNumKeta0($DP44,2) -> 0 | AQ44: =getNumKeta0($DP44,1) -> 0 | AR44: Ｂ | AS44: =IF($DQ44=0,"", $DQ44) -> 50000 | CA44: 消 費 税 | CI44: =基本情報_消費税率 -> 0.1 | CM44: =getNumKeta0($DP44,9) ->  | CN44: =getNumKeta0($DP44,8) ->  | CO44: =getNumKeta0($DP44,7) ->  | CP44: =getNumKeta0($DP44,6) ->  | CQ44: =getNumKeta0($DP44,5) -> 5 | CR44: =getNumKeta0($DP44,4) -> 0 | CS44: =getNumKeta0($DP44,3) -> 0 | CT44: =getNumKeta0($DP44,2) -> 0 | CU44: =getNumKeta0($DP44,1) -> 0 | CV44: Ｂ | CW44: =IF($DQ44=0,"", $DQ44) -> 50000 | DP44: =IF($DK42/15=ROUNDUP(MAX($DJ:$DJ)/15,0),VLOOKUP($E$14,基本情報_工事名称マスタ,6,FALSE),0) -> 50000 | DQ44: =IF($DK42/15=ROUNDUP(MAX($DJ:$DJ)/15,0),ROUND((DQ45-VLOOKUP($E$14,基本情報_工事名称マスタ,5,FALSE))/(基本情報_消費税率*100+100)*(基本情報_消費税率*100),0),0) -> 50000
W45: 合 計 | AI45: =getNumKeta0($DP45,9) ->  | AJ45: =getNumKeta0($DP45,8) ->  | AK45: =getNumKeta0($DP45,7) ->  | AL45: =getNumKeta0($DP45,6) -> 5 | AM45: =getNumKeta0($DP45,5) -> 5 | AN45: =getNumKeta0($DP45,4) -> 0 | AO45: =getNumKeta0($DP45,3) -> 0 | AP45: =getNumKeta0($DP45,2) -> 0 | AQ45: =getNumKeta0($DP45,1) -> 0 | AR45: Ｃ | AS45: =IF($DQ45=0,"", $DQ45) -> 550000 | CA45: 合 計 | CM45: =getNumKeta0($DP45,9) ->  | CN45: =getNumKeta0($DP45,8) ->  | CO45: =getNumKeta0($DP45,7) ->  | CP45: =getNumKeta0($DP45,6) -> 5 | CQ45: =getNumKeta0($DP45,5) -> 5 | CR45: =getNumKeta0($DP45,4) -> 0 | CS45: =getNumKeta0($DP45,3) -> 0 | CT45: =getNumKeta0($DP45,2) -> 0 | CU45: =getNumKeta0($DP45,1) -> 0 | CV45: Ｃ | CW45: =IF($DQ45=0,"", $DQ45) -> 550000 | DP45: =IF($DK42/15=ROUNDUP(MAX($DJ:$DJ)/15,0),VLOOKUP($E$14,基本情報_工事名称マスタ,7,FALSE),0) -> 550000 | DQ45: =DP45 -> 550000
W46: 貴社→請求書(添付)→経理(控) | CA46: 貴社→請求書(添付)→経理→作業所長(控)
AS48: ="P " & B89/15 & "/" & ROUNDUP(COUNTIF(請求明細_工事場所, E61)/15,0) -> P 2/1 | CW48: ="P " & BF89/15 & "/" & ROUNDUP(COUNTIF(請求明細_工事場所, BI61)/15,0) -> P 2/1
D49: 請求明細書（一般） | Z49: 取引先 | AC49: =基本情報_取引先コード -> 999999 | AM49: 締 日 | AP49: =基本情報_請求締日 -> 2020-07-31 | BH49: 請求明細書（一般） | CD49: 取引先 | CG49: =基本情報_取引先コード -> 999999 | CQ49: 締 日 | CT49: =基本情報_請求締日 -> 2020-07-31
J50: 提出用 | BN50: 提出用
Z52: コード | CD52: コード
B55: 丸高・みなと特定建設工事共同企業体 御中 | Z55: （住所・社名・電話） | BF55: 丸高・みなと特定建設工事共同企業体 御中 | CD55: （住所・社名・電話）
AC59: =基本情報_住所 -> 酒田市○○○○１－１ | CG59: =基本情報_住所 -> 酒田市○○○○１－１
B61: 工 事 名 | E61: =$E$14 -> ×××××工事 | P61: 承 認 | V61: 検 印 | BF61: 工 事 名 | BI61: =$E$14 -> ×××××工事 | BT61: 承 認 | BZ61: 検 印
AC64: =基本情報_社名 -> (株）○○建設 | AY64: 印 | CG64: =基本情報_社名 -> (株）○○建設 | DC64: 印
B67: 作業所長名 | E67: =VLOOKUP(E61,基本情報_工事名称マスタ,3,FALSE) -> ××次郎 | BF67: 作業所長名 | BI67: =VLOOKUP(BI61,基本情報_工事名称マスタ,3,FALSE) -> ××次郎
AC69: =基本情報_電話番号 -> 0234 - 00 - 0000 | CG69: =基本情報_電話番号 -> 0234 - 00 - 0000
B74: 通番 | C74: 納入年月日 | F74: 品 名 ・ 規 格 | J74: 数 量 | V74: 単 位 | W74: 単 価 | AI74: 金 額 | AR74: 備 考 | BF74: 通番 | BG74: 納入年月日 | BJ74: 品 名 ・ 規 格 | BN74: 数 量 | BZ74: 単 位 | CA74: 単 価 | CM74: 金 額 | CV74: 備 考 | DI74: ヒット | DJ74: ランク | DK74: - | DL74: 通番 | DM74: 数量 | DN74: 単価 | DO74: 金額
B75: =B42+1 -> 16 | C75: =IF(ISNA($DL75),"",VLOOKUP($DL75,請求明細,3,FALSE)) ->  | F75: =IF(ISNA($DL75),"",VLOOKUP($DL75,請求明細,4,FALSE)) ->  | J75: =IF(ISNA($DL75),"",getNumKeta0($DM75,9)) ->  | K75: =IF(ISNA($DL75),"",getNumKeta0($DM75,8)) ->  | L75: =IF(ISNA($DL75),"",getNumKeta0($DM75,7)) ->  | M75: =IF(ISNA($DL75),"",getNumKeta0($DM75,6)) ->  | N75: =IF(ISNA($DL75),"",getNumKeta0($DM75,5)) ->  | O75: =IF(ISNA($DL75),"",getNumKeta0($DM75,4)) ->  | P75: =IF(ISNA($DL75),"",getNumKeta0($DM75,3)) ->  | Q75: =IF(ISNA($DL75),"",getNumKeta0($DM75,2)) ->  | R75: =IF(ISNA($DL75),"",getNumKeta0($DM75,1)) ->  | S75: =IF(ISNA($DL75),"",getNumKeta0($DM75,-1)) ->  | T75: =IF(ISNA($DL75),"",getNumKeta0($DM75,-2)) ->  | U75: =IF(ISNA($DL75),"",getNumKeta0($DM75,-3)) ->  | V75: =IF(ISNA($DL75),"",VLOOKUP($DL75,請求明細,6,FALSE)) ->  | W75: =IF(ISNA($DL75),"",getNumKeta0($DN75,9)) ->  | X75: =IF(ISNA($DL75),"",getNumKeta0($DN75,8)) ->  | Y75: =IF(ISNA($DL75),"",getNumKeta0($DN75,7)) ->  | Z75: =IF(ISNA($DL75),"",getNumKeta0($DN75,6)) ->  | AA75: =IF(ISNA($DL75),"",getNumKeta0($DN75,5)) ->  | AB75: =IF(ISNA($DL75),"",getNumKeta0($DN75,4)) ->  | AC75: =IF(ISNA($DL75),"",getNumKeta0($DN75,3)) ->  | AD75: =IF(ISNA($DL75),"",getNumKeta0($DN75,2)) ->  | AE75: =IF(ISNA($DL75),"",getNumKeta0($DN75,1)) ->  | AF75: =IF(ISNA($DL75),"",getNumKeta0($DN75,-1)) ->  | AG75: =IF(ISNA($DL75),"",getNumKeta0($DN75,-2)) ->  | AH75: =IF(ISNA($DL75),"",getNumKeta0($DN75,-3)) ->  | AI75: =IF(ISNA($DL75),"",getNumKeta0($DO75,9)) ->  | AJ75: =IF(ISNA($DL75),"",getNumKeta0($DO75,8)) ->  | AK75: =IF(ISNA($DL75),"",getNumKeta0($DO75,7)) ->  | AL75: =IF(ISNA($DL75),"",getNumKeta0($DO75,6)) ->  | AM75: =IF(ISNA($DL75),"",getNumKeta0($DO75,5)) ->  | AN75: =IF(ISNA($DL75),"",getNumKeta0($DO75,4)) ->  | AO75: =IF(ISNA($DL75),"",getNumKeta0($DO75,3)) ->  | AP75: =IF(ISNA($DL75),"",getNumKeta0($DO75,2)) ->  | AQ75: =IF(ISNA($DL75),"",getNumKeta0($DO75,1)) ->  | AR75: =IF(ISNA($DL75),"",LEFT(VLOOKUP($DL75,請求明細,10,FALSE),16)) ->  | BF75: =BF42+1 -> 16 | BG75: =IF(ISNA($DL75),"",VLOOKUP($DL75,請求明細,3,FALSE)) ->  | BJ75: =IF(ISNA($DL75),"",VLOOKUP($DL75,請求明細,4,FALSE)) ->  | BN75: =IF(ISNA($DL75),"",getNumKeta0($DM75,9)) ->  | BO75: =IF(ISNA($DL75),"",getNumKeta0($DM75,8)) ->  | BP75: =IF(ISNA($DL75),"",getNumKeta0($DM75,7)) ->  | BQ75: =IF(ISNA($DL75),"",getNumKeta0($DM75,6)) ->  | BR75: =IF(ISNA($DL75),"",getNumKeta0($DM75,5)) ->  | BS75: =IF(ISNA($DL75),"",getNumKeta0($DM75,4)) ->  | BT75: =IF(ISNA($DL75),"",getNumKeta0($DM75,3)) ->  | BU75: =IF(ISNA($DL75),"",getNumKeta0($DM75,2)) ->  | BV75: =IF(ISNA($DL75),"",getNumKeta0($DM75,1)) ->  | BW75: =IF(ISNA($DL75),"",getNumKeta0($DM75,-1)) ->  | BX75: =IF(ISNA($DL75),"",getNumKeta0($DM75,-2)) ->  | BY75: =IF(ISNA($DL75),"",getNumKeta0($DM75,-3)) ->  | BZ75: =IF(ISNA($DL75),"",VLOOKUP($DL75,請求明細,6,FALSE)) ->  | CA75: =IF(ISNA($DL75),"",getNumKeta0($DN75,9)) ->  | CB75: =IF(ISNA($DL75),"",getNumKeta0($DN75,8)) ->  | CC75: =IF(ISNA($DL75),"",getNumKeta0($DN75,7)) ->  | CD75: =IF(ISNA($DL75),"",getNumKeta0($DN75,6)) ->  | CE75: =IF(ISNA($DL75),"",getNumKeta0($DN75,5)) ->  | CF75: =IF(ISNA($DL75),"",getNumKeta0($DN75,4)) ->  | CG75: =IF(ISNA($DL75),"",getNumKeta0($DN75,3)) ->  | CH75: =IF(ISNA($DL75),"",getNumKeta0($DN75,2)) ->  | CI75: =IF(ISNA($DL75),"",getNumKeta0($DN75,1)) ->  | CJ75: =IF(ISNA($DL75),"",getNumKeta0($DN75,-1)) ->  | CK75: =IF(ISNA($DL75),"",getNumKeta0($DN75,-2)) ->  | CL75: =IF(ISNA($DL75),"",getNumKeta0($DN75,-3)) ->  | CM75: =IF(ISNA($DL75),"",getNumKeta0($DO75,9)) ->  | CN75: =IF(ISNA($DL75),"",getNumKeta0($DO75,8)) ->  | CO75: =IF(ISNA($DL75),"",getNumKeta0($DO75,7)) ->  | CP75: =IF(ISNA($DL75),"",getNumKeta0($DO75,6)) ->  | CQ75: =IF(ISNA($DL75),"",getNumKeta0($DO75,5)) ->  | CR75: =IF(ISNA($DL75),"",getNumKeta0($DO75,4)) ->  | CS75: =IF(ISNA($DL75),"",getNumKeta0($DO75,3)) ->  | CT75: =IF(ISNA($DL75),"",getNumKeta0($DO75,2)) ->  | CU75: =IF(ISNA($DL75),"",getNumKeta0($DO75,1)) ->  | CV75: =IF(ISNA($DL75),"",LEFT(VLOOKUP($DL75,請求明細,10,FALSE),16)) ->  | DI75: =IF($E$14=OFFSET(明細情報!$B$5, $DK75-1,0),1,0) -> 0 | DJ75: =IF($DI75=0, 0, SUM($DI$28:$DI75)) -> 0 | DK75: =DK42+1 -> 16 | DL75: =VLOOKUP(B75,$DJ$28:$DK$65536,2,FALSE) ->  | DM75: =IF(ISNA($DL75),0,VLOOKUP($DL75,請求明細,5,FALSE)) -> 0 | DN75: =IF(ISNA($DL75),0,VLOOKUP($DL75,請求明細,7,FALSE)) -> 0 | DO75: =IF(ISNA($DL75),0,VLOOKUP($DL75,請求明細,9,FALSE)) -> 0
B76: =B75+1 -> 17 | BF76: =BF75+1 -> 17 | DI76: =IF($E$14=OFFSET(明細情報!$B$5, $DK76-1,0),1,0) -> 0 | DJ76: =IF($DI76=0, 0, SUM($DI$28:$DI76)) -> 0 | DK76: =DK75+1 -> 17 | DM76: 0 | DN76: 0 | DO76: 0
B77: 18 | BF77: 18 | DI77: =IF($E$14=OFFSET(明細情報!$B$5, $DK77-1,0),1,0) -> 0 | DJ77: =IF($DI77=0, 0, SUM($DI$28:$DI77)) -> 0 | DK77: 18 | DM77: 0 | DN77: 0 | DO77: 0
B78: 19 | BF78: 19 | DI78: =IF($E$14=OFFSET(明細情報!$B$5, $DK78-1,0),1,0) -> 0 | DJ78: =IF($DI78=0, 0, SUM($DI$28:$DI78)) -> 0 | DK78: 19 | DM78: 0 | DN78: 0 | DO78: 0
B79: 20 | BF79: 20 | DI79: =IF($E$14=OFFSET(明細情報!$B$5, $DK79-1,0),1,0) -> 0 | DJ79: =IF($DI79=0, 0, SUM($DI$28:$DI79)) -> 0 | DK79: 20 | DM79: 0 | DN79: 0 | DO79: 0
B80: 21 | BF80: 21 | DI80: =IF($E$14=OFFSET(明細情報!$B$5, $DK80-1,0),1,0) -> 0 | DJ80: =IF($DI80=0, 0, SUM($DI$28:$DI80)) -> 0 | DK80: 21 | DM80: 0 | DN80: 0 | DO80: 0
B81: 22 | BF81: 22 | DI81: =IF($E$14=OFFSET(明細情報!$B$5, $DK81-1,0),1,0) -> 0 | DJ81: =IF($DI81=0, 0, SUM($DI$28:$DI81)) -> 0 | DK81: 22 | DM81: 0 | DN81: 0 | DO81: 0
B82: 23 | BF82: 23 | DI82: =IF($E$14=OFFSET(明細情報!$B$5, $DK82-1,0),1,0) -> 0 | DJ82: =IF($DI82=0, 0, SUM($DI$28:$DI82)) -> 0 | DK82: 23 | DM82: 0 | DN82: 0 | DO82: 0
B83: 24 | BF83: 24 | DI83: =IF($E$14=OFFSET(明細情報!$B$5, $DK83-1,0),1,0) -> 0 | DJ83: =IF($DI83=0, 0, SUM($DI$28:$DI83)) -> 0 | DK83: 24 | DM83: 0 | DN83: 0 | DO83: 0
B84: 25 | BF84: 25 | DI84: =IF($E$14=OFFSET(明細情報!$B$5, $DK84-1,0),1,0) -> 0 | DJ84: =IF($DI84=0, 0, SUM($DI$28:$DI84)) -> 0 | DK84: 25 | DM84: 0 | DN84: 0 | DO84: 0
B85: 26 | BF85: 26 | DI85: =IF($E$14=OFFSET(明細情報!$B$5, $DK85-1,0),1,0) -> 0 | DJ85: =IF($DI85=0, 0, SUM($DI$28:$DI85)) -> 0 | DK85: 26 | DM85: 0 | DN85: 0 | DO85: 0
B86: 27 | BF86: 27 | DI86: =IF($E$14=OFFSET(明細情報!$B$5, $DK86-1,0),1,0) -> 0 | DJ86: =IF($DI86=0, 0, SUM($DI$28:$DI86)) -> 0 | DK86: 27 | DM86: 0 | DN86: 0 | DO86: 0
B87: 28 | BF87: 28 | DI87: =IF($E$14=OFFSET(明細情報!$B$5, $DK87-1,0),1,0) -> 0 | DJ87: =IF($DI87=0, 0, SUM($DI$28:$DI87)) -> 0 | DK87: 28 | DM87: 0 | DN87: 0 | DO87: 0
B88: 29 | BF88: 29 | DI88: =IF($E$14=OFFSET(明細情報!$B$5, $DK88-1,0),1,0) -> 0 | DJ88: =IF($DI88=0, 0, SUM($DI$28:$DI88)) -> 0 | DK88: 29 | DM88: 0 | DN88: 0 | DO88: 0
B89: 30 | BF89: 30 | DI89: =IF($E$14=OFFSET(明細情報!$B$5, $DK89-1,0),1,0) -> 0 | DJ89: =IF($DI89=0, 0, SUM($DI$28:$DI89)) -> 0 | DK89: 30 | DM89: 0 | DN89: 0 | DO89: 0
W90: 小 計 | AI90: =getNumKeta0($DP90,9) ->  | AJ90: =getNumKeta0($DP90,8) ->  | AK90: =getNumKeta0($DP90,7) ->  | AL90: =getNumKeta0($DP90,6) ->  | AM90: =getNumKeta0($DP90,5) ->  | AN90: =getNumKeta0($DP90,4) ->  | AO90: =getNumKeta0($DP90,3) ->  | AP90: =getNumKeta0($DP90,2) ->  | AQ90: =getNumKeta0($DP90,1) ->  | AR90: Ａ | AS90: =IF($DQ90=0,"", $DQ90) ->  | BB90: =IF($DP90<>$DQ90,"*","") ->  | CA90: 小 計 | CM90: =getNumKeta0($DP90,9) ->  | CN90: =getNumKeta0($DP90,8) ->  | CO90: =getNumKeta0($DP90,7) ->  | CP90: =getNumKeta0($DP90,6) ->  | CQ90: =getNumKeta0($DP90,5) ->  | CR90: =getNumKeta0($DP90,4) ->  | CS90: =getNumKeta0($DP90,3) ->  | CT90: =getNumKeta0($DP90,2) ->  | CU90: =getNumKeta0($DP90,1) ->  | CV90: Ａ | CW90: =IF($DQ90=0,"", $DQ90) ->  | DF90: =IF($DP90<>$DQ90,"*","") ->  | DP90: =IF($DK89/15=ROUNDUP(MAX($DJ:$DJ)/15,0),VLOOKUP($E$14,基本情報_工事名称マスタ,4,FALSE)+VLOOKUP($E$14,基本情報_工事名称マスタ,5,FALSE),0) -> 0 | DQ90: =IF($DK89/15=ROUNDUP(MAX($DJ:$DJ)/15,0),DQ92-DQ91,0) -> 0
W91: 消 費 税 | AE91: =基本情報_消費税率 -> 0.1 | AI91: =getNumKeta0($DP91,9) ->  | AJ91: =getNumKeta0($DP91,8) ->  | AK91: =getNumKeta0($DP91,7) ->  | AL91: =getNumKeta0($DP91,6) ->  | AM91: =getNumKeta0($DP91,5) ->  | AN91: =getNumKeta0($DP91,4) ->  | AO91: =getNumKeta0($DP91,3) ->  | AP91: =getNumKeta0($DP91,2) ->  | AQ91: =getNumKeta0($DP91,1) ->  | AR91: Ｂ | AS91: =IF($DQ91=0,"", $DQ91) ->  | CA91: 消 費 税 | CI91: =基本情報_消費税率 -> 0.1 | CM91: =getNumKeta0($DP91,9) ->  | CN91: =getNumKeta0($DP91,8) ->  | CO91: =getNumKeta0($DP91,7) ->  | CP91: =getNumKeta0($DP91,6) ->  | CQ91: =getNumKeta0($DP91,5) ->  | CR91: =getNumKeta0($DP91,4) ->  | CS91: =getNumKeta0($DP91,3) ->  | CT91: =getNumKeta0($DP91,2) ->  | CU91: =getNumKeta0($DP91,1) ->  | CV91: Ｂ | CW91: =IF($DQ91=0,"", $DQ91) ->  | DP91: =IF($DK89/15=ROUNDUP(MAX($DJ:$DJ)/15,0),VLOOKUP($E$14,基本情報_工事名称マスタ,6,FALSE),0) -> 0 | DQ91: =IF($DK89/15=ROUNDUP(MAX($DJ:$DJ)/15,0),ROUND((DQ92-VLOOKUP($E$14,基本情報_工事名称マスタ,5,FALSE))/(基本情報_消費税率*100+100)*(基本情報_消費税率*100),0),0) -> 0
W92: 合 計 | AI92: =getNumKeta0($DP92,9) ->  | AJ92: =getNumKeta0($DP92,8) ->  | AK92: =getNumKeta0($DP92,7) ->  | AL92: =getNumKeta0($DP92,6) ->  | AM92: =getNumKeta0($DP92,5) ->  | AN92: =getNumKeta0($DP92,4) ->  | AO92: =getNumKeta0($DP92,3) ->  | AP92: =getNumKeta0($DP92,2) ->  | AQ92: =getNumKeta0($DP92,1) ->  | AR92: Ｃ | AS92: =IF($DQ92=0,"", $DQ92) ->  | CA92: 合 計 | CM92: =getNumKeta0($DP92,9) ->  | CN92: =getNumKeta0($DP92,8) ->  | CO92: =getNumKeta0($DP92,7) ->  | CP92: =getNumKeta0($DP92,6) ->  | CQ92: =getNumKeta0($DP92,5) ->  | CR92: =getNumKeta0($DP92,4) ->  | CS92: =getNumKeta0($DP92,3) ->  | CT92: =getNumKeta0($DP92,2) ->  | CU92: =getNumKeta0($DP92,1) ->  | CV92: Ｃ | CW92: =IF($DQ92=0,"", $DQ92) ->  | DP92: =IF($DK89/15=ROUNDUP(MAX($DJ:$DJ)/15,0),VLOOKUP($E$14,基本情報_工事名称マスタ,7,FALSE),0) -> 0 | DQ92: =DP92 -> 0
W93: 貴社→請求書(添付)→経理(控) | CA93: 貴社→請求書(添付)→経理→作業所長(控)
AS95: ="P " & B136/15 & "/" & ROUNDUP(COUNTIF(請求明細_工事場所, E108)/15,0) -> P 3/1 | CW95: ="P " & BF136/15 & "/" & ROUNDUP(COUNTIF(請求明細_工事場所, BI108)/15,0) -> P 3/1
D96: 請求明細書（一般） | Z96: 取引先 | AC96: =基本情報_取引先コード -> 999999 | AM96: 締 日 | AP96: =基本情報_請求締日 -> 2020-07-31 | BH96: 請求明細書（一般） | CD96: 取引先 | CG96: =基本情報_取引先コード -> 999999 | CQ96: 締 日 | CT96: =基本情報_請求締日 -> 2020-07-31
J97: 提出用 | BN97: 提出用
Z99: コード | CD99: コード
B102: 丸高・みなと特定建設工事共同企業体 御中 | Z102: （住所・社名・電話） | BF102: 丸高・みなと特定建設工事共同企業体 御中 | CD102: （住所・社名・電話）
AC106: =基本情報_住所 -> 酒田市○○○○１－１ | CG106: =基本情報_住所 -> 酒田市○○○○１－１
B108: 工 事 名 | E108: =$E$14 -> ×××××工事 | P108: 承 認 | V108: 検 印 | BF108: 工 事 名 | BI108: =$E$14 -> ×××××工事 | BT108: 承 認 | BZ108: 検 印
AC111: =基本情報_社名 -> (株）○○建設 | AY111: 印 | CG111: =基本情報_社名 -> (株）○○建設 | DC111: 印
B114: 作業所長名 | E114: =VLOOKUP(E108,基本情報_工事名称マスタ,3,FALSE) -> ××次郎 | BF114: 作業所長名 | BI114: =VLOOKUP(BI108,基本情報_工事名称マスタ,3,FALSE) -> ××次郎
AC116: =基本情報_電話番号 -> 0234 - 00 - 0000 | CG116: =基本情報_電話番号 -> 0234 - 00 - 0000
B121: 通番 | C121: 納入年月日 | F121: 品 名 ・ 規 格 | J121: 数 量 | V121: 単 位 | W121: 単 価 | AI121: 金 額 | AR121: 備 考 | BF121: 通番 | BG121: 納入年月日 | BJ121: 品 名 ・ 規 格 | BN121: 数 量 | BZ121: 単 位 | CA121: 単 価 | CM121: 金 額 | CV121: 備 考 | DI121: ヒット | DJ121: ランク | DK121: - | DL121: 通番 | DM121: 数量 | DN121: 単価 | DO121: 金額
B122: =B89+1 -> 31 | C122: =IF(ISNA($DL122),"",VLOOKUP($DL122,請求明細,3,FALSE)) ->  | F122: =IF(ISNA($DL122),"",VLOOKUP($DL122,請求明細,4,FALSE)) ->  | J122: =IF(ISNA($DL122),"",getNumKeta0($DM122,9)) ->  | K122: =IF(ISNA($DL122),"",getNumKeta0($DM122,8)) ->  | L122: =IF(ISNA($DL122),"",getNumKeta0($DM122,7)) ->  | M122: =IF(ISNA($DL122),"",getNumKeta0($DM122,6)) ->  | N122: =IF(ISNA($DL122),"",getNumKeta0($DM122,5)) ->  | O122: =IF(ISNA($DL122),"",getNumKeta0($DM122,4)) ->  | P122: =IF(ISNA($DL122),"",getNumKeta0($DM122,3)) ->  | Q122: =IF(ISNA($DL122),"",getNumKeta0($DM122,2)) ->  | R122: =IF(ISNA($DL122),"",getNumKeta0($DM122,1)) ->  | S122: =IF(ISNA($DL122),"",getNumKeta0($DM122,-1)) ->  | T122: =IF(ISNA($DL122),"",getNumKeta0($DM122,-2)) ->  | U122: =IF(ISNA($DL122),"",getNumKeta0($DM122,-3)) ->  | V122: =IF(ISNA($DL122),"",VLOOKUP($DL122,請求明細,6,FALSE)) ->  | W122: =IF(ISNA($DL122),"",getNumKeta0($DN122,9)) ->  | X122: =IF(ISNA($DL122),"",getNumKeta0($DN122,8)) ->  | Y122: =IF(ISNA($DL122),"",getNumKeta0($DN122,7)) ->  | Z122: =IF(ISNA($DL122),"",getNumKeta0($DN122,6)) ->  | AA122: =IF(ISNA($DL122),"",getNumKeta0($DN122,5)) ->  | AB122: =IF(ISNA($DL122),"",getNumKeta0($DN122,4)) ->  | AC122: =IF(ISNA($DL122),"",getNumKeta0($DN122,3)) ->  | AD122: =IF(ISNA($DL122),"",getNumKeta0($DN122,2)) ->  | AE122: =IF(ISNA($DL122),"",getNumKeta0($DN122,1)) ->  | AF122: =IF(ISNA($DL122),"",getNumKeta0($DN122,-1)) ->  | AG122: =IF(ISNA($DL122),"",getNumKeta0($DN122,-2)) ->  | AH122: =IF(ISNA($DL122),"",getNumKeta0($DN122,-3)) ->  | AI122: =IF(ISNA($DL122),"",getNumKeta0($DO122,9)) ->  | AJ122: =IF(ISNA($DL122),"",getNumKeta0($DO122,8)) ->  | AK122: =IF(ISNA($DL122),"",getNumKeta0($DO122,7)) ->  | AL122: =IF(ISNA($DL122),"",getNumKeta0($DO122,6)) ->  | AM122: =IF(ISNA($DL122),"",getNumKeta0($DO122,5)) ->  | AN122: =IF(ISNA($DL122),"",getNumKeta0($DO122,4)) ->  | AO122: =IF(ISNA($DL122),"",getNumKeta0($DO122,3)) ->  | AP122: =IF(ISNA($DL122),"",getNumKeta0($DO122,2)) ->  | AQ122: =IF(ISNA($DL122),"",getNumKeta0($DO122,1)) ->  | AR122: =IF(ISNA($DL122),"",LEFT(VLOOKUP($DL122,請求明細,10,FALSE),16)) ->  | BF122: =BF89+1 -> 31 | BG122: =IF(ISNA($DL122),"",VLOOKUP($DL122,請求明細,3,FALSE)) ->  | BJ122: =IF(ISNA($DL122),"",VLOOKUP($DL122,請求明細,4,FALSE)) ->  | BN122: =IF(ISNA($DL122),"",getNumKeta0($DM122,9)) ->  | BO122: =IF(ISNA($DL122),"",getNumKeta0($DM122,8)) ->  | BP122: =IF(ISNA($DL122),"",getNumKeta0($DM122,7)) ->  | BQ122: =IF(ISNA($DL122),"",getNumKeta0($DM122,6)) ->  | BR122: =IF(ISNA($DL122),"",getNumKeta0($DM122,5)) ->  | BS122: =IF(ISNA($DL122),"",getNumKeta0($DM122,4)) ->  | BT122: =IF(ISNA($DL122),"",getNumKeta0($DM122,3)) ->  | BU122: =IF(ISNA($DL122),"",getNumKeta0($DM122,2)) ->  | BV122: =IF(ISNA($DL122),"",getNumKeta0($DM122,1)) ->  | BW122: =IF(ISNA($DL122),"",getNumKeta0($DM122,-1)) ->  | BX122: =IF(ISNA($DL122),"",getNumKeta0($DM122,-2)) ->  | BY122: =IF(ISNA($DL122),"",getNumKeta0($DM122,-3)) ->  | BZ122: =IF(ISNA($DL122),"",VLOOKUP($DL122,請求明細,6,FALSE)) ->  | CA122: =IF(ISNA($DL122),"",getNumKeta0($DN122,9)) ->  | CB122: =IF(ISNA($DL122),"",getNumKeta0($DN122,8)) ->  | CC122: =IF(ISNA($DL122),"",getNumKeta0($DN122,7)) ->  | CD122: =IF(ISNA($DL122),"",getNumKeta0($DN122,6)) ->  | CE122: =IF(ISNA($DL122),"",getNumKeta0($DN122,5)) ->  | CF122: =IF(ISNA($DL122),"",getNumKeta0($DN122,4)) ->  | CG122: =IF(ISNA($DL122),"",getNumKeta0($DN122,3)) ->  | CH122: =IF(ISNA($DL122),"",getNumKeta0($DN122,2)) ->  | CI122: =IF(ISNA($DL122),"",getNumKeta0($DN122,1)) ->  | CJ122: =IF(ISNA($DL122),"",getNumKeta0($DN122,-1)) ->  | CK122: =IF(ISNA($DL122),"",getNumKeta0($DN122,-2)) ->  | CL122: =IF(ISNA($DL122),"",getNumKeta0($DN122,-3)) ->  | CM122: =IF(ISNA($DL122),"",getNumKeta0($DO122,9)) ->  | CN122: =IF(ISNA($DL122),"",getNumKeta0($DO122,8)) ->  | CO122: =IF(ISNA($DL122),"",getNumKeta0($DO122,7)) ->  | CP122: =IF(ISNA($DL122),"",getNumKeta0($DO122,6)) ->  | CQ122: =IF(ISNA($DL122),"",getNumKeta0($DO122,5)) ->  | CR122: =IF(ISNA($DL122),"",getNumKeta0($DO122,4)) ->  | CS122: =IF(ISNA($DL122),"",getNumKeta0($DO122,3)) ->  | CT122: =IF(ISNA($DL122),"",getNumKeta0($DO122,2)) ->  | CU122: =IF(ISNA($DL122),"",getNumKeta0($DO122,1)) ->  | CV122: =IF(ISNA($DL122),"",LEFT(VLOOKUP($DL122,請求明細,10,FALSE),16)) ->  | DI122: =IF($E$14=OFFSET(明細情報!$B$5, $DK122-1,0),1,0) -> 0 | DJ122: =IF($DI122=0, 0, SUM($DI$28:$DI122)) -> 0 | DK122: =DK89+1 -> 31 | DL122: =VLOOKUP(B122,$DJ$28:$DK$65536,2,FALSE) ->  | DM122: =IF(ISNA($DL122),0,VLOOKUP($DL122,請求明細,5,FALSE)) -> 0 | DN122: =IF(ISNA($DL122),0,VLOOKUP($DL122,請求明細,7,FALSE)) -> 0 | DO122: =IF(ISNA($DL122),0,VLOOKUP($DL122,請求明細,9,FALSE)) -> 0
B123: =B122+1 -> 32 | BF123: =BF122+1 -> 32 | DI123: =IF($E$14=OFFSET(明細情報!$B$5, $DK123-1,0),1,0) -> 0 | DJ123: =IF($DI123=0, 0, SUM($DI$28:$DI123)) -> 0 | DK123: =DK122+1 -> 32 | DM123: 0 | DN123: 0 | DO123: 0
B124: 33 | BF124: 33 | DI124: =IF($E$14=OFFSET(明細情報!$B$5, $DK124-1,0),1,0) -> 0 | DJ124: =IF($DI124=0, 0, SUM($DI$28:$DI124)) -> 0 | DK124: 33 | DM124: 0 | DN124: 0 | DO124: 0
B125: 34 | BF125: 34 | DI125: =IF($E$14=OFFSET(明細情報!$B$5, $DK125-1,0),1,0) -> 0 | DJ125: =IF($DI125=0, 0, SUM($DI$28:$DI125)) -> 0 | DK125: 34 | DM125: 0 | DN125: 0 | DO125: 0
B126: 35 | BF126: 35 | DI126: =IF($E$14=OFFSET(明細情報!$B$5, $DK126-1,0),1,0) -> 0 | DJ126: =IF($DI126=0, 0, SUM($DI$28:$DI126)) -> 0 | DK126: 35 | DM126: 0 | DN126: 0 | DO126: 0
B127: 36 | BF127: 36 | DI127: =IF($E$14=OFFSET(明細情報!$B$5, $DK127-1,0),1,0) -> 0 | DJ127: =IF($DI127=0, 0, SUM($DI$28:$DI127)) -> 0 | DK127: 36 | DM127: 0 | DN127: 0 | DO127: 0
B128: 37 | BF128: 37 | DI128: =IF($E$14=OFFSET(明細情報!$B$5, $DK128-1,0),1,0) -> 0 | DJ128: =IF($DI128=0, 0, SUM($DI$28:$DI128)) -> 0 | DK128: 37 | DM128: 0 | DN128: 0 | DO128: 0
B129: 38 | BF129: 38 | DI129: =IF($E$14=OFFSET(明細情報!$B$5, $DK129-1,0),1,0) -> 0 | DJ129: =IF($DI129=0, 0, SUM($DI$28:$DI129)) -> 0 | DK129: 38 | DM129: 0 | DN129: 0 | DO129: 0
B130: 39 | BF130: 39 | DI130: =IF($E$14=OFFSET(明細情報!$B$5, $DK130-1,0),1,0) -> 0 | DJ130: =IF($DI130=0, 0, SUM($DI$28:$DI130)) -> 0 | DK130: 39 | DM130: 0 | DN130: 0 | DO130: 0
B131: 40 | BF131: 40 | DI131: =IF($E$14=OFFSET(明細情報!$B$5, $DK131-1,0),1,0) -> 0 | DJ131: =IF($DI131=0, 0, SUM($DI$28:$DI131)) -> 0 | DK131: 40 | DM131: 0 | DN131: 0 | DO131: 0
B132: 41 | BF132: 41 | DI132: =IF($E$14=OFFSET(明細情報!$B$5, $DK132-1,0),1,0) -> 0 | DJ132: =IF($DI132=0, 0, SUM($DI$28:$DI132)) -> 0 | DK132: 41 | DM132: 0 | DN132: 0 | DO132: 0
B133: 42 | BF133: 42 | DI133: =IF($E$14=OFFSET(明細情報!$B$5, $DK133-1,0),1,0) -> 0 | DJ133: =IF($DI133=0, 0, SUM($DI$28:$DI133)) -> 0 | DK133: 42 | DM133: 0 | DN133: 0 | DO133: 0
B134: 43 | BF134: 43 | DI134: =IF($E$14=OFFSET(明細情報!$B$5, $DK134-1,0),1,0) -> 0 | DJ134: =IF($DI134=0, 0, SUM($DI$28:$DI134)) -> 0 | DK134: 43 | DM134: 0 | DN134: 0 | DO134: 0
B135: 44 | BF135: 44 | DI135: =IF($E$14=OFFSET(明細情報!$B$5, $DK135-1,0),1,0) -> 0 | DJ135: =IF($DI135=0, 0, SUM($DI$28:$DI135)) -> 0 | DK135: 44 | DM135: 0 | DN135: 0 | DO135: 0
B136: 45 | BF136: 45 | DI136: =IF($E$14=OFFSET(明細情報!$B$5, $DK136-1,0),1,0) -> 0 | DJ136: =IF($DI136=0, 0, SUM($DI$28:$DI136)) -> 0 | DK136: 45 | DM136: 0 | DN136: 0 | DO136: 0
W137: 小 計 | AI137: =getNumKeta0($DP137,9) ->  | AJ137: =getNumKeta0($DP137,8) ->  | AK137: =getNumKeta0($DP137,7) ->  | AL137: =getNumKeta0($DP137,6) ->  | AM137: =getNumKeta0($DP137,5) ->  | AN137: =getNumKeta0($DP137,4) ->  | AO137: =getNumKeta0($DP137,3) ->  | AP137: =getNumKeta0($DP137,2) ->  | AQ137: =getNumKeta0($DP137,1) ->  | AR137: Ａ | AS137: =IF($DQ137=0,"", $DQ137) ->  | BB137: =IF($DP137<>$DQ137,"*","") ->  | CA137: 小 計 | CM137: =getNumKeta0($DP137,9) ->  | CN137: =getNumKeta0($DP137,8) ->  | CO137: =getNumKeta0($DP137,7) ->  | CP137: =getNumKeta0($DP137,6) ->  | CQ137: =getNumKeta0($DP137,5) ->  | CR137: =getNumKeta0($DP137,4) ->  | CS137: =getNumKeta0($DP137,3) ->  | CT137: =getNumKeta0($DP137,2) ->  | CU137: =getNumKeta0($DP137,1) ->  | CV137: Ａ | CW137: =IF($DQ137=0,"", $DQ137) ->  | DF137: =IF($DP137<>$DQ137,"*","") ->  | DP137: =IF($DK136/15=ROUNDUP(MAX($DJ:$DJ)/15,0),VLOOKUP($E$14,基本情報_工事名称マスタ,4,FALSE)+VLOOKUP($E$14,基本情報_工事名称マスタ,5,FALSE),0) -> 0 | DQ137: =IF($DK136/15=ROUNDUP(MAX($DJ:$DJ)/15,0),DQ139-DQ138,0) -> 0
W138: 消 費 税 | AE138: =基本情報_消費税率 -> 0.1 | AI138: =getNumKeta0($DP138,9) ->  | AJ138: =getNumKeta0($DP138,8) ->  | AK138: =getNumKeta0($DP138,7) ->  | AL138: =getNumKeta0($DP138,6) ->  | AM138: =getNumKeta0($DP138,5) ->  | AN138: =getNumKeta0($DP138,4) ->  | AO138: =getNumKeta0($DP138,3) ->  | AP138: =getNumKeta0($DP138,2) ->  | AQ138: =getNumKeta0($DP138,1) ->  | AR138: Ｂ | AS138: =IF($DQ138=0,"", $DQ138) ->  | CA138: 消 費 税 | CI138: =基本情報_消費税率 -> 0.1 | CM138: =getNumKeta0($DP138,9) ->  | CN138: =getNumKeta0($DP138,8) ->  | CO138: =getNumKeta0($DP138,7) ->  | CP138: =getNumKeta0($DP138,6) ->  | CQ138: =getNumKeta0($DP138,5) ->  | CR138: =getNumKeta0($DP138,4) ->  | CS138: =getNumKeta0($DP138,3) ->  | CT138: =getNumKeta0($DP138,2) ->  | CU138: =getNumKeta0($DP138,1) ->  | CV138: Ｂ | CW138: =IF($DQ138=0,"", $DQ138) ->  | DP138: =IF($DK136/15=ROUNDUP(MAX($DJ:$DJ)/15,0),VLOOKUP($E$14,基本情報_工事名称マスタ,6,FALSE),0) -> 0 | DQ138: =IF($DK136/15=ROUNDUP(MAX($DJ:$DJ)/15,0),ROUND((DQ139-VLOOKUP($E$14,基本情報_工事名称マスタ,5,FALSE))/(基本情報_消費税率*100+100)*(基本情報_消費税率*100),0),0) -> 0
W139: 合 計 | AI139: =getNumKeta0($DP139,9) ->  | AJ139: =getNumKeta0($DP139,8) ->  | AK139: =getNumKeta0($DP139,7) ->  | AL139: =getNumKeta0($DP139,6) ->  | AM139: =getNumKeta0($DP139,5) ->  | AN139: =getNumKeta0($DP139,4) ->  | AO139: =getNumKeta0($DP139,3) ->  | AP139: =getNumKeta0($DP139,2) ->  | AQ139: =getNumKeta0($DP139,1) ->  | AR139: Ｃ | AS139: =IF($DQ139=0,"", $DQ139) ->  | CA139: 合 計 | CM139: =getNumKeta0($DP139,9) ->  | CN139: =getNumKeta0($DP139,8) ->  | CO139: =getNumKeta0($DP139,7) ->  | CP139: =getNumKeta0($DP139,6) ->  | CQ139: =getNumKeta0($DP139,5) ->  | CR139: =getNumKeta0($DP139,4) ->  | CS139: =getNumKeta0($DP139,3) ->  | CT139: =getNumKeta0($DP139,2) ->  | CU139: =getNumKeta0($DP139,1) ->  | CV139: Ｃ | CW139: =IF($DQ139=0,"", $DQ139) ->  | DP139: =IF($DK136/15=ROUNDUP(MAX($DJ:$DJ)/15,0),VLOOKUP($E$14,基本情報_工事名称マスタ,7,FALSE),0) -> 0 | DQ139: =DP139 -> 0
W140: 貴社→請求書(添付)→経理(控) | CA140: 貴社→請求書(添付)→経理→作業所長(控)
AS142: ="P " & B183/15 & "/" & ROUNDUP(COUNTIF(請求明細_工事場所, E155)/15,0) -> P 4/1 | CW142: ="P " & BF183/15 & "/" & ROUNDUP(COUNTIF(請求明細_工事場所, BI155)/15,0) -> P 4/1
D143: 請求明細書（一般） | Z143: 取引先 | AC143: =基本情報_取引先コード -> 999999 | AM143: 締 日 | AP143: =基本情報_請求締日 -> 2020-07-31 | BH143: 請求明細書（一般） | CD143: 取引先 | CG143: =基本情報_取引先コード -> 999999 | CQ143: 締 日 | CT143: =基本情報_請求締日 -> 2020-07-31
J144: 提出用 | BN144: 提出用
Z146: コード | CD146: コード
B149: 丸高・みなと特定建設工事共同企業体 御中 | Z149: （住所・社名・電話） | BF149: 丸高・みなと特定建設工事共同企業体 御中 | CD149: （住所・社名・電話）
AC153: =基本情報_住所 -> 酒田市○○○○１－１ | CG153: =基本情報_住所 -> 酒田市○○○○１－１
B155: 工 事 名 | E155: =$E$14 -> ×××××工事 | P155: 承 認 | V155: 検 印 | BF155: 工 事 名 | BI155: =$E$14 -> ×××××工事 | BT155: 承 認 | BZ155: 検 印
AC158: =基本情報_社名 -> (株）○○建設 | AY158: 印 | CG158: =基本情報_社名 -> (株）○○建設 | DC158: 印
B161: 作業所長名 | E161: =VLOOKUP(E155,基本情報_工事名称マスタ,3,FALSE) -> ××次郎 | BF161: 作業所長名 | BI161: =VLOOKUP(BI155,基本情報_工事名称マスタ,3,FALSE) -> ××次郎
AC163: =基本情報_電話番号 -> 0234 - 00 - 0000 | CG163: =基本情報_電話番号 -> 0234 - 00 - 0000
B168: 通番 | C168: 納入年月日 | F168: 品 名 ・ 規 格 | J168: 数 量 | V168: 単 位 | W168: 単 価 | AI168: 金 額 | AR168: 備 考 | BF168: 通番 | BG168: 納入年月日 | BJ168: 品 名 ・ 規 格 | BN168: 数 量 | BZ168: 単 位 | CA168: 単 価 | CM168: 金 額 | CV168: 備 考 | DI168: ヒット | DJ168: ランク | DK168: - | DL168: 通番 | DM168: 数量 | DN168: 単価 | DO168: 金額
B169: =B136+1 -> 46 | C169: =IF(ISNA($DL169),"",VLOOKUP($DL169,請求明細,3,FALSE)) ->  | F169: =IF(ISNA($DL169),"",VLOOKUP($DL169,請求明細,4,FALSE)) ->  | J169: =IF(ISNA($DL169),"",getNumKeta0($DM169,9)) ->  | K169: =IF(ISNA($DL169),"",getNumKeta0($DM169,8)) ->  | L169: =IF(ISNA($DL169),"",getNumKeta0($DM169,7)) ->  | M169: =IF(ISNA($DL169),"",getNumKeta0($DM169,6)) ->  | N169: =IF(ISNA($DL169),"",getNumKeta0($DM169,5)) ->  | O169: =IF(ISNA($DL169),"",getNumKeta0($DM169,4)) ->  | P169: =IF(ISNA($DL169),"",getNumKeta0($DM169,3)) ->  | Q169: =IF(ISNA($DL169),"",getNumKeta0($DM169,2)) ->  | R169: =IF(ISNA($DL169),"",getNumKeta0($DM169,1)) ->  | S169: =IF(ISNA($DL169),"",getNumKeta0($DM169,-1)) ->  | T169: =IF(ISNA($DL169),"",getNumKeta0($DM169,-2)) ->  | U169: =IF(ISNA($DL169),"",getNumKeta0($DM169,-3)) ->  | V169: =IF(ISNA($DL169),"",VLOOKUP($DL169,請求明細,6,FALSE)) ->  | W169: =IF(ISNA($DL169),"",getNumKeta0($DN169,9)) ->  | X169: =IF(ISNA($DL169),"",getNumKeta0($DN169,8)) ->  | Y169: =IF(ISNA($DL169),"",getNumKeta0($DN169,7)) ->  | Z169: =IF(ISNA($DL169),"",getNumKeta0($DN169,6)) ->  | AA169: =IF(ISNA($DL169),"",getNumKeta0($DN169,5)) ->  | AB169: =IF(ISNA($DL169),"",getNumKeta0($DN169,4)) ->  | AC169: =IF(ISNA($DL169),"",getNumKeta0($DN169,3)) ->  | AD169: =IF(ISNA($DL169),"",getNumKeta0($DN169,2)) ->  | AE169: =IF(ISNA($DL169),"",getNumKeta0($DN169,1)) ->  | AF169: =IF(ISNA($DL169),"",getNumKeta0($DN169,-1)) ->  | AG169: =IF(ISNA($DL169),"",getNumKeta0($DN169,-2)) ->  | AH169: =IF(ISNA($DL169),"",getNumKeta0($DN169,-3)) ->  | AI169: =IF(ISNA($DL169),"",getNumKeta0($DO169,9)) ->  | AJ169: =IF(ISNA($DL169),"",getNumKeta0($DO169,8)) ->  | AK169: =IF(ISNA($DL169),"",getNumKeta0($DO169,7)) ->  | AL169: =IF(ISNA($DL169),"",getNumKeta0($DO169,6)) ->  | AM169: =IF(ISNA($DL169),"",getNumKeta0($DO169,5)) ->  | AN169: =IF(ISNA($DL169),"",getNumKeta0($DO169,4)) ->  | AO169: =IF(ISNA($DL169),"",getNumKeta0($DO169,3)) ->  | AP169: =IF(ISNA($DL169),"",getNumKeta0($DO169,2)) ->  | AQ169: =IF(ISNA($DL169),"",getNumKeta0($DO169,1)) ->  | AR169: =IF(ISNA($DL169),"",LEFT(VLOOKUP($DL169,請求明細,10,FALSE),16)) ->  | BF169: =BF136+1 -> 46 | BG169: =IF(ISNA($DL169),"",VLOOKUP($DL169,請求明細,3,FALSE)) ->  | BJ169: =IF(ISNA($DL169),"",VLOOKUP($DL169,請求明細,4,FALSE)) ->  | BN169: =IF(ISNA($DL169),"",getNumKeta0($DM169,9)) ->  | BO169: =IF(ISNA($DL169),"",getNumKeta0($DM169,8)) ->  | BP169: =IF(ISNA($DL169),"",getNumKeta0($DM169,7)) ->  | BQ169: =IF(ISNA($DL169),"",getNumKeta0($DM169,6)) ->  | BR169: =IF(ISNA($DL169),"",getNumKeta0($DM169,5)) ->  | BS169: =IF(ISNA($DL169),"",getNumKeta0($DM169,4)) ->  | BT169: =IF(ISNA($DL169),"",getNumKeta0($DM169,3)) ->  | BU169: =IF(ISNA($DL169),"",getNumKeta0($DM169,2)) ->  | BV169: =IF(ISNA($DL169),"",getNumKeta0($DM169,1)) ->  | BW169: =IF(ISNA($DL169),"",getNumKeta0($DM169,-1)) ->  | BX169: =IF(ISNA($DL169),"",getNumKeta0($DM169,-2)) ->  | BY169: =IF(ISNA($DL169),"",getNumKeta0($DM169,-3)) ->  | BZ169: =IF(ISNA($DL169),"",VLOOKUP($DL169,請求明細,6,FALSE)) ->  | CA169: =IF(ISNA($DL169),"",getNumKeta0($DN169,9)) ->  | CB169: =IF(ISNA($DL169),"",getNumKeta0($DN169,8)) ->  | CC169: =IF(ISNA($DL169),"",getNumKeta0($DN169,7)) ->  | CD169: =IF(ISNA($DL169),"",getNumKeta0($DN169,6)) ->  | CE169: =IF(ISNA($DL169),"",getNumKeta0($DN169,5)) ->  | CF169: =IF(ISNA($DL169),"",getNumKeta0($DN169,4)) ->  | CG169: =IF(ISNA($DL169),"",getNumKeta0($DN169,3)) ->  | CH169: =IF(ISNA($DL169),"",getNumKeta0($DN169,2)) ->  | CI169: =IF(ISNA($DL169),"",getNumKeta0($DN169,1)) ->  | CJ169: =IF(ISNA($DL169),"",getNumKeta0($DN169,-1)) ->  | CK169: =IF(ISNA($DL169),"",getNumKeta0($DN169,-2)) ->  | CL169: =IF(ISNA($DL169),"",getNumKeta0($DN169,-3)) ->  | CM169: =IF(ISNA($DL169),"",getNumKeta0($DO169,9)) ->  | CN169: =IF(ISNA($DL169),"",getNumKeta0($DO169,8)) ->  | CO169: =IF(ISNA($DL169),"",getNumKeta0($DO169,7)) ->  | CP169: =IF(ISNA($DL169),"",getNumKeta0($DO169,6)) ->  | CQ169: =IF(ISNA($DL169),"",getNumKeta0($DO169,5)) ->  | CR169: =IF(ISNA($DL169),"",getNumKeta0($DO169,4)) ->  | CS169: =IF(ISNA($DL169),"",getNumKeta0($DO169,3)) ->  | CT169: =IF(ISNA($DL169),"",getNumKeta0($DO169,2)) ->  | CU169: =IF(ISNA($DL169),"",getNumKeta0($DO169,1)) ->  | CV169: =IF(ISNA($DL169),"",LEFT(VLOOKUP($DL169,請求明細,10,FALSE),16)) ->  | DI169: =IF($E$14=OFFSET(明細情報!$B$5, $DK169-1,0),1,0) -> 0 | DJ169: =IF($DI169=0, 0, SUM($DI$28:$DI169)) -> 0 | DK169: =DK136+1 -> 46 | DL169: =VLOOKUP(B169,$DJ$28:$DK$65536,2,FALSE) ->  | DM169: =IF(ISNA($DL169),0,VLOOKUP($DL169,請求明細,5,FALSE)) -> 0 | DN169: =IF(ISNA($DL169),0,VLOOKUP($DL169,請求明細,7,FALSE)) -> 0 | DO169: =IF(ISNA($DL169),0,VLOOKUP($DL169,請求明細,9,FALSE)) -> 0
B170: =B169+1 -> 47 | BF170: =BF169+1 -> 47 | DI170: =IF($E$14=OFFSET(明細情報!$B$5, $DK170-1,0),1,0) -> 0 | DJ170: =IF($DI170=0, 0, SUM($DI$28:$DI170)) -> 0 | DK170: =DK169+1 -> 47 | DM170: 0 | DN170: 0 | DO170: 0
B171: 48 | BF171: 48 | DI171: =IF($E$14=OFFSET(明細情報!$B$5, $DK171-1,0),1,0) -> 0 | DJ171: =IF($DI171=0, 0, SUM($DI$28:$DI171)) -> 0 | DK171: 48 | DM171: 0 | DN171: 0 | DO171: 0
B172: 49 | BF172: 49 | DI172: =IF($E$14=OFFSET(明細情報!$B$5, $DK172-1,0),1,0) -> 0 | DJ172: =IF($DI172=0, 0, SUM($DI$28:$DI172)) -> 0 | DK172: 49 | DM172: 0 | DN172: 0 | DO172: 0
B173: 50 | BF173: 50 | DI173: =IF($E$14=OFFSET(明細情報!$B$5, $DK173-1,0),1,0) -> 0 | DJ173: =IF($DI173=0, 0, SUM($DI$28:$DI173)) -> 0 | DK173: 50 | DM173: 0 | DN173: 0 | DO173: 0
B174: 51 | BF174: 51 | DI174: =IF($E$14=OFFSET(明細情報!$B$5, $DK174-1,0),1,0) -> 0 | DJ174: =IF($DI174=0, 0, SUM($DI$28:$DI174)) -> 0 | DK174: 51 | DM174: 0 | DN174: 0 | DO174: 0
B175: 52 | BF175: 52 | DI175: =IF($E$14=OFFSET(明細情報!$B$5, $DK175-1,0),1,0) -> 0 | DJ175: =IF($DI175=0, 0, SUM($DI$28:$DI175)) -> 0 | DK175: 52 | DM175: 0 | DN175: 0 | DO175: 0
B176: 53 | BF176: 53 | DI176: =IF($E$14=OFFSET(明細情報!$B$5, $DK176-1,0),1,0) -> 0 | DJ176: =IF($DI176=0, 0, SUM($DI$28:$DI176)) -> 0 | DK176: 53 | DM176: 0 | DN176: 0 | DO176: 0
B177: 54 | BF177: 54 | DI177: =IF($E$14=OFFSET(明細情報!$B$5, $DK177-1,0),1,0) -> 0 | DJ177: =IF($DI177=0, 0, SUM($DI$28:$DI177)) -> 0 | DK177: 54 | DM177: 0 | DN177: 0 | DO177: 0
B178: 55 | BF178: 55 | DI178: =IF($E$14=OFFSET(明細情報!$B$5, $DK178-1,0),1,0) -> 0 | DJ178: =IF($DI178=0, 0, SUM($DI$28:$DI178)) -> 0 | DK178: 55 | DM178: 0 | DN178: 0 | DO178: 0
B179: 56 | BF179: 56 | DI179: =IF($E$14=OFFSET(明細情報!$B$5, $DK179-1,0),1,0) -> 0 | DJ179: =IF($DI179=0, 0, SUM($DI$28:$DI179)) -> 0 | DK179: 56 | DM179: 0 | DN179: 0 | DO179: 0
B180: 57 | BF180: 57 | DI180: =IF($E$14=OFFSET(明細情報!$B$5, $DK180-1,0),1,0) -> 0 | DJ180: =IF($DI180=0, 0, SUM($DI$28:$DI180)) -> 0 | DK180: 57 | DM180: 0 | DN180: 0 | DO180: 0
B181: 58 | BF181: 58 | DI181: =IF($E$14=OFFSET(明細情報!$B$5, $DK181-1,0),1,0) -> 0 | DJ181: =IF($DI181=0, 0, SUM($DI$28:$DI181)) -> 0 | DK181: 58 | DM181: 0 | DN181: 0 | DO181: 0
B182: 59 | BF182: 59 | DI182: =IF($E$14=OFFSET(明細情報!$B$5, $DK182-1,0),1,0) -> 0 | DJ182: =IF($DI182=0, 0, SUM($DI$28:$DI182)) -> 0 | DK182: 59 | DM182: 0 | DN182: 0 | DO182: 0
B183: 60 | BF183: 60 | DI183: =IF($E$14=OFFSET(明細情報!$B$5, $DK183-1,0),1,0) -> 0 | DJ183: =IF($DI183=0, 0, SUM($DI$28:$DI183)) -> 0 | DK183: 60 | DM183: 0 | DN183: 0 | DO183: 0
W184: 小 計 | AI184: =getNumKeta0($DP184,9) ->  | AJ184: =getNumKeta0($DP184,8) ->  | AK184: =getNumKeta0($DP184,7) ->  | AL184: =getNumKeta0($DP184,6) ->  | AM184: =getNumKeta0($DP184,5) ->  | AN184: =getNumKeta0($DP184,4) ->  | AO184: =getNumKeta0($DP184,3) ->  | AP184: =getNumKeta0($DP184,2) ->  | AQ184: =getNumKeta0($DP184,1) ->  | AR184: Ａ | AS184: =IF($DQ184=0,"", $DQ184) ->  | BB184: =IF($DP184<>$DQ184,"*","") ->  | CA184: 小 計 | CM184: =getNumKeta0($DP184,9) ->  | CN184: =getNumKeta0($DP184,8) ->  | CO184: =getNumKeta0($DP184,7) ->  | CP184: =getNumKeta0($DP184,6) ->  | CQ184: =getNumKeta0($DP184,5) ->  | CR184: =getNumKeta0($DP184,4) ->  | CS184: =getNumKeta0($DP184,3) ->  | CT184: =getNumKeta0($DP184,2) ->  | CU184: =getNumKeta0($DP184,1) ->  | CV184: Ａ | CW184: =IF($DQ184=0,"", $DQ184) ->  | DF184: =IF($DP184<>$DQ184,"*","") ->  | DP184: =IF($DK183/15=ROUNDUP(MAX($DJ:$DJ)/15,0),VLOOKUP($E$14,基本情報_工事名称マスタ,4,FALSE)+VLOOKUP($E$14,基本情報_工事名称マスタ,5,FALSE),0) -> 0 | DQ184: =IF($DK183/15=ROUNDUP(MAX($DJ:$DJ)/15,0),DQ186-DQ185,0) -> 0
W185: 消 費 税 | AE185: =基本情報_消費税率 -> 0.1 | AI185: =getNumKeta0($DP185,9) ->  | AJ185: =getNumKeta0($DP185,8) ->  | AK185: =getNumKeta0($DP185,7) ->  | AL185: =getNumKeta0($DP185,6) ->  | AM185: =getNumKeta0($DP185,5) ->  | AN185: =getNumKeta0($DP185,4) ->  | AO185: =getNumKeta0($DP185,3) ->  | AP185: =getNumKeta0($DP185,2) ->  | AQ185: =getNumKeta0($DP185,1) ->  | AR185: Ｂ | AS185: =IF($DQ185=0,"", $DQ185) ->  | CA185: 消 費 税 | CI185: =基本情報_消費税率 -> 0.1 | CM185: =getNumKeta0($DP185,9) ->  | CN185: =getNumKeta0($DP185,8) ->  | CO185: =getNumKeta0($DP185,7) ->  | CP185: =getNumKeta0($DP185,6) ->  | CQ185: =getNumKeta0($DP185,5) ->  | CR185: =getNumKeta0($DP185,4) ->  | CS185: =getNumKeta0($DP185,3) ->  | CT185: =getNumKeta0($DP185,2) ->  | CU185: =getNumKeta0($DP185,1) ->  | CV185: Ｂ | CW185: =IF($DQ185=0,"", $DQ185) ->  | DP185: =IF($DK183/15=ROUNDUP(MAX($DJ:$DJ)/15,0),VLOOKUP($E$14,基本情報_工事名称マスタ,6,FALSE),0) -> 0 | DQ185: =IF($DK183/15=ROUNDUP(MAX($DJ:$DJ)/15,0),ROUND((DQ186-VLOOKUP($E$14,基本情報_工事名称マスタ,5,FALSE))/(基本情報_消費税率*100+100)*(基本情報_消費税率*100),0),0) -> 0
W186: 合 計 | AI186: =getNumKeta0($DP186,9) ->  | AJ186: =getNumKeta0($DP186,8) ->  | AK186: =getNumKeta0($DP186,7) ->  | AL186: =getNumKeta0($DP186,6) ->  | AM186: =getNumKeta0($DP186,5) ->  | AN186: =getNumKeta0($DP186,4) ->  | AO186: =getNumKeta0($DP186,3) ->  | AP186: =getNumKeta0($DP186,2) ->  | AQ186: =getNumKeta0($DP186,1) ->  | AR186: Ｃ | AS186: =IF($DQ186=0,"", $DQ186) ->  | CA186: 合 計 | CM186: =getNumKeta0($DP186,9) ->  | CN186: =getNumKeta0($DP186,8) ->  | CO186: =getNumKeta0($DP186,7) ->  | CP186: =getNumKeta0($DP186,6) ->  | CQ186: =getNumKeta0($DP186,5) ->  | CR186: =getNumKeta0($DP186,4) ->  | CS186: =getNumKeta0($DP186,3) ->  | CT186: =getNumKeta0($DP186,2) ->  | CU186: =getNumKeta0($DP186,1) ->  | CV186: Ｃ | CW186: =IF($DQ186=0,"", $DQ186) ->  | DP186: =IF($DK183/15=ROUNDUP(MAX($DJ:$DJ)/15,0),VLOOKUP($E$14,基本情報_工事名称マスタ,7,FALSE),0) -> 0 | DQ186: =DP186 -> 0
W187: 貴社→請求書(添付)→経理(控) | CA187: 貴社→請求書(添付)→経理→作業所長(控)
AS189: ="P " & B230/15 & "/" & ROUNDUP(COUNTIF(請求明細_工事場所, E202)/15,0) -> P 5/1 | CW189: ="P " & BF230/15 & "/" & ROUNDUP(COUNTIF(請求明細_工事場所, BI202)/15,0) -> P 5/1
D190: 請求明細書（一般） | Z190: 取引先 | AC190: =基本情報_取引先コード -> 999999 | AM190: 締 日 | AP190: =基本情報_請求締日 -> 2020-07-31 | BH190: 請求明細書（一般） | CD190: 取引先 | CG190: =基本情報_取引先コード -> 999999 | CQ190: 締 日 | CT190: =基本情報_請求締日 -> 2020-07-31
J191: 提出用 | BN191: 提出用
Z193: コード | CD193: コード
B196: 丸高・みなと特定建設工事共同企業体 御中 | Z196: （住所・社名・電話） | BF196: 丸高・みなと特定建設工事共同企業体 御中 | CD196: （住所・社名・電話）
AC200: =基本情報_住所 -> 酒田市○○○○１－１ | CG200: =基本情報_住所 -> 酒田市○○○○１－１
B202: 工 事 名 | E202: =$E$14 -> ×××××工事 | P202: 承 認 | V202: 検 印 | BF202: 工 事 名 | BI202: =$E$14 -> ×××××工事 | BT202: 承 認 | BZ202: 検 印
AC205: =基本情報_社名 -> (株）○○建設 | AY205: 印 | CG205: =基本情報_社名 -> (株）○○建設 | DC205: 印
B208: 作業所長名 | E208: =VLOOKUP(E202,基本情報_工事名称マスタ,3,FALSE) -> ××次郎 | BF208: 作業所長名 | BI208: =VLOOKUP(BI202,基本情報_工事名称マスタ,3,FALSE) -> ××次郎
AC210: =基本情報_電話番号 -> 0234 - 00 - 0000 | CG210: =基本情報_電話番号 -> 0234 - 00 - 0000
B215: 通番 | C215: 納入年月日 | F215: 品 名 ・ 規 格 | J215: 数 量 | V215: 単 位 | W215: 単 価 | AI215: 金 額 | AR215: 備 考 | BF215: 通番 | BG215: 納入年月日 | BJ215: 品 名 ・ 規 格 | BN215: 数 量 | BZ215: 単 位 | CA215: 単 価 | CM215: 金 額 | CV215: 備 考 | DI215: ヒット | DJ215: ランク | DK215: - | DL215: 通番 | DM215: 数量 | DN215: 単価 | DO215: 金額
B216: =B183+1 -> 61 | C216: =IF(ISNA($DL216),"",VLOOKUP($DL216,請求明細,3,FALSE)) ->  | F216: =IF(ISNA($DL216),"",VLOOKUP($DL216,請求明細,4,FALSE)) ->  | J216: =IF(ISNA($DL216),"",getNumKeta0($DM216,9)) ->  | K216: =IF(ISNA($DL216),"",getNumKeta0($DM216,8)) ->  | L216: =IF(ISNA($DL216),"",getNumKeta0($DM216,7)) ->  | M216: =IF(ISNA($DL216),"",getNumKeta0($DM216,6)) ->  | N216: =IF(ISNA($DL216),"",getNumKeta0($DM216,5)) ->  | O216: =IF(ISNA($DL216),"",getNumKeta0($DM216,4)) ->  | P216: =IF(ISNA($DL216),"",getNumKeta0($DM216,3)) ->  | Q216: =IF(ISNA($DL216),"",getNumKeta0($DM216,2)) ->  | R216: =IF(ISNA($DL216),"",getNumKeta0($DM216,1)) ->  | S216: =IF(ISNA($DL216),"",getNumKeta0($DM216,-1)) ->  | T216: =IF(ISNA($DL216),"",getNumKeta0($DM216,-2)) ->  | U216: =IF(ISNA($DL216),"",getNumKeta0($DM216,-3)) ->  | V216: =IF(ISNA($DL216),"",VLOOKUP($DL216,請求明細,6,FALSE)) ->  | W216: =IF(ISNA($DL216),"",getNumKeta0($DN216,9)) ->  | X216: =IF(ISNA($DL216),"",getNumKeta0($DN216,8)) ->  | Y216: =IF(ISNA($DL216),"",getNumKeta0($DN216,7)) ->  | Z216: =IF(ISNA($DL216),"",getNumKeta0($DN216,6)) ->  | AA216: =IF(ISNA($DL216),"",getNumKeta0($DN216,5)) ->  | AB216: =IF(ISNA($DL216),"",getNumKeta0($DN216,4)) ->  | AC216: =IF(ISNA($DL216),"",getNumKeta0($DN216,3)) ->  | AD216: =IF(ISNA($DL216),"",getNumKeta0($DN216,2)) ->  | AE216: =IF(ISNA($DL216),"",getNumKeta0($DN216,1)) ->  | AF216: =IF(ISNA($DL216),"",getNumKeta0($DN216,-1)) ->  | AG216: =IF(ISNA($DL216),"",getNumKeta0($DN216,-2)) ->  | AH216: =IF(ISNA($DL216),"",getNumKeta0($DN216,-3)) ->  | AI216: =IF(ISNA($DL216),"",getNumKeta0($DO216,9)) ->  | AJ216: =IF(ISNA($DL216),"",getNumKeta0($DO216,8)) ->  | AK216: =IF(ISNA($DL216),"",getNumKeta0($DO216,7)) ->  | AL216: =IF(ISNA($DL216),"",getNumKeta0($DO216,6)) ->  | AM216: =IF(ISNA($DL216),"",getNumKeta0($DO216,5)) ->  | AN216: =IF(ISNA($DL216),"",getNumKeta0($DO216,4)) ->  | AO216: =IF(ISNA($DL216),"",getNumKeta0($DO216,3)) ->  | AP216: =IF(ISNA($DL216),"",getNumKeta0($DO216,2)) ->  | AQ216: =IF(ISNA($DL216),"",getNumKeta0($DO216,1)) ->  | AR216: =IF(ISNA($DL216),"",LEFT(VLOOKUP($DL216,請求明細,10,FALSE),16)) ->  | BF216: =BF183+1 -> 61 | BG216: =IF(ISNA($DL216),"",VLOOKUP($DL216,請求明細,3,FALSE)) ->  | BJ216: =IF(ISNA($DL216),"",VLOOKUP($DL216,請求明細,4,FALSE)) ->  | BN216: =IF(ISNA($DL216),"",getNumKeta0($DM216,9)) ->  | BO216: =IF(ISNA($DL216),"",getNumKeta0($DM216,8)) ->  | BP216: =IF(ISNA($DL216),"",getNumKeta0($DM216,7)) ->  | BQ216: =IF(ISNA($DL216),"",getNumKeta0($DM216,6)) ->  | BR216: =IF(ISNA($DL216),"",getNumKeta0($DM216,5)) ->  | BS216: =IF(ISNA($DL216),"",getNumKeta0($DM216,4)) ->  | BT216: =IF(ISNA($DL216),"",getNumKeta0($DM216,3)) ->  | BU216: =IF(ISNA($DL216),"",getNumKeta0($DM216,2)) ->  | BV216: =IF(ISNA($DL216),"",getNumKeta0($DM216,1)) ->  | BW216: =IF(ISNA($DL216),"",getNumKeta0($DM216,-1)) ->  | BX216: =IF(ISNA($DL216),"",getNumKeta0($DM216,-2)) ->  | BY216: =IF(ISNA($DL216),"",getNumKeta0($DM216,-3)) ->  | BZ216: =IF(ISNA($DL216),"",VLOOKUP($DL216,請求明細,6,FALSE)) ->  | CA216: =IF(ISNA($DL216),"",getNumKeta0($DN216,9)) ->  | CB216: =IF(ISNA($DL216),"",getNumKeta0($DN216,8)) ->  | CC216: =IF(ISNA($DL216),"",getNumKeta0($DN216,7)) ->  | CD216: =IF(ISNA($DL216),"",getNumKeta0($DN216,6)) ->  | CE216: =IF(ISNA($DL216),"",getNumKeta0($DN216,5)) ->  | CF216: =IF(ISNA($DL216),"",getNumKeta0($DN216,4)) ->  | CG216: =IF(ISNA($DL216),"",getNumKeta0($DN216,3)) ->  | CH216: =IF(ISNA($DL216),"",getNumKeta0($DN216,2)) ->  | CI216: =IF(ISNA($DL216),"",getNumKeta0($DN216,1)) ->  | CJ216: =IF(ISNA($DL216),"",getNumKeta0($DN216,-1)) ->  | CK216: =IF(ISNA($DL216),"",getNumKeta0($DN216,-2)) ->  | CL216: =IF(ISNA($DL216),"",getNumKeta0($DN216,-3)) ->  | CM216: =IF(ISNA($DL216),"",getNumKeta0($DO216,9)) ->  | CN216: =IF(ISNA($DL216),"",getNumKeta0($DO216,8)) ->  | CO216: =IF(ISNA($DL216),"",getNumKeta0($DO216,7)) ->  | CP216: =IF(ISNA($DL216),"",getNumKeta0($DO216,6)) ->  | CQ216: =IF(ISNA($DL216),"",getNumKeta0($DO216,5)) ->  | CR216: =IF(ISNA($DL216),"",getNumKeta0($DO216,4)) ->  | CS216: =IF(ISNA($DL216),"",getNumKeta0($DO216,3)) ->  | CT216: =IF(ISNA($DL216),"",getNumKeta0($DO216,2)) ->  | CU216: =IF(ISNA($DL216),"",getNumKeta0($DO216,1)) ->  | CV216: =IF(ISNA($DL216),"",LEFT(VLOOKUP($DL216,請求明細,10,FALSE),16)) ->  | DI216: =IF($E$14=OFFSET(明細情報!$B$5, $DK216-1,0),1,0) -> 0 | DJ216: =IF($DI216=0, 0, SUM($DI$28:$DI216)) -> 0 | DK216: =DK183+1 -> 61 | DL216: =VLOOKUP(B216,$DJ$28:$DK$65536,2,FALSE) ->  | DM216: =IF(ISNA($DL216),0,VLOOKUP($DL216,請求明細,5,FALSE)) -> 0 | DN216: =IF(ISNA($DL216),0,VLOOKUP($DL216,請求明細,7,FALSE)) -> 0 | DO216: =IF(ISNA($DL216),0,VLOOKUP($DL216,請求明細,9,FALSE)) -> 0
B217: =B216+1 -> 62 | BF217: =BF216+1 -> 62 | DI217: =IF($E$14=OFFSET(明細情報!$B$5, $DK217-1,0),1,0) -> 0 | DJ217: =IF($DI217=0, 0, SUM($DI$28:$DI217)) -> 0 | DK217: =DK216+1 -> 62 | DM217: 0 | DN217: 0 | DO217: 0
B218: 63 | BF218: 63 | DI218: =IF($E$14=OFFSET(明細情報!$B$5, $DK218-1,0),1,0) -> 0 | DJ218: =IF($DI218=0, 0, SUM($DI$28:$DI218)) -> 0 | DK218: 63 | DM218: 0 | DN218: 0 | DO218: 0
B219: 64 | BF219: 64 | DI219: =IF($E$14=OFFSET(明細情報!$B$5, $DK219-1,0),1,0) -> 0 | DJ219: =IF($DI219=0, 0, SUM($DI$28:$DI219)) -> 0 | DK219: 64 | DM219: 0 | DN219: 0 | DO219: 0
B220: 65 | BF220: 65 | DI220: =IF($E$14=OFFSET(明細情報!$B$5, $DK220-1,0),1,0) -> 0 | DJ220: =IF($DI220=0, 0, SUM($DI$28:$DI220)) -> 0 | DK220: 65 | DM220: 0 | DN220: 0 | DO220: 0
B221: 66 | BF221: 66 | DI221: =IF($E$14=OFFSET(明細情報!$B$5, $DK221-1,0),1,0) -> 0 | DJ221: =IF($DI221=0, 0, SUM($DI$28:$DI221)) -> 0 | DK221: 66 | DM221: 0 | DN221: 0 | DO221: 0
B222: 67 | BF222: 67 | DI222: =IF($E$14=OFFSET(明細情報!$B$5, $DK222-1,0),1,0) -> 0 | DJ222: =IF($DI222=0, 0, SUM($DI$28:$DI222)) -> 0 | DK222: 67 | DM222: 0 | DN222: 0 | DO222: 0
B223: 68 | BF223: 68 | DI223: =IF($E$14=OFFSET(明細情報!$B$5, $DK223-1,0),1,0) -> 0 | DJ223: =IF($DI223=0, 0, SUM($DI$28:$DI223)) -> 0 | DK223: 68 | DM223: 0 | DN223: 0 | DO223: 0
B224: 69 | BF224: 69 | DI224: =IF($E$14=OFFSET(明細情報!$B$5, $DK224-1,0),1,0) -> 0 | DJ224: =IF($DI224=0, 0, SUM($DI$28:$DI224)) -> 0 | DK224: 69 | DM224: 0 | DN224: 0 | DO224: 0
B225: 70 | BF225: 70 | DI225: =IF($E$14=OFFSET(明細情報!$B$5, $DK225-1,0),1,0) -> 0 | DJ225: =IF($DI225=0, 0, SUM($DI$28:$DI225)) -> 0 | DK225: 70 | DM225: 0 | DN225: 0 | DO225: 0
B226: 71 | BF226: 71 | DI226: =IF($E$14=OFFSET(明細情報!$B$5, $DK226-1,0),1,0) -> 0 | DJ226: =IF($DI226=0, 0, SUM($DI$28:$DI226)) -> 0 | DK226: 71 | DM226: 0 | DN226: 0 | DO226: 0
B227: 72 | BF227: 72 | DI227: =IF($E$14=OFFSET(明細情報!$B$5, $DK227-1,0),1,0) -> 0 | DJ227: =IF($DI227=0, 0, SUM($DI$28:$DI227)) -> 0 | DK227: 72 | DM227: 0 | DN227: 0 | DO227: 0
B228: 73 | BF228: 73 | DI228: =IF($E$14=OFFSET(明細情報!$B$5, $DK228-1,0),1,0) -> 0 | DJ228: =IF($DI228=0, 0, SUM($DI$28:$DI228)) -> 0 | DK228: 73 | DM228: 0 | DN228: 0 | DO228: 0
B229: 74 | BF229: 74 | DI229: =IF($E$14=OFFSET(明細情報!$B$5, $DK229-1,0),1,0) -> 0 | DJ229: =IF($DI229=0, 0, SUM($DI$28:$DI229)) -> 0 | DK229: 74 | DM229: 0 | DN229: 0 | DO229: 0
B230: 75 | BF230: 75 | DI230: =IF($E$14=OFFSET(明細情報!$B$5, $DK230-1,0),1,0) -> 0 | DJ230: =IF($DI230=0, 0, SUM($DI$28:$DI230)) -> 0 | DK230: 75 | DM230: 0 | DN230: 0 | DO230: 0
W231: 小 計 | AI231: =getNumKeta0($DP231,9) ->  | AJ231: =getNumKeta0($DP231,8) ->  | AK231: =getNumKeta0($DP231,7) ->  | AL231: =getNumKeta0($DP231,6) ->  | AM231: =getNumKeta0($DP231,5) ->  | AN231: =getNumKeta0($DP231,4) ->  | AO231: =getNumKeta0($DP231,3) ->  | AP231: =getNumKeta0($DP231,2) ->  | AQ231: =getNumKeta0($DP231,1) ->  | AR231: Ａ | AS231: =IF($DQ231=0,"", $DQ231) ->  | BB231: =IF($DP231<>$DQ231,"*","") ->  | CA231: 小 計 | CM231: =getNumKeta0($DP231,9) ->  | CN231: =getNumKeta0($DP231,8) ->  | CO231: =getNumKeta0($DP231,7) ->  | CP231: =getNumKeta0($DP231,6) ->  | CQ231: =getNumKeta0($DP231,5) ->  | CR231: =getNumKeta0($DP231,4) ->  | CS231: =getNumKeta0($DP231,3) ->  | CT231: =getNumKeta0($DP231,2) ->  | CU231: =getNumKeta0($DP231,1) ->  | CV231: Ａ | CW231: =IF($DQ231=0,"", $DQ231) ->  | DF231: =IF($DP231<>$DQ231,"*","") ->  | DP231: =IF($DK230/15=ROUNDUP(MAX($DJ:$DJ)/15,0),VLOOKUP($E$14,基本情報_工事名称マスタ,4,FALSE)+VLOOKUP($E$14,基本情報_工事名称マスタ,5,FALSE),0) -> 0 | DQ231: =IF($DK230/15=ROUNDUP(MAX($DJ:$DJ)/15,0),DQ233-DQ232,0) -> 0
W232: 消 費 税 | AE232: =基本情報_消費税率 -> 0.1 | AI232: =getNumKeta0($DP232,9) ->  | AJ232: =getNumKeta0($DP232,8) ->  | AK232: =getNumKeta0($DP232,7) ->  | AL232: =getNumKeta0($DP232,6) ->  | AM232: =getNumKeta0($DP232,5) ->  | AN232: =getNumKeta0($DP232,4) ->  | AO232: =getNumKeta0($DP232,3) ->  | AP232: =getNumKeta0($DP232,2) ->  | AQ232: =getNumKeta0($DP232,1) ->  | AR232: Ｂ | AS232: =IF($DQ232=0,"", $DQ232) ->  | CA232: 消 費 税 | CI232: =基本情報_消費税率 -> 0.1 | CM232: =getNumKeta0($DP232,9) ->  | CN232: =getNumKeta0($DP232,8) ->  | CO232: =getNumKeta0($DP232,7) ->  | CP232: =getNumKeta0($DP232,6) ->  | CQ232: =getNumKeta0($DP232,5) ->  | CR232: =getNumKeta0($DP232,4) ->  | CS232: =getNumKeta0($DP232,3) ->  | CT232: =getNumKeta0($DP232,2) ->  | CU232: =getNumKeta0($DP232,1) ->  | CV232: Ｂ | CW232: =IF($DQ232=0,"", $DQ232) ->  | DP232: =IF($DK230/15=ROUNDUP(MAX($DJ:$DJ)/15,0),VLOOKUP($E$14,基本情報_工事名称マスタ,6,FALSE),0) -> 0 | DQ232: =IF($DK230/15=ROUNDUP(MAX($DJ:$DJ)/15,0),ROUND((DQ233-VLOOKUP($E$14,基本情報_工事名称マスタ,5,FALSE))/(基本情報_消費税率*100+100)*(基本情報_消費税率*100),0),0) -> 0
W233: 合 計 | AI233: =getNumKeta0($DP233,9) ->  | AJ233: =getNumKeta0($DP233,8) ->  | AK233: =getNumKeta0($DP233,7) ->  | AL233: =getNumKeta0($DP233,6) ->  | AM233: =getNumKeta0($DP233,5) ->  | AN233: =getNumKeta0($DP233,4) ->  | AO233: =getNumKeta0($DP233,3) ->  | AP233: =getNumKeta0($DP233,2) ->  | AQ233: =getNumKeta0($DP233,1) ->  | AR233: Ｃ | AS233: =IF($DQ233=0,"", $DQ233) ->  | CA233: 合 計 | CM233: =getNumKeta0($DP233,9) ->  | CN233: =getNumKeta0($DP233,8) ->  | CO233: =getNumKeta0($DP233,7) ->  | CP233: =getNumKeta0($DP233,6) ->  | CQ233: =getNumKeta0($DP233,5) ->  | CR233: =getNumKeta0($DP233,4) ->  | CS233: =getNumKeta0($DP233,3) ->  | CT233: =getNumKeta0($DP233,2) ->  | CU233: =getNumKeta0($DP233,1) ->  | CV233: Ｃ | CW233: =IF($DQ233=0,"", $DQ233) ->  | DP233: =IF($DK230/15=ROUNDUP(MAX($DJ:$DJ)/15,0),VLOOKUP($E$14,基本情報_工事名称マスタ,7,FALSE),0) -> 0 | DQ233: =DP233 -> 0
W234: 貴社→請求書(添付)→経理(控) | CA234: 貴社→請求書(添付)→経理→作業所長(控)
AS236: ="P " & B277/15 & "/" & ROUNDUP(COUNTIF(請求明細_工事場所, E249)/15,0) -> P 6/1 | CW236: ="P " & BF277/15 & "/" & ROUNDUP(COUNTIF(請求明細_工事場所, BI249)/15,0) -> P 6/1
D237: 請求明細書（一般） | Z237: 取引先 | AC237: =基本情報_取引先コード -> 999999 | AM237: 締 日 | AP237: =基本情報_請求締日 -> 2020-07-31 | BH237: 請求明細書（一般） | CD237: 取引先 | CG237: =基本情報_取引先コード -> 999999 | CQ237: 締 日 | CT237: =基本情報_請求締日 -> 2020-07-31
J238: 提出用 | BO238: 提出用
Z240: コード | CD240: コード
B243: 丸高・みなと特定建設工事共同企業体 御中 | Z243: （住所・社名・電話） | BF243: 丸高・みなと特定建設工事共同企業体 御中 | CD243: （住所・社名・電話）
AC247: =基本情報_住所 -> 酒田市○○○○１－１ | CG247: =基本情報_住所 -> 酒田市○○○○１－１
B249: 工 事 名 | E249: =$E$14 -> ×××××工事 | P249: 承 認 | V249: 検 印 | BF249: 工 事 名 | BI249: =$E$14 -> ×××××工事 | BT249: 承 認 | BZ249: 検 印
AC252: =基本情報_社名 -> (株）○○建設 | AY252: 印 | CG252: =基本情報_社名 -> (株）○○建設 | DC252: 印
B255: 作業所長名 | E255: =VLOOKUP(E249,基本情報_工事名称マスタ,3,FALSE) -> ××次郎 | BF255: 作業所長名 | BI255: =VLOOKUP(BI249,基本情報_工事名称マスタ,3,FALSE) -> ××次郎
AC257: =基本情報_電話番号 -> 0234 - 00 - 0000 | CG257: =基本情報_電話番号 -> 0234 - 00 - 0000
B262: 通番 | C262: 納入年月日 | F262: 品 名 ・ 規 格 | J262: 数 量 | V262: 単 位 | W262: 単 価 | AI262: 金 額 | AR262: 備 考 | BF262: 通番 | BG262: 納入年月日 | BJ262: 品 名 ・ 規 格 | BN262: 数 量 | BZ262: 単 位 | CA262: 単 価 | CM262: 金 額 | CV262: 備 考 | DI262: ヒット | DJ262: ランク | DK262: - | DL262: 通番 | DM262: 数量 | DN262: 単価 | DO262: 金額
B263: =B230+1 -> 76 | C263: =IF(ISNA($DL263),"",VLOOKUP($DL263,請求明細,3,FALSE)) ->  | F263: =IF(ISNA($DL263),"",VLOOKUP($DL263,請求明細,4,FALSE)) ->  | J263: =IF(ISNA($DL263),"",getNumKeta0($DM263,9)) ->  | K263: =IF(ISNA($DL263),"",getNumKeta0($DM263,8)) ->  | L263: =IF(ISNA($DL263),"",getNumKeta0($DM263,7)) ->  | M263: =IF(ISNA($DL263),"",getNumKeta0($DM263,6)) ->  | N263: =IF(ISNA($DL263),"",getNumKeta0($DM263,5)) ->  | O263: =IF(ISNA($DL263),"",getNumKeta0($DM263,4)) ->  | P263: =IF(ISNA($DL263),"",getNumKeta0($DM263,3)) ->  | Q263: =IF(ISNA($DL263),"",getNumKeta0($DM263,2)) ->  | R263: =IF(ISNA($DL263),"",getNumKeta0($DM263,1)) ->  | S263: =IF(ISNA($DL263),"",getNumKeta0($DM263,-1)) ->  | T263: =IF(ISNA($DL263),"",getNumKeta0($DM263,-2)) ->  | U263: =IF(ISNA($DL263),"",getNumKeta0($DM263,-3)) ->  | V263: =IF(ISNA($DL263),"",VLOOKUP($DL263,請求明細,6,FALSE)) ->  | W263: =IF(ISNA($DL263),"",getNumKeta0($DN263,9)) ->  | X263: =IF(ISNA($DL263),"",getNumKeta0($DN263,8)) ->  | Y263: =IF(ISNA($DL263),"",getNumKeta0($DN263,7)) ->  | Z263: =IF(ISNA($DL263),"",getNumKeta0($DN263,6)) ->  | AA263: =IF(ISNA($DL263),"",getNumKeta0($DN263,5)) ->  | AB263: =IF(ISNA($DL263),"",getNumKeta0($DN263,4)) ->  | AC263: =IF(ISNA($DL263),"",getNumKeta0($DN263,3)) ->  | AD263: =IF(ISNA($DL263),"",getNumKeta0($DN263,2)) ->  | AE263: =IF(ISNA($DL263),"",getNumKeta0($DN263,1)) ->  | AF263: =IF(ISNA($DL263),"",getNumKeta0($DN263,-1)) ->  | AG263: =IF(ISNA($DL263),"",getNumKeta0($DN263,-2)) ->  | AH263: =IF(ISNA($DL263),"",getNumKeta0($DN263,-3)) ->  | AI263: =IF(ISNA($DL263),"",getNumKeta0($DO263,9)) ->  | AJ263: =IF(ISNA($DL263),"",getNumKeta0($DO263,8)) ->  | AK263: =IF(ISNA($DL263),"",getNumKeta0($DO263,7)) ->  | AL263: =IF(ISNA($DL263),"",getNumKeta0($DO263,6)) ->  | AM263: =IF(ISNA($DL263),"",getNumKeta0($DO263,5)) ->  | AN263: =IF(ISNA($DL263),"",getNumKeta0($DO263,4)) ->  | AO263: =IF(ISNA($DL263),"",getNumKeta0($DO263,3)) ->  | AP263: =IF(ISNA($DL263),"",getNumKeta0($DO263,2)) ->  | AQ263: =IF(ISNA($DL263),"",getNumKeta0($DO263,1)) ->  | AR263: =IF(ISNA($DL263),"",LEFT(VLOOKUP($DL263,請求明細,10,FALSE),16)) ->  | BF263: =BF230+1 -> 76 | BG263: =IF(ISNA($DL263),"",VLOOKUP($DL263,請求明細,3,FALSE)) ->  | BJ263: =IF(ISNA($DL263),"",VLOOKUP($DL263,請求明細,4,FALSE)) ->  | BN263: =IF(ISNA($DL263),"",getNumKeta0($DM263,9)) ->  | BO263: =IF(ISNA($DL263),"",getNumKeta0($DM263,8)) ->  | BP263: =IF(ISNA($DL263),"",getNumKeta0($DM263,7)) ->  | BQ263: =IF(ISNA($DL263),"",getNumKeta0($DM263,6)) ->  | BR263: =IF(ISNA($DL263),"",getNumKeta0($DM263,5)) ->  | BS263: =IF(ISNA($DL263),"",getNumKeta0($DM263,4)) ->  | BT263: =IF(ISNA($DL263),"",getNumKeta0($DM263,3)) ->  | BU263: =IF(ISNA($DL263),"",getNumKeta0($DM263,2)) ->  | BV263: =IF(ISNA($DL263),"",getNumKeta0($DM263,1)) ->  | BW263: =IF(ISNA($DL263),"",getNumKeta0($DM263,-1)) ->  | BX263: =IF(ISNA($DL263),"",getNumKeta0($DM263,-2)) ->  | BY263: =IF(ISNA($DL263),"",getNumKeta0($DM263,-3)) ->  | BZ263: =IF(ISNA($DL263),"",VLOOKUP($DL263,請求明細,6,FALSE)) ->  | CA263: =IF(ISNA($DL263),"",getNumKeta0($DN263,9)) ->  | CB263: =IF(ISNA($DL263),"",getNumKeta0($DN263,8)) ->  | CC263: =IF(ISNA($DL263),"",getNumKeta0($DN263,7)) ->  | CD263: =IF(ISNA($DL263),"",getNumKeta0($DN263,6)) ->  | CE263: =IF(ISNA($DL263),"",getNumKeta0($DN263,5)) ->  | CF263: =IF(ISNA($DL263),"",getNumKeta0($DN263,4)) ->  | CG263: =IF(ISNA($DL263),"",getNumKeta0($DN263,3)) ->  | CH263: =IF(ISNA($DL263),"",getNumKeta0($DN263,2)) ->  | CI263: =IF(ISNA($DL263),"",getNumKeta0($DN263,1)) ->  | CJ263: =IF(ISNA($DL263),"",getNumKeta0($DN263,-1)) ->  | CK263: =IF(ISNA($DL263),"",getNumKeta0($DN263,-2)) ->  | CL263: =IF(ISNA($DL263),"",getNumKeta0($DN263,-3)) ->  | CM263: =IF(ISNA($DL263),"",getNumKeta0($DO263,9)) ->  | CN263: =IF(ISNA($DL263),"",getNumKeta0($DO263,8)) ->  | CO263: =IF(ISNA($DL263),"",getNumKeta0($DO263,7)) ->  | CP263: =IF(ISNA($DL263),"",getNumKeta0($DO263,6)) ->  | CQ263: =IF(ISNA($DL263),"",getNumKeta0($DO263,5)) ->  | CR263: =IF(ISNA($DL263),"",getNumKeta0($DO263,4)) ->  | CS263: =IF(ISNA($DL263),"",getNumKeta0($DO263,3)) ->  | CT263: =IF(ISNA($DL263),"",getNumKeta0($DO263,2)) ->  | CU263: =IF(ISNA($DL263),"",getNumKeta0($DO263,1)) ->  | CV263: =IF(ISNA($DL263),"",LEFT(VLOOKUP($DL263,請求明細,10,FALSE),16)) ->  | DI263: =IF($E$14=OFFSET(明細情報!$B$5, $DK263-1,0),1,0) -> 0 | DJ263: =IF($DI263=0, 0, SUM($DI$28:$DI263)) -> 0 | DK263: =DK230+1 -> 76 | DL263: =VLOOKUP(B263,$DJ$28:$DK$65536,2,FALSE) ->  | DM263: =IF(ISNA($DL263),0,VLOOKUP($DL263,請求明細,5,FALSE)) -> 0 | DN263: =IF(ISNA($DL263),0,VLOOKUP($DL263,請求明細,7,FALSE)) -> 0 | DO263: =IF(ISNA($DL263),0,VLOOKUP($DL263,請求明細,9,FALSE)) -> 0
B264: =B263+1 -> 77 | BF264: =BF263+1 -> 77 | DI264: =IF($E$14=OFFSET(明細情報!$B$5, $DK264-1,0),1,0) -> 0 | DJ264: =IF($DI264=0, 0, SUM($DI$28:$DI264)) -> 0 | DK264: =DK263+1 -> 77 | DM264: 0 | DN264: 0 | DO264: 0
B265: 78 | BF265: 78 | DI265: =IF($E$14=OFFSET(明細情報!$B$5, $DK265-1,0),1,0) -> 0 | DJ265: =IF($DI265=0, 0, SUM($DI$28:$DI265)) -> 0 | DK265: 78 | DM265: 0 | DN265: 0 | DO265: 0
B266: 79 | BF266: 79 | DI266: =IF($E$14=OFFSET(明細情報!$B$5, $DK266-1,0),1,0) -> 0 | DJ266: =IF($DI266=0, 0, SUM($DI$28:$DI266)) -> 0 | DK266: 79 | DM266: 0 | DN266: 0 | DO266: 0
B267: 80 | BF267: 80 | DI267: =IF($E$14=OFFSET(明細情報!$B$5, $DK267-1,0),1,0) -> 0 | DJ267: =IF($DI267=0, 0, SUM($DI$28:$DI267)) -> 0 | DK267: 80 | DM267: 0 | DN267: 0 | DO267: 0
B268: 81 | BF268: 81 | DI268: =IF($E$14=OFFSET(明細情報!$B$5, $DK268-1,0),1,0) -> 0 | DJ268: =IF($DI268=0, 0, SUM($DI$28:$DI268)) -> 0 | DK268: 81 | DM268: 0 | DN268: 0 | DO268: 0
B269: 82 | BF269: 82 | DI269: =IF($E$14=OFFSET(明細情報!$B$5, $DK269-1,0),1,0) -> 0 | DJ269: =IF($DI269=0, 0, SUM($DI$28:$DI269)) -> 0 | DK269: 82 | DM269: 0 | DN269: 0 | DO269: 0
B270: 83 | BF270: 83 | DI270: =IF($E$14=OFFSET(明細情報!$B$5, $DK270-1,0),1,0) -> 0 | DJ270: =IF($DI270=0, 0, SUM($DI$28:$DI270)) -> 0 | DK270: 83 | DM270: 0 | DN270: 0 | DO270: 0
B271: 84 | BF271: 84 | DI271: =IF($E$14=OFFSET(明細情報!$B$5, $DK271-1,0),1,0) -> 0 | DJ271: =IF($DI271=0, 0, SUM($DI$28:$DI271)) -> 0 | DK271: 84 | DM271: 0 | DN271: 0 | DO271: 0
B272: 85 | BF272: 85 | DI272: =IF($E$14=OFFSET(明細情報!$B$5, $DK272-1,0),1,0) -> 0 | DJ272: =IF($DI272=0, 0, SUM($DI$28:$DI272)) -> 0 | DK272: 85 | DM272: 0 | DN272: 0 | DO272: 0
B273: 86 | BF273: 86 | DI273: =IF($E$14=OFFSET(明細情報!$B$5, $DK273-1,0),1,0) -> 0 | DJ273: =IF($DI273=0, 0, SUM($DI$28:$DI273)) -> 0 | DK273: 86 | DM273: 0 | DN273: 0 | DO273: 0
B274: 87 | BF274: 87 | DI274: =IF($E$14=OFFSET(明細情報!$B$5, $DK274-1,0),1,0) -> 0 | DJ274: =IF($DI274=0, 0, SUM($DI$28:$DI274)) -> 0 | DK274: 87 | DM274: 0 | DN274: 0 | DO274: 0
B275: 88 | BF275: 88 | DI275: =IF($E$14=OFFSET(明細情報!$B$5, $DK275-1,0),1,0) -> 0 | DJ275: =IF($DI275=0, 0, SUM($DI$28:$DI275)) -> 0 | DK275: 88 | DM275: 0 | DN275: 0 | DO275: 0
B276: 89 | BF276: 89 | DI276: =IF($E$14=OFFSET(明細情報!$B$5, $DK276-1,0),1,0) -> 0 | DJ276: =IF($DI276=0, 0, SUM($DI$28:$DI276)) -> 0 | DK276: 89 | DM276: 0 | DN276: 0 | DO276: 0
B277: 90 | BF277: 90 | DI277: =IF($E$14=OFFSET(明細情報!$B$5, $DK277-1,0),1,0) -> 0 | DJ277: =IF($DI277=0, 0, SUM($DI$28:$DI277)) -> 0 | DK277: 90 | DM277: 0 | DN277: 0 | DO277: 0
W278: 小 計 | AI278: =getNumKeta0($DP278,9) ->  | AJ278: =getNumKeta0($DP278,8) ->  | AK278: =getNumKeta0($DP278,7) ->  | AL278: =getNumKeta0($DP278,6) ->  | AM278: =getNumKeta0($DP278,5) ->  | AN278: =getNumKeta0($DP278,4) ->  | AO278: =getNumKeta0($DP278,3) ->  | AP278: =getNumKeta0($DP278,2) ->  | AQ278: =getNumKeta0($DP278,1) ->  | AR278: Ａ | AS278: =IF($DQ278=0,"", $DQ278) ->  | BB278: =IF($DP278<>$DQ278,"*","") ->  | CA278: 小 計 | CM278: =getNumKeta0($DP278,9) ->  | CN278: =getNumKeta0($DP278,8) ->  | CO278: =getNumKeta0($DP278,7) ->  | CP278: =getNumKeta0($DP278,6) ->  | CQ278: =getNumKeta0($DP278,5) ->  | CR278: =getNumKeta0($DP278,4) ->  | CS278: =getNumKeta0($DP278,3) ->  | CT278: =getNumKeta0($DP278,2) ->  | CU278: =getNumKeta0($DP278,1) ->  | CV278: Ａ | CW278: =IF($DQ278=0,"", $DQ278) ->  | DF278: =IF($DP278<>$DQ278,"*","") ->  | DP278: =IF($DK277/15=ROUNDUP(MAX($DJ:$DJ)/15,0),VLOOKUP($E$14,基本情報_工事名称マスタ,4,FALSE)+VLOOKUP($E$14,基本情報_工事名称マスタ,5,FALSE),0) -> 0 | DQ278: =IF($DK277/15=ROUNDUP(MAX($DJ:$DJ)/15,0),DQ280-DQ279,0) -> 0
W279: 消 費 税 | AE279: =基本情報_消費税率 -> 0.1 | AI279: =getNumKeta0($DP279,9) ->  | AJ279: =getNumKeta0($DP279,8) ->  | AK279: =getNumKeta0($DP279,7) ->  | AL279: =getNumKeta0($DP279,6) ->  | AM279: =getNumKeta0($DP279,5) ->  | AN279: =getNumKeta0($DP279,4) ->  | AO279: =getNumKeta0($DP279,3) ->  | AP279: =getNumKeta0($DP279,2) ->  | AQ279: =getNumKeta0($DP279,1) ->  | AR279: Ｂ | AS279: =IF($DQ279=0,"", $DQ279) ->  | CA279: 消 費 税 | CI279: =基本情報_消費税率 -> 0.1 | CM279: =getNumKeta0($DP279,9) ->  | CN279: =getNumKeta0($DP279,8) ->  | CO279: =getNumKeta0($DP279,7) ->  | CP279: =getNumKeta0($DP279,6) ->  | CQ279: =getNumKeta0($DP279,5) ->  | CR279: =getNumKeta0($DP279,4) ->  | CS279: =getNumKeta0($DP279,3) ->  | CT279: =getNumKeta0($DP279,2) ->  | CU279: =getNumKeta0($DP279,1) ->  | CV279: Ｂ | CW279: =IF($DQ279=0,"", $DQ279) ->  | DP279: =IF($DK277/15=ROUNDUP(MAX($DJ:$DJ)/15,0),VLOOKUP($E$14,基本情報_工事名称マスタ,6,FALSE),0) -> 0 | DQ279: =IF($DK277/15=ROUNDUP(MAX($DJ:$DJ)/15,0),ROUND((DQ280-VLOOKUP($E$14,基本情報_工事名称マスタ,5,FALSE))/(基本情報_消費税率*100+100)*(基本情報_消費税率*100),0),0) -> 0
W280: 合 計 | AI280: =getNumKeta0($DP280,9) ->  | AJ280: =getNumKeta0($DP280,8) ->  | AK280: =getNumKeta0($DP280,7) ->  | AL280: =getNumKeta0($DP280,6) ->  | AM280: =getNumKeta0($DP280,5) ->  | AN280: =getNumKeta0($DP280,4) ->  | AO280: =getNumKeta0($DP280,3) ->  | AP280: =getNumKeta0($DP280,2) ->  | AQ280: =getNumKeta0($DP280,1) ->  | AR280: Ｃ | AS280: =IF($DQ280=0,"", $DQ280) ->  | CA280: 合 計 | CM280: =getNumKeta0($DP280,9) ->  | CN280: =getNumKeta0($DP280,8) ->  | CO280: =getNumKeta0($DP280,7) ->  | CP280: =getNumKeta0($DP280,6) ->  | CQ280: =getNumKeta0($DP280,5) ->  | CR280: =getNumKeta0($DP280,4) ->  | CS280: =getNumKeta0($DP280,3) ->  | CT280: =getNumKeta0($DP280,2) ->  | CU280: =getNumKeta0($DP280,1) ->  | CV280: Ｃ | CW280: =IF($DQ280=0,"", $DQ280) ->  | DP280: =IF($DK277/15=ROUNDUP(MAX($DJ:$DJ)/15,0),VLOOKUP($E$14,基本情報_工事名称マスタ,7,FALSE),0) -> 0 | DQ280: =DP280 -> 0
W281: 貴社→請求書(添付)→経理(控) | CA281: 貴社→請求書(添付)→経理→作業所長(控)
AS283: ="P " & B324/15 & "/" & ROUNDUP(COUNTIF(請求明細_工事場所, E296)/15,0) -> P 7/1 | CW283: ="P " & BF324/15 & "/" & ROUNDUP(COUNTIF(請求明細_工事場所, BI296)/15,0) -> P 7/1
D284: 請求明細書（一般） | Z284: 取引先 | AC284: =基本情報_取引先コード -> 999999 | AM284: 締 日 | AP284: =基本情報_請求締日 -> 2020-07-31 | BH284: 請求明細書（一般） | CD284: 取引先 | CG284: =基本情報_取引先コード -> 999999 | CQ284: 締 日 | CT284: =基本情報_請求締日 -> 2020-07-31
J285: 提出用 | BN285: 提出用
Z287: コード | CD287: コード
B290: 丸高・みなと特定建設工事共同企業体 御中 | Z290: （住所・社名・電話） | BF290: 丸高・みなと特定建設工事共同企業体 御中 | CD290: （住所・社名・電話）
AC294: =基本情報_住所 -> 酒田市○○○○１－１ | CG294: =基本情報_住所 -> 酒田市○○○○１－１
B296: 工 事 名 | E296: =$E$14 -> ×××××工事 | P296: 承 認 | V296: 検 印 | BF296: 工 事 名 | BI296: =$E$14 -> ×××××工事 | BT296: 承 認 | BZ296: 検 印
AC299: =基本情報_社名 -> (株）○○建設 | AY299: 印 | CG299: =基本情報_社名 -> (株）○○建設 | DC299: 印
B302: 作業所長名 | E302: =VLOOKUP(E296,基本情報_工事名称マスタ,3,FALSE) -> ××次郎 | BF302: 作業所長名 | BI302: =VLOOKUP(BI296,基本情報_工事名称マスタ,3,FALSE) -> ××次郎
AC304: =基本情報_電話番号 -> 0234 - 00 - 0000 | CG304: =基本情報_電話番号 -> 0234 - 00 - 0000
B309: 通番 | C309: 納入年月日 | F309: 品 名 ・ 規 格 | J309: 数 量 | V309: 単 位 | W309: 単 価 | AI309: 金 額 | AR309: 備 考 | BF309: 通番 | BG309: 納入年月日 | BJ309: 品 名 ・ 規 格 | BN309: 数 量 | BZ309: 単 位 | CA309: 単 価 | CM309: 金 額 | CV309: 備 考 | DI309: ヒット | DJ309: ランク | DK309: - | DL309: 通番 | DM309: 数量 | DN309: 単価 | DO309: 金額
B310: =B277+1 -> 91 | C310: =IF(ISNA($DL310),"",VLOOKUP($DL310,請求明細,3,FALSE)) ->  | F310: =IF(ISNA($DL310),"",VLOOKUP($DL310,請求明細,4,FALSE)) ->  | J310: =IF(ISNA($DL310),"",getNumKeta0($DM310,9)) ->  | K310: =IF(ISNA($DL310),"",getNumKeta0($DM310,8)) ->  | L310: =IF(ISNA($DL310),"",getNumKeta0($DM310,7)) ->  | M310: =IF(ISNA($DL310),"",getNumKeta0($DM310,6)) ->  | N310: =IF(ISNA($DL310),"",getNumKeta0($DM310,5)) ->  | O310: =IF(ISNA($DL310),"",getNumKeta0($DM310,4)) ->  | P310: =IF(ISNA($DL310),"",getNumKeta0($DM310,3)) ->  | Q310: =IF(ISNA($DL310),"",getNumKeta0($DM310,2)) ->  | R310: =IF(ISNA($DL310),"",getNumKeta0($DM310,1)) ->  | S310: =IF(ISNA($DL310),"",getNumKeta0($DM310,-1)) ->  | T310: =IF(ISNA($DL310),"",getNumKeta0($DM310,-2)) ->  | U310: =IF(ISNA($DL310),"",getNumKeta0($DM310,-3)) ->  | V310: =IF(ISNA($DL310),"",VLOOKUP($DL310,請求明細,6,FALSE)) ->  | W310: =IF(ISNA($DL310),"",getNumKeta0($DN310,9)) ->  | X310: =IF(ISNA($DL310),"",getNumKeta0($DN310,8)) ->  | Y310: =IF(ISNA($DL310),"",getNumKeta0($DN310,7)) ->  | Z310: =IF(ISNA($DL310),"",getNumKeta0($DN310,6)) ->  | AA310: =IF(ISNA($DL310),"",getNumKeta0($DN310,5)) ->  | AB310: =IF(ISNA($DL310),"",getNumKeta0($DN310,4)) ->  | AC310: =IF(ISNA($DL310),"",getNumKeta0($DN310,3)) ->  | AD310: =IF(ISNA($DL310),"",getNumKeta0($DN310,2)) ->  | AE310: =IF(ISNA($DL310),"",getNumKeta0($DN310,1)) ->  | AF310: =IF(ISNA($DL310),"",getNumKeta0($DN310,-1)) ->  | AG310: =IF(ISNA($DL310),"",getNumKeta0($DN310,-2)) ->  | AH310: =IF(ISNA($DL310),"",getNumKeta0($DN310,-3)) ->  | AI310: =IF(ISNA($DL310),"",getNumKeta0($DO310,9)) ->  | AJ310: =IF(ISNA($DL310),"",getNumKeta0($DO310,8)) ->  | AK310: =IF(ISNA($DL310),"",getNumKeta0($DO310,7)) ->  | AL310: =IF(ISNA($DL310),"",getNumKeta0($DO310,6)) ->  | AM310: =IF(ISNA($DL310),"",getNumKeta0($DO310,5)) ->  | AN310: =IF(ISNA($DL310),"",getNumKeta0($DO310,4)) ->  | AO310: =IF(ISNA($DL310),"",getNumKeta0($DO310,3)) ->  | AP310: =IF(ISNA($DL310),"",getNumKeta0($DO310,2)) ->  | AQ310: =IF(ISNA($DL310),"",getNumKeta0($DO310,1)) ->  | AR310: =IF(ISNA($DL310),"",LEFT(VLOOKUP($DL310,請求明細,10,FALSE),16)) ->  | BF310: =BF277+1 -> 91 | BG310: =IF(ISNA($DL310),"",VLOOKUP($DL310,請求明細,3,FALSE)) ->  | BJ310: =IF(ISNA($DL310),"",VLOOKUP($DL310,請求明細,4,FALSE)) ->  | BN310: =IF(ISNA($DL310),"",getNumKeta0($DM310,9)) ->  | BO310: =IF(ISNA($DL310),"",getNumKeta0($DM310,8)) ->  | BP310: =IF(ISNA($DL310),"",getNumKeta0($DM310,7)) ->  | BQ310: =IF(ISNA($DL310),"",getNumKeta0($DM310,6)) ->  | BR310: =IF(ISNA($DL310),"",getNumKeta0($DM310,5)) ->  | BS310: =IF(ISNA($DL310),"",getNumKeta0($DM310,4)) ->  | BT310: =IF(ISNA($DL310),"",getNumKeta0($DM310,3)) ->  | BU310: =IF(ISNA($DL310),"",getNumKeta0($DM310,2)) ->  | BV310: =IF(ISNA($DL310),"",getNumKeta0($DM310,1)) ->  | BW310: =IF(ISNA($DL310),"",getNumKeta0($DM310,-1)) ->  | BX310: =IF(ISNA($DL310),"",getNumKeta0($DM310,-2)) ->  | BY310: =IF(ISNA($DL310),"",getNumKeta0($DM310,-3)) ->  | BZ310: =IF(ISNA($DL310),"",VLOOKUP($DL310,請求明細,6,FALSE)) ->  | CA310: =IF(ISNA($DL310),"",getNumKeta0($DN310,9)) ->  | CB310: =IF(ISNA($DL310),"",getNumKeta0($DN310,8)) ->  | CC310: =IF(ISNA($DL310),"",getNumKeta0($DN310,7)) ->  | CD310: =IF(ISNA($DL310),"",getNumKeta0($DN310,6)) ->  | CE310: =IF(ISNA($DL310),"",getNumKeta0($DN310,5)) ->  | CF310: =IF(ISNA($DL310),"",getNumKeta0($DN310,4)) ->  | CG310: =IF(ISNA($DL310),"",getNumKeta0($DN310,3)) ->  | CH310: =IF(ISNA($DL310),"",getNumKeta0($DN310,2)) ->  | CI310: =IF(ISNA($DL310),"",getNumKeta0($DN310,1)) ->  | CJ310: =IF(ISNA($DL310),"",getNumKeta0($DN310,-1)) ->  | CK310: =IF(ISNA($DL310),"",getNumKeta0($DN310,-2)) ->  | CL310: =IF(ISNA($DL310),"",getNumKeta0($DN310,-3)) ->  | CM310: =IF(ISNA($DL310),"",getNumKeta0($DO310,9)) ->  | CN310: =IF(ISNA($DL310),"",getNumKeta0($DO310,8)) ->  | CO310: =IF(ISNA($DL310),"",getNumKeta0($DO310,7)) ->  | CP310: =IF(ISNA($DL310),"",getNumKeta0($DO310,6)) ->  | CQ310: =IF(ISNA($DL310),"",getNumKeta0($DO310,5)) ->  | CR310: =IF(ISNA($DL310),"",getNumKeta0($DO310,4)) ->  | CS310: =IF(ISNA($DL310),"",getNumKeta0($DO310,3)) ->  | CT310: =IF(ISNA($DL310),"",getNumKeta0($DO310,2)) ->  | CU310: =IF(ISNA($DL310),"",getNumKeta0($DO310,1)) ->  | CV310: =IF(ISNA($DL310),"",LEFT(VLOOKUP($DL310,請求明細,10,FALSE),16)) ->  | DI310: =IF($E$14=OFFSET(明細情報!$B$5, $DK310-1,0),1,0) -> 0 | DJ310: =IF($DI310=0, 0, SUM($DI$28:$DI310)) -> 0 | DK310: =DK277+1 -> 91 | DL310: =VLOOKUP(B310,$DJ$28:$DK$65536,2,FALSE) ->  | DM310: =IF(ISNA($DL310),0,VLOOKUP($DL310,請求明細,5,FALSE)) -> 0 | DN310: =IF(ISNA($DL310),0,VLOOKUP($DL310,請求明細,7,FALSE)) -> 0 | DO310: =IF(ISNA($DL310),0,VLOOKUP($DL310,請求明細,9,FALSE)) -> 0
B311: =B310+1 -> 92 | BF311: =BF310+1 -> 92 | DI311: =IF($E$14=OFFSET(明細情報!$B$5, $DK311-1,0),1,0) -> 0 | DJ311: =IF($DI311=0, 0, SUM($DI$28:$DI311)) -> 0 | DK311: =DK310+1 -> 92 | DM311: 0 | DN311: 0 | DO311: 0
B312: 93 | BF312: 93 | DI312: =IF($E$14=OFFSET(明細情報!$B$5, $DK312-1,0),1,0) -> 0 | DJ312: =IF($DI312=0, 0, SUM($DI$28:$DI312)) -> 0 | DK312: 93 | DM312: 0 | DN312: 0 | DO312: 0
B313: 94 | BF313: 94 | DI313: =IF($E$14=OFFSET(明細情報!$B$5, $DK313-1,0),1,0) -> 0 | DJ313: =IF($DI313=0, 0, SUM($DI$28:$DI313)) -> 0 | DK313: 94 | DM313: 0 | DN313: 0 | DO313: 0
B314: 95 | BF314: 95 | DI314: =IF($E$14=OFFSET(明細情報!$B$5, $DK314-1,0),1,0) -> 0 | DJ314: =IF($DI314=0, 0, SUM($DI$28:$DI314)) -> 0 | DK314: 95 | DM314: 0 | DN314: 0 | DO314: 0
B315: 96 | BF315: 96 | DI315: =IF($E$14=OFFSET(明細情報!$B$5, $DK315-1,0),1,0) -> 0 | DJ315: =IF($DI315=0, 0, SUM($DI$28:$DI315)) -> 0 | DK315: 96 | DM315: 0 | DN315: 0 | DO315: 0
B316: 97 | BF316: 97 | DI316: =IF($E$14=OFFSET(明細情報!$B$5, $DK316-1,0),1,0) -> 0 | DJ316: =IF($DI316=0, 0, SUM($DI$28:$DI316)) -> 0 | DK316: 97 | DM316: 0 | DN316: 0 | DO316: 0
B317: 98 | BF317: 98 | DI317: =IF($E$14=OFFSET(明細情報!$B$5, $DK317-1,0),1,0) -> 0 | DJ317: =IF($DI317=0, 0, SUM($DI$28:$DI317)) -> 0 | DK317: 98 | DM317: 0 | DN317: 0 | DO317: 0
B318: 99 | BF318: 99 | DI318: =IF($E$14=OFFSET(明細情報!$B$5, $DK318-1,0),1,0) -> 0 | DJ318: =IF($DI318=0, 0, SUM($DI$28:$DI318)) -> 0 | DK318: 99 | DM318: 0 | DN318: 0 | DO318: 0
... 400 more rows
